Department Family,Entity,Date of Payment,Expense Type,Expense Area,Supplier,Voluntary & Community Sector,SME Class,Sole Trader,D-U-N-S Number,Transaction number,PSPES Level 2,Narrative,Postal Code,Amount in Sterling,Grant?
Communities & Local Government,DCLG,01/08/2016,Current Grants to Non Profit Bodies,Housing & Planning,HOMELESS LINK,Yes,,,,5000341462,,Preventing Homelessness Grant (VOL),SE11 4AP,"390,000.00",Yes
Communities & Local Government,DCLG,01/08/2016,"IT - PC, Network & Hardware",Finance,SOFTWARE BOX LTD,,,,390294056,5106222918,ICT Hardware,Inspiron 17 7000 Series 2-1 laptops,YO61 1ET,"3,079.51",
Communities & Local Government,DCLG,01/08/2016,IT - Service Contracts,Finance,DAISY CORPORATE SERVICES LTD,,Large,,221481042,5106222953,IT Managed / Outsourced Services,FY16/17 Transition Costs Capital,BB9 5SR,"3,132.00",
Communities & Local Government,DCLG,01/08/2016,IT - Service Contracts,Finance,DAISY CORPORATE SERVICES LTD,,Large,,221481042,5106222953,IT Managed / Outsourced Services,FY16/17 Transition Costs Resource,BB9 5SR,"3,132.00",
Communities & Local Government,DCLG,01/08/2016,IT - Service Contracts,Finance,INFO-ASSURE LTD,,Small,,,5106222954,IT Managed / Outsourced Services,CLAS/PEN Test Resource 95 days,GU14 0LX,417,
Communities & Local Government,DCLG,01/08/2016,IT - Service Contracts,Finance,INFO-ASSURE LTD,,Small,,,5106222956,IT Managed / Outsourced Services,CLAS/PEN Test Resource 95 days,GU14 0LX,"1,459.50",
Communities & Local Government,DCLG,01/08/2016,Research,Local Government & Public Services,GLENIGAN,,Large,,218633327,5106222955,Research,Research - Planning application & Development pipeline data,BH8 8AQ,"12,500.00",
Communities & Local Government,DCLG,01/08/2016,Steady State Service Provision,Finance,HMRC,,,,210572470,5106222947,Business Process Outsourcing Services,Whitehall Interns,BD9 8AA,"12,000.00",
Communities & Local Government,DCLG,01/08/2016,Training,Finance,EML LEARNING,,Micro,,218614350,5106222937,Development and Training,Civil Service Training,LS1 9PX,700,
Communities & Local Government,DCLG,01/08/2016,Utilisation of Unfunded Pension Scheme,Finance,LONDON PENSIONS FUND AUTHORITY,,Public Bodies,,236915880,5106222940,Financial,Pension fund management,SE1 0LL,372.79,
Communities & Local Government,DCLG,01/08/2016,Vehicle hire,Finance,CYCLESCHEME LTD,,Large,,345537935,5106222957,Vehicle Hire and Lease,16-17 Cycle to work Costs,BA1 2LN,250,
Communities & Local Government,DCLG,01/08/2016,Work In Progress Pre-Cert 40467 Spend,Decentralisation and Local Growth,HOMES & COMMUNITIES AGENCY,,Large,,,2300002595,,Repayment of grant,NE11 0NA,"-2,500,000.00",Yes
Communities & Local Government,DCLG,01/08/2016,Work In Progress Pre-Cert 40467 Spend,Decentralisation and Local Growth,HOMES & COMMUNITIES AGENCY,,Large,,,2300002595,,Repayment of grant,NE11 0NA,"-2,500,000.00",Yes
Communities & Local Government,DCLG,01/08/2016,Work In Progress Pre-Cert 40467 Spend,Decentralisation and Local Growth,HOMES & COMMUNITIES AGENCY,,Large,,,2300002595,,Repayment of grant interest,NE11 0NA,"-2,617.31",Yes
Communities & Local Government,DCLG,01/08/2016,Work In Progress Pre-Cert 40467 Spend,Decentralisation and Local Growth,HOMES & COMMUNITIES AGENCY,,Large,,,2300002595,,Repayment of grant interest,NE11 0NA,"-2,592.25",Yes
Communities & Local Government,DCLG,02/08/2016,Agency Staff,Finance,CAPITA BUS. SERV. LTD (CON LAB),,Large,,,5106222942,Contingent Labour,Interim Manager,DL1 9HB,"6,136.56",
Communities & Local Government,DCLG,02/08/2016,Agency Staff,Finance,CAPITA BUS. SERV. LTD (CON LAB),,Large,,,5106222943,Contingent Labour,Interim Manager,DL1 9HB,"14,294.50",
Communities & Local Government,DCLG,02/08/2016,Agency Staff,Finance,MANPOWER UK LTD,,Large,,238500362,5106222967,Contingent Labour,Support worker for staff interim measure,UB8 1AB,342.38,
Communities & Local Government,DCLG,02/08/2016,Current Grants to Non Profit Bodies,Local Government & Public Services,FAITH MATTERS,Yes,Small,,218968621,2100266849,,Tell MAMA Outreach Project,SW7 1EE,"73,300.00",Yes
Communities & Local Government,DCLG,02/08/2016,"IT - PC, Network & Hardware",Finance,SOFTWARE BOX LTD,,,,390294056,5106222862,ICT Hardware,Dell Server incl 3yrs 4hr support,YO61 1ET,"4,547.74",
Communities & Local Government,DCLG,02/08/2016,"IT - PC, Network & Hardware",Finance,SOFTWARE BOX LTD,,,,390294056,5106222862,ICT Hardware,Dell Server incl 3yrs NBD support,YO61 1ET,"7,503.21",
Communities & Local Government,DCLG,02/08/2016,IT - Service Contracts,Finance,FUJITSU SERVICES LTD,,Large,,423375062,5106222958,IT Managed / Outsourced Services,LiveLink SQL Server Works,WA3 6GD,"4,280.39",
Communities & Local Government,DCLG,02/08/2016,IT - Service Contracts,Finance,FUJITSU SERVICES LTD,,Large,,423375062,5106222961,IT Managed / Outsourced Services,New Requirements FY 16/17,WA3 6GD,710.53,
Communities & Local Government,DCLG,02/08/2016,IT - Service Contracts,Finance,FUJITSU SERVICES LTD,,Large,,423375062,5106222962,IT Managed / Outsourced Services,"FY16/17 Desktop Charges ""D""Table Charges",WA3 6GD,"-8,196.36",
Communities & Local Government,DCLG,02/08/2016,IT - Service Contracts,Finance,FUJITSU SERVICES LTD,,Large,,423375062,5106222985,IT Managed / Outsourced Services,"FY16/17 Desktop Charges ""D""Table Charges",WA3 6GD,"8,266.50",
Communities & Local Government,DCLG,02/08/2016,IT - Service Contracts,Finance,FUJITSU SERVICES LTD,,Large,,423375062,5106222987,IT Managed / Outsourced Services,"FY16/17 Desktop Charges ""D""Table Charges",WA3 6GD,"46,030.47",
Communities & Local Government,DCLG,02/08/2016,IT - Service Contracts,Finance,FUJITSU SERVICES LTD,,Large,,423375062,5106222988,IT Managed / Outsourced Services,"FY16/17 Desktop Charges ""D""Table Charges",WA3 6GD,312.32,
Communities & Local Government,DCLG,02/08/2016,IT - Service Contracts,Finance,FUJITSU SERVICES LTD,,Large,,423375062,5106222989,IT Managed / Outsourced Services,"FY16/17 DRP Charges ""DRP1Table Charges",WA3 6GD,434.7,
Communities & Local Government,DCLG,02/08/2016,Mobile phone costs,Finance,ORANGE (AIRTIME/LINE RENTAL),,Large,,210707540,2100266850,Telecoms,Monthly consolidated costs July 2016,S98 1DX,399.54,
Communities & Local Government,DCLG,02/08/2016,Services provided by other Govt Orgs,Housing & Planning,VALUATION OFFICE AGENCY,,Public Bodies,,215253886,5106222975,Financial,VOA FEES for RTB revaluations 16-17,W1D 5BU,"143,546.15",Yes
Communities & Local Government,DCLG,02/08/2016,Steady State Service Provision,Finance,CGI IT UK LIMITED,,Large,,239881618,5106222979,Business Process Outsourcing Services,Payroll Services & Licences 15/17,CF31 9AP,216.14,
Communities & Local Government,DCLG,02/08/2016,Steady State Service Provision,Finance,CGI IT UK LIMITED,,Large,,239881618,5106222983,Business Process Outsourcing Services,Payroll Services & Licences 15/17,CF31 9AP,"7,138.90",
Communities & Local Government,DCLG,02/08/2016,Steady State Service Provision,Finance,GALLAGHER BASSETT INTERNATIONAL LTD,,Large,,291745289,5106222971,Business Process Outsourcing Services,Claims Handling Call off,EC3A 7AH,"1,056.00",
Communities & Local Government,DCLG,02/08/2016,Web Services,"Strategy, Communications and Private Office",DEXTROUS WEB LTD,,Micro,,211267270,5106222980,ICT Services,Intranet Service Enhancements,N1 7NG,874.18,
Communities & Local Government,DCLG,02/08/2016,Work In Progress Pre-Cert 40373 Spend,Decentralisation and Local Growth,ADVANTAGE EARLY GROWTH LTD,,Small,,,7600015438,,Revenue Grant To Be Paid,B79 0PF,"4,342.22",Yes
Communities & Local Government,DCLG,02/08/2016,Work In Progress Pre-Cert 40373 Spend,Decentralisation and Local Growth,KENT COUNTY COUNCIL,,Large,,,7600015439,,Revenue Grant Clawback Offset,ME14 1XQ,-27.1,Yes
Communities & Local Government,DCLG,02/08/2016,Work In Progress Pre-Cert 40373 Spend,Decentralisation and Local Growth,KENT COUNTY COUNCIL,,Large,,,7600015439,,Revenue Grant To Be Paid,ME14 1XQ,"168,821.21",Yes
Communities & Local Government,DCLG,02/08/2016,Work In Progress Pre-Cert 40373 Spend,Decentralisation and Local Growth,KENT COUNTY COUNCIL,,Large,,,7600015440,,Revenue Grant To Be Paid,ME14 1XQ,"83,332.51",Yes
Communities & Local Government,DCLG,02/08/2016,Work In Progress Pre-Cert 40467 Spend,Decentralisation and Local Growth,ADVANTAGE EARLY GROWTH LTD,,Small,,,7600015438,,Capital Grant To Be Paid,B79 0PF,1.44,Yes
Communities & Local Government,DCLG,02/08/2016,Work In Progress Pre-Cert 40467 Spend,Decentralisation and Local Growth,KENT COUNTY COUNCIL,,Large,,,7600015439,,Capital Grant Clawback Offset,ME14 1XQ,"-113,715.83",Yes
Communities & Local Government,DCLG,02/08/2016,Work In Progress Pre-Cert 40467 Spend,Decentralisation and Local Growth,KENT COUNTY COUNCIL,,Large,,,7600015439,,Capital Grant To Be Paid,ME14 1XQ,"31,432.10",Yes
Communities & Local Government,DCLG,02/08/2016,Work In Progress Pre-Cert 40467 Spend,Decentralisation and Local Growth,KENT COUNTY COUNCIL,,Large,,,7600015440,,Capital Grant To Be Paid,ME14 1XQ,"15,515.32",Yes
Communities & Local Government,DCLG,02/08/2016,Work In Progress Pre-Cert 40467 Spend,Decentralisation and Local Growth,LEICESTER CITY COUNCIL,,Large,,,7600015436,,Capital Grant To Be Paid,LE1 6ZG,"2,224.32",Yes
Communities & Local Government,DCLG,02/08/2016,Work In Progress Pre-Cert 40467 Spend,Decentralisation and Local Growth,LEICESTER CITY COUNCIL,,Large,,,7600015437,,Capital Grant Clawback Offset,LE1 6ZG,"-2,224.32",Yes
Communities & Local Government,DCLG,03/08/2016,Advertising,"Strategy, Communications and Private Office",CARAT LTD,,Large,,211589882,5106222863,Advertising,NP Asbof Fees,NW1 3BF,8.19,
Communities & Local Government,DCLG,03/08/2016,Advertising,"Strategy, Communications and Private Office",CARAT LTD,,Large,,211589882,5106222863,Advertising,Neighbourhood Planning - Press Ads,NW1 3BF,"10,598.44",
Communities & Local Government,DCLG,03/08/2016,Advertising,"Strategy, Communications and Private Office",CARAT LTD,,Large,,211589882,5106223001,Advertising,NP Asbof Fees,NW1 3BF,1.81,
Communities & Local Government,DCLG,03/08/2016,Advertising,"Strategy, Communications and Private Office",CARAT LTD,,Large,,211589882,5106223001,Advertising,Neighbourhood Planning - Press Ads,NW1 3BF,"2,343.14",
Communities & Local Government,DCLG,03/08/2016,Government Procurement Card (expense),"Strategy, Communications and Private Office",DCLG GOVERNMENT PROCUREMENT CARD,,,,,1000004134,,IT Equipment,TN37 7GA,558,
Communities & Local Government,DCLG,03/08/2016,IT - Service Contracts,Finance,DAISY CORPORATE SERVICES LTD,,Large,,221481042,5106222697,IT Managed / Outsourced Services,MS Corporate WiFi CCN033,BB9 5SR,"7,653.00",
Communities & Local Government,DCLG,03/08/2016,IT - Service Contracts,Finance,FUJITSU SERVICES LTD,,Large,,423375062,5106222857,IT Managed / Outsourced Services,"FY16/17 Storage Charges (""S""TableCharge)",WA3 6GD,"21,579.19",
Communities & Local Government,DCLG,03/08/2016,Management Consultancy,"Strategy, Communications and Private Office",OVE ARUP & PARTNERS,,Large,,210605569,5106222939,Consultancy,Dept Approach for Delivery Planning,NE1 3PL,"2,589.00",
Communities & Local Government,DCLG,03/08/2016,Mobile phone costs,Finance,VODAFONE UK(FSSD USE ONLY),,Large,,397467572,2100266896,Telecoms,Quarterly consolidated tel cost July 2016,RG14 5FF,"43,547.56",
Communities & Local Government,DCLG,03/08/2016,Online Database Information Retrieval,Finance,HAYMARKET MEDIA GROUP LTD,,Large,,,5106223000,ICT Services,Third Sector on-line subs 2016-17,NN4 7XD,334.99,
Communities & Local Government,DCLG,03/08/2016,Online Database Information Retrieval,Finance,HAYMARKET MEDIA GROUP LTD,,Large,,,5106223000,ICT Services,"Third Sector print, subs 2016-17",NN4 7XD,55,
Communities & Local Government,DCLG,03/08/2016,Publications,Finance,JONES YARRELL LEADENHALL LTD,,Large,,505670265,5106223006,Learning and Development Materials,Journal and Newspaper Supply 2016-17,E3 3JH,467.66,
Communities & Local Government,DCLG,03/08/2016,Publicity,"Strategy, Communications and Private Office",JONES YARRELL LEADENHALL LTD,,Large,,505670265,5106223009,Advertising,Printed Publications ,E3 3JH,"1,240.26",
Communities & Local Government,DCLG,03/08/2016,Research,Local Government & Public Services,NATIONAL CENTRE FOR SOCIAL RESEARCH,,Large,,424047426,5106223012,Research,Research - English Housing Survey,EC1V 0AX,"34,552.64",
Communities & Local Government,DCLG,03/08/2016,Web Services,"Strategy, Communications and Private Office",PULSION TECHNOLOGY LTD,,Small,,,5106222993,ICT Services,HO - Web Hosting & support - Year 1,G4 9XA,"2,677.18",
Communities & Local Government,DCLG,03/08/2016,Web Services,"Strategy, Communications and Private Office",PULSION TECHNOLOGY LTD,,Small,,,5106222996,ICT Services,Hosting and maintenance  RtB website,G4 9XA,858,
Communities & Local Government,DCLG,03/08/2016,Web Services,"Strategy, Communications and Private Office",PULSION TECHNOLOGY LTD,,Small,,,5106223002,ICT Services,Hosting maint & devel Year 2,G4 9XA,"1,626.00",
Communities & Local Government,DCLG,04/08/2016,Catering,Local Government & Public Services,LEEDS CITY COUNCIL,,,,211170311,5106223013,Business Support,Winter Flooding Workshop,LS9 0NP,633.5,
Communities & Local Government,DCLG,04/08/2016,Electronic Data Storage,Finance,TNT UK LIMITED,,Large,,,5106223017,Warehousing and Storage,Visions electronic storage,BL10 9GR,"4,192.44",
Communities & Local Government,DCLG,04/08/2016,IT - Service Contracts,Local Government & Public Services,SWIRRL IT LIMITED,,Micro,,211074993,5106223024,IT Managed / Outsourced Services,Open Data Communities development work,FK7 7WT,"20,728.20",
Communities & Local Government,DCLG,04/08/2016,Physical Storage,Finance,IRON MOUNTAIN (UK) LIMITED,,Large,,501338354,5106223025,Warehousing and Storage,Offsite Storage -Tapes 2015,EH54 7DF,434.66,
Communities & Local Government,DCLG,04/08/2016,Physical Storage,"Strategy, Communications and Private Office",WILLIAMS LEA LIMITED,,Large,,393456413,5106223027,Warehousing and Storage,Document Storage/Warehouse,NR3 1PD,"3,739.32",
Communities & Local Government,DCLG,04/08/2016,Printing,"Strategy, Communications and Private Office",WILLIAMS LEA LIMITED,,Large,,393456413,5106223018,Printing Services,Year 3 Print services (0% VAT),NR3 1PD,"1,431.74",
Communities & Local Government,DCLG,04/08/2016,Printing,"Strategy, Communications and Private Office",WILLIAMS LEA LIMITED,,Large,,393456413,5106223026,Printing Services,Year 3 Print services (0% VAT),NR3 1PD,"1,345.34",
Communities & Local Government,DCLG,04/08/2016,Printing,"Strategy, Communications and Private Office",WILLIAMS LEA LIMITED,,Large,,393456413,5106223027,Printing Services,Year 3 Print services,NR3 1PD,"2,181.85",
Communities & Local Government,DCLG,04/08/2016,Printing,"Strategy, Communications and Private Office",WILLIAMS LEA LIMITED,,Large,,393456413,5106223027,Printing Services,Year 3 Print services (0% VAT),NR3 1PD,"4,496.24",
Communities & Local Government,DCLG,04/08/2016,Training,Finance,KORN FERRY HAY GROUP (CSL),,Large,,,5106222945,Development and Training,Civil Service Training,SW1X 7HG,"5,988.00",
Communities & Local Government,DCLG,04/08/2016,Training,Finance,KORN FERRY HAY GROUP (CSL),,Large,,,5106222946,Development and Training,Civil Service Training,SW1X 7HG,"5,988.00",
Communities & Local Government,DCLG,04/08/2016,Training,Finance,SCT CONSULTANTS LTD,,Micro,,,5106223015,Development and Training,Civil Service Training,W8 5RL,"9,750.00",
Communities & Local Government,DCLG,05/08/2016,Agency Staff,Finance,BROOK STREET UK LTD,,Large,,364940028,5106223043,Contingent Labour,Support worker for staff interim measure,AL1 4JB,431.17,
Communities & Local Government,DCLG,05/08/2016,Agency Staff,Finance,CAPITA BUS. SERV. LTD (CON LAB),,Large,,,5106223045,Contingent Labour,Interim Manager,DL1 9HB,"17,575.20",
Communities & Local Government,DCLG,05/08/2016,Agency Staff,Local Government & Public Services,CAPITA BUS. SERV. LTD (CON LAB),,Large,,,5106223044,Contingent Labour,Interim Manager,DL1 9HB,"2,018.64",
Communities & Local Government,DCLG,05/08/2016,Current (non AEF) Grants to Local Authorities,Decentralisation and Local Growth,CORNWALL COUNCIL,,,,,2100266935,,SW GDT Match Funding payment project 202949,TR1 3AY,"20,537.00",Yes
Communities & Local Government,DCLG,05/08/2016,Current Grants to Non Profit Bodies,Local Government & Public Services,METROPOLITAN POLICE SERVICE,,Public Bodies,,217969315,2100266934,,National Community Tension Team,SW6 1TR,"27,297.00",Yes
Communities & Local Government,DCLG,05/08/2016,IT - Service Contracts,Local Government & Public Services,GROUNDWORK UK,Yes,,,739193758,5106223048,IT Managed / Outsourced Services,Lot 2 Community Rights programme Grant,B1 2RR,"10,245.92",
Communities & Local Government,DCLG,05/08/2016,Legal Fees,Housing & Planning,MR RICHARD C PADDOCK,,,,,2100266936,Legal,Legal Advice,,475,
Communities & Local Government,DCLG,05/08/2016,Rent,Finance,DEPT FOR EDUCATION,,Public Bodies,,215592186,5106223029,Business Support,DfE Recharge St Pauls Place 2015/16,FY5 3TA,"17,321.00",
Communities & Local Government,DCLG,05/08/2016,Steady State Service Provision,Housing & Planning,LOCALITY,,Medium,,347998312,5106222998,Business Process Outsourcing Services,Neighbourhood Planning & CRTB,N1 6DR,"36,792.88",
Communities & Local Government,DCLG,05/08/2016,Steady State Service Provision,Local Government & Public Services,CO-OPERATIVES UK,,Small,,,5106223047,Business Process Outsourcing Services,Community Economic Development -contract variation,M60 0AS,"15,605.73",
Communities & Local Government,DCLG,08/08/2016,Grant in Aid to NDPBs (non budget),Finance,COMMISSION LOCAL ADMINISTRATION,,,,215271508,2100266847,,DCLG Budget Contribution for the CLAE August 16,SW1P 4QP,"675,000.00",Yes
Communities & Local Government,DCLG,08/08/2016,Grant in Aid to NDPBs (non budget),Finance,VALUATION TRIBUNAL SERVICE,,,,211218366,2100266968,,Grant in aid to VTS - Non Domestic Rates Appeals,E1 8EU,"520,000.00",Yes
Communities & Local Government,DCLG,08/08/2016,Professional services,Local Government & Public Services,MALCOLM READING CONSULTANTS,,Micro,,424223282,5106223051,Financial,Technical Contract Management  Support,EC1N 6RY,"10,560.00",
Communities & Local Government,DCLG,08/08/2016,Professional services,Local Government & Public Services,MALCOLM READING CONSULTANTS,,Micro,,424223282,5106223054,Financial,Technical Contract Management  Support,EC1N 6RY,"24,240.00",
Communities & Local Government,DCLG,08/08/2016,Research,Local Government & Public Services,NIACE,Yes,Medium,,210396062,5106223061,Research,CBEL Research Milestone 2,LE1 7GE,"22,500.00",
Communities & Local Government,DCLG,08/08/2016,Steady State Service Provision,Decentralisation and Local Growth,BIG LOTTERY FUND,,Public Bodies,,648124972,5106223071,Business Process Outsourcing Services,Coastal Communities Fund,B15 1TR,"-194,553.00",
Communities & Local Government,DCLG,08/08/2016,Travel and Subsistence Account,Local Government & Public Services,Employee Expenses,,,,,2100266971,Business Travel,Official Travel & Subsistence,,615.5,
Communities & Local Government,DCLG,08/08/2016,Vehicle hire,Finance,CYCLESCHEME LTD,,Large,,345537935,5106223058,Vehicle Hire and Lease,16-17 Cycle to work Costs,BA1 2LN,"1,000.00",
Communities & Local Government,DCLG,09/08/2016,Accommodation - actuals,Decentralisation and Local Growth,REDFERN TRAVEL LIMITED,,Small,,213089972,2100267001,Business Travel Accommodation,Consolidated Monthly Travel July Hotels,BD1 3AZ,275,
Communities & Local Government,DCLG,09/08/2016,Accommodation - actuals,Decentralisation and Local Growth,REDFERN TRAVEL LIMITED,,Small,,213089972,2100267001,Business Travel Accommodation,Consolidated Monthly Travel July Hotels,BD1 3AZ,380,
Communities & Local Government,DCLG,09/08/2016,Accommodation - actuals,Decentralisation and Local Growth,REDFERN TRAVEL LIMITED,,Small,,213089972,2100267001,Business Travel Accommodation,Consolidated Monthly Travel July Hotels,BD1 3AZ,260.28,
Communities & Local Government,DCLG,09/08/2016,Accommodation - actuals,Decentralisation and Local Growth,REDFERN TRAVEL LIMITED,,Small,,213089972,2100267001,Business Travel Accommodation,Consolidated Monthly Travel July Hotels,BD1 3AZ,"3,392.68",
Communities & Local Government,DCLG,09/08/2016,Accommodation - actuals,Decentralisation and Local Growth,REDFERN TRAVEL LIMITED,,Small,,213089972,2100267001,Business Travel Accommodation,Consolidated Monthly Travel July Hotels,BD1 3AZ,362.23,
Communities & Local Government,DCLG,09/08/2016,Accommodation - actuals,Decentralisation and Local Growth,REDFERN TRAVEL LIMITED,,Small,,213089972,2100267001,Business Travel Accommodation,Consolidated Monthly Travel July Hotels,BD1 3AZ,481.96,
Communities & Local Government,DCLG,09/08/2016,Accommodation - actuals,Decentralisation and Local Growth,REDFERN TRAVEL LIMITED,,Small,,213089972,2100267001,Business Travel Accommodation,Consolidated Monthly Travel July Hotels,BD1 3AZ,"2,017.53",
Communities & Local Government,DCLG,09/08/2016,Accommodation - actuals,Decentralisation and Local Growth,REDFERN TRAVEL LIMITED,,Small,,213089972,2100267001,Business Travel Accommodation,Consolidated Monthly Travel July Hotels,BD1 3AZ,707.63,
Communities & Local Government,DCLG,09/08/2016,Accommodation - actuals,Finance,REDFERN TRAVEL LIMITED,,Small,,213089972,2100267001,Business Travel Accommodation,Consolidated Monthly Travel July Hotels,BD1 3AZ,"1,226.00",
Communities & Local Government,DCLG,09/08/2016,Accommodation - actuals,Housing & Planning,REDFERN TRAVEL LIMITED,,Small,,213089972,2100267001,Business Travel Accommodation,Consolidated Monthly Travel July Hotels,BD1 3AZ,530.27,
Communities & Local Government,DCLG,09/08/2016,Accommodation - actuals,Local Government & Public Services,REDFERN TRAVEL LIMITED,,Small,,213089972,2100267001,Business Travel Accommodation,Consolidated Monthly Travel July Hotels,BD1 3AZ,392,
Communities & Local Government,DCLG,09/08/2016,Accommodation - actuals,Local Government & Public Services,REDFERN TRAVEL LIMITED,,Small,,213089972,2100267001,Business Travel Accommodation,Consolidated Monthly Travel July Hotels,BD1 3AZ,306.98,
Communities & Local Government,DCLG,09/08/2016,Accommodation - actuals,Local Government & Public Services,REDFERN TRAVEL LIMITED,,Small,,213089972,2100267001,Business Travel Accommodation,Consolidated Monthly Travel July Hotels,BD1 3AZ,989.63,
Communities & Local Government,DCLG,09/08/2016,Accommodation - actuals,"Strategy, Communications and Private Office",REDFERN TRAVEL LIMITED,,Small,,213089972,2100267001,Business Travel Accommodation,Consolidated Monthly Travel July Hotels,BD1 3AZ,507.12,
Communities & Local Government,DCLG,09/08/2016,Accommodation - actuals,"Strategy, Communications and Private Office",REDFERN TRAVEL LIMITED,,Small,,213089972,2100267001,Business Travel Accommodation,Consolidated Monthly Travel July Hotels,BD1 3AZ,254.3,
Communities & Local Government,DCLG,09/08/2016,Accommodation - actuals,"Strategy, Communications and Private Office",REDFERN TRAVEL LIMITED,,Small,,213089972,2100267001,Business Travel Accommodation,Consolidated Monthly Travel July Hotels,BD1 3AZ,554.58,
Communities & Local Government,DCLG,09/08/2016,Accommodation - actuals,"Strategy, Communications and Private Office",REDFERN TRAVEL LIMITED,,Small,,213089972,2100267001,Business Travel Accommodation,Consolidated Monthly Travel July Hotels,BD1 3AZ,858.3,
Communities & Local Government,DCLG,09/08/2016,Agency Staff,Finance,INTERQUEST GROUP UK LIMITED,,Large,,423935241,5106223066,IT Managed / Outsourced Services,SAP Support Services,EC1N 8UA,"5,155.30",
Communities & Local Government,DCLG,09/08/2016,Air Travel,Decentralisation and Local Growth,REDFERN TRAVEL LIMITED,,Small,,213089972,2100267001,Air,Consolidated Monthly Travel July Air Tickets,BD1 3AZ,840.32,
Communities & Local Government,DCLG,09/08/2016,Air Travel,Decentralisation and Local Growth,REDFERN TRAVEL LIMITED,,Small,,213089972,2100267001,Air,Consolidated Monthly Travel July Air Tickets,BD1 3AZ,"1,260.34",
Communities & Local Government,DCLG,09/08/2016,Air Travel,Decentralisation and Local Growth,REDFERN TRAVEL LIMITED,,Small,,213089972,2100267001,Air,Consolidated Monthly Travel July Air Tickets,BD1 3AZ,498.73,
Communities & Local Government,DCLG,09/08/2016,Air Travel,Local Government & Public Services,REDFERN TRAVEL LIMITED,,Small,,213089972,2100267001,Air,Consolidated Monthly Travel July Air Tickets,BD1 3AZ,614.53,
Communities & Local Government,DCLG,09/08/2016,Air Travel,"Strategy, Communications and Private Office",REDFERN TRAVEL LIMITED,,Small,,213089972,2100267001,Air,Consolidated Monthly Travel July Air Tickets,BD1 3AZ,470.62,
Communities & Local Government,DCLG,09/08/2016,Current (non AEF) Grants to Local Authorities,Finance, CO DURHAM & DARLINGTON FIRE RESCUE,,Public Bodies,,211684266,2100266996,,Control Centre Grants to Fire & Rescue Authority,DH1 1TW,"151,451.33",Yes
Communities & Local Government,DCLG,09/08/2016,Current (non AEF) Grants to Local Authorities,Finance,GREATER LONDON AUTHORITY,,Large,,225353416,2100266995,,Control Centre Grants to Fire & Rescue Authority,SE10 1AP,"321,487.16",Yes
Communities & Local Government,DCLG,09/08/2016,Current (non AEF) Grants to Local Authorities,Finance,GREATER MANCHESTER FIRE & RESCUE,,Public Bodies,,424873172,2100266994,,Control Centre Grants to Fire & Rescue Authority,M27 8US,"149,034.66",Yes
Communities & Local Government,DCLG,09/08/2016,Current Grants to Non Profit Bodies,Housing & Planning,CEL GROUP,,Medium,,394794614,5106223067,Technical Services,Home Improvement Agencies 01.04.16 - 31.03.18,WA2 0YL,"68,870.86",Yes
Communities & Local Government,DCLG,09/08/2016,IT - Service Contracts,Finance,INTERQUEST GROUP UK LIMITED,,Large,,423935241,5106223068,IT Managed / Outsourced Services,Support for SQL environment,EC1N 8UA,"2,812.50",
Communities & Local Government,DCLG,09/08/2016,IT - Service Contracts,Housing & Planning,DEXTROUS WEB LTD,,Micro,,211267270,5106223072,IT Managed / Outsourced Services,Hosting 9 months to 31.12.16,N1 7NG,868.8,
Communities & Local Government,DCLG,09/08/2016,Physical Storage,Finance,TNT UK LIMITED,,Large,,,5106223077,Warehousing and Storage,Offsite Records Storage FYR 16/17,BL10 9GR,"4,003.62",
Communities & Local Government,DCLG,09/08/2016,Physical Storage,Finance,TNT UK LIMITED,,Large,,,5106223080,Warehousing and Storage,Offsite Records Storage FYR 16/17,BL10 9GR,"39,766.83",
Communities & Local Government,DCLG,09/08/2016,Physical Storage,Finance,TNT UK LIMITED,,Large,,,5106223081,Warehousing and Storage,Offsite Records Storage FYR 16/17,BL10 9GR,"1,554.10",
Communities & Local Government,DCLG,09/08/2016,Physical Storage,Finance,TNT UK LIMITED,,Large,,,5106223083,Warehousing and Storage,Offsite Records Storage FYR 16/17,BL10 9GR,876.06,
Communities & Local Government,DCLG,09/08/2016,Publicity,"Strategy, Communications and Private Office",PRESS ASSOCIATION,,Large,,217191704,5106223028,Advertising,PRESS ASSOCIATION (PA) 2014-17,DN14 7YH,"1,339.66",
Communities & Local Government,DCLG,09/08/2016,"Rail, Underground and Eurostar",Casey Review,REDFERN TRAVEL LIMITED,,Small,,213089972,2100267001,Rail,Consolidated Monthly Travel July Rail,BD1 3AZ,701.8,
Communities & Local Government,DCLG,09/08/2016,"Rail, Underground and Eurostar",Decentralisation and Local Growth,REDFERN TRAVEL LIMITED,,Small,,213089972,2100267001,Rail,Consolidated Monthly Travel July Rail,BD1 3AZ,320.7,
Communities & Local Government,DCLG,09/08/2016,"Rail, Underground and Eurostar",Decentralisation and Local Growth,REDFERN TRAVEL LIMITED,,Small,,213089972,2100267001,Rail,Consolidated Monthly Travel July Rail,BD1 3AZ,"1,025.36",
Communities & Local Government,DCLG,09/08/2016,"Rail, Underground and Eurostar",Decentralisation and Local Growth,REDFERN TRAVEL LIMITED,,Small,,213089972,2100267001,Rail,Consolidated Monthly Travel July Rail,BD1 3AZ,"1,519.20",
Communities & Local Government,DCLG,09/08/2016,"Rail, Underground and Eurostar",Decentralisation and Local Growth,REDFERN TRAVEL LIMITED,,Small,,213089972,2100267001,Rail,Consolidated Monthly Travel July Rail,BD1 3AZ,875.9,
Communities & Local Government,DCLG,09/08/2016,"Rail, Underground and Eurostar",Decentralisation and Local Growth,REDFERN TRAVEL LIMITED,,Small,,213089972,2100267001,Rail,Consolidated Monthly Travel July Rail,BD1 3AZ,"5,759.28",
Communities & Local Government,DCLG,09/08/2016,"Rail, Underground and Eurostar",Decentralisation and Local Growth,REDFERN TRAVEL LIMITED,,Small,,213089972,2100267001,Rail,Consolidated Monthly Travel July Rail,BD1 3AZ,"1,315.90",
Communities & Local Government,DCLG,09/08/2016,"Rail, Underground and Eurostar",Decentralisation and Local Growth,REDFERN TRAVEL LIMITED,,Small,,213089972,2100267001,Rail,Consolidated Monthly Travel July Rail,BD1 3AZ,"1,591.20",
Communities & Local Government,DCLG,09/08/2016,"Rail, Underground and Eurostar",Decentralisation and Local Growth,REDFERN TRAVEL LIMITED,,Small,,213089972,2100267001,Rail,Consolidated Monthly Travel July Rail,BD1 3AZ,"1,309.50",
Communities & Local Government,DCLG,09/08/2016,"Rail, Underground and Eurostar",Decentralisation and Local Growth,REDFERN TRAVEL LIMITED,,Small,,213089972,2100267001,Rail,Consolidated Monthly Travel July Rail,BD1 3AZ,"1,880.20",
Communities & Local Government,DCLG,09/08/2016,"Rail, Underground and Eurostar",Decentralisation and Local Growth,REDFERN TRAVEL LIMITED,,Small,,213089972,2100267001,Rail,Consolidated Monthly Travel July Rail,BD1 3AZ,"1,461.60",
Communities & Local Government,DCLG,09/08/2016,"Rail, Underground and Eurostar",Decentralisation and Local Growth,REDFERN TRAVEL LIMITED,,Small,,213089972,2100267001,Rail,Consolidated Monthly Travel July Rail,BD1 3AZ,"1,273.70",
Communities & Local Government,DCLG,09/08/2016,"Rail, Underground and Eurostar",Decentralisation and Local Growth,REDFERN TRAVEL LIMITED,,Small,,213089972,2100267001,Rail,Consolidated Monthly Travel July Rail,BD1 3AZ,"1,068.90",
Communities & Local Government,DCLG,09/08/2016,"Rail, Underground and Eurostar",Decentralisation and Local Growth,REDFERN TRAVEL LIMITED,,Small,,213089972,2100267001,Rail,Consolidated Monthly Travel July Rail,BD1 3AZ,"1,561.90",
Communities & Local Government,DCLG,09/08/2016,"Rail, Underground and Eurostar",Decentralisation and Local Growth,REDFERN TRAVEL LIMITED,,Small,,213089972,2100267001,Rail,Consolidated Monthly Travel July Rail,BD1 3AZ,"1,569.20",
Communities & Local Government,DCLG,09/08/2016,"Rail, Underground and Eurostar",Decentralisation and Local Growth,REDFERN TRAVEL LIMITED,,Small,,213089972,2100267001,Rail,Consolidated Monthly Travel July Rail,BD1 3AZ,"1,159.50",
Communities & Local Government,DCLG,09/08/2016,"Rail, Underground and Eurostar",Decentralisation and Local Growth,REDFERN TRAVEL LIMITED,,Small,,213089972,2100267001,Rail,Consolidated Monthly Travel July Rail,BD1 3AZ,"4,738.60",
Communities & Local Government,DCLG,09/08/2016,"Rail, Underground and Eurostar",Decentralisation and Local Growth,REDFERN TRAVEL LIMITED,,Small,,213089972,2100267001,Rail,Consolidated Monthly Travel July Rail,BD1 3AZ,610.2,
Communities & Local Government,DCLG,09/08/2016,"Rail, Underground and Eurostar",Decentralisation and Local Growth,REDFERN TRAVEL LIMITED,,Small,,213089972,2100267001,Rail,Consolidated Monthly Travel July Rail,BD1 3AZ,"8,564.45",
Communities & Local Government,DCLG,09/08/2016,"Rail, Underground and Eurostar",Decentralisation and Local Growth,REDFERN TRAVEL LIMITED,,Small,,213089972,2100267001,Rail,Consolidated Monthly Travel July Rail,BD1 3AZ,"3,349.05",
Communities & Local Government,DCLG,09/08/2016,"Rail, Underground and Eurostar",Finance,REDFERN TRAVEL LIMITED,,Small,,213089972,2100267001,Rail,Consolidated Monthly Travel July Rail,BD1 3AZ,410.6,
Communities & Local Government,DCLG,09/08/2016,"Rail, Underground and Eurostar",Finance,REDFERN TRAVEL LIMITED,,Small,,213089972,2100267001,Rail,Consolidated Monthly Travel July Rail,BD1 3AZ,427,
Communities & Local Government,DCLG,09/08/2016,"Rail, Underground and Eurostar",Finance,REDFERN TRAVEL LIMITED,,Small,,213089972,2100267001,Rail,Consolidated Monthly Travel July Rail,BD1 3AZ,"9,054.70",
Communities & Local Government,DCLG,09/08/2016,"Rail, Underground and Eurostar",Finance,REDFERN TRAVEL LIMITED,,Small,,213089972,2100267001,Rail,Consolidated Monthly Travel July Hotels,BD1 3AZ,445.99,
Communities & Local Government,DCLG,09/08/2016,"Rail, Underground and Eurostar",Finance,REDFERN TRAVEL LIMITED,,Small,,213089972,2100267001,Rail,Consolidated Monthly Travel July Rail,BD1 3AZ,459.45,
Communities & Local Government,DCLG,09/08/2016,"Rail, Underground and Eurostar",Finance,REDFERN TRAVEL LIMITED,,Small,,213089972,2100267001,Rail,Consolidated Monthly Travel July Rail,BD1 3AZ,429,
Communities & Local Government,DCLG,09/08/2016,"Rail, Underground and Eurostar",Housing & Planning,REDFERN TRAVEL LIMITED,,Small,,213089972,2100267001,Rail,Consolidated Monthly Travel July Rail,BD1 3AZ,316.9,
Communities & Local Government,DCLG,09/08/2016,"Rail, Underground and Eurostar",Housing & Planning,REDFERN TRAVEL LIMITED,,Small,,213089972,2100267001,Rail,Consolidated Monthly Travel July Rail,BD1 3AZ,"1,669.30",
Communities & Local Government,DCLG,09/08/2016,"Rail, Underground and Eurostar",Housing & Planning,REDFERN TRAVEL LIMITED,,Small,,213089972,2100267001,Rail,Consolidated Monthly Travel July Rail,BD1 3AZ,"1,768.00",
Communities & Local Government,DCLG,09/08/2016,"Rail, Underground and Eurostar",Housing & Planning,REDFERN TRAVEL LIMITED,,Small,,213089972,2100267001,Rail,Consolidated Monthly Travel July Rail,BD1 3AZ,"1,079.80",
Communities & Local Government,DCLG,09/08/2016,"Rail, Underground and Eurostar",Housing & Planning,REDFERN TRAVEL LIMITED,,Small,,213089972,2100267001,Rail,Consolidated Monthly Travel July Rail,BD1 3AZ,"4,213.41",
Communities & Local Government,DCLG,09/08/2016,"Rail, Underground and Eurostar",Housing & Planning,REDFERN TRAVEL LIMITED,,Small,,213089972,2100267001,Rail,Consolidated Monthly Travel July Rail,BD1 3AZ,"1,052.45",
Communities & Local Government,DCLG,09/08/2016,"Rail, Underground and Eurostar",Local Government & Public Services,REDFERN TRAVEL LIMITED,,Small,,213089972,2100267001,Rail,Consolidated Monthly Travel July Rail,BD1 3AZ,"1,236.15",
Communities & Local Government,DCLG,09/08/2016,"Rail, Underground and Eurostar",Local Government & Public Services,REDFERN TRAVEL LIMITED,,Small,,213089972,2100267001,Rail,Consolidated Monthly Travel July Rail,BD1 3AZ,375.6,
Communities & Local Government,DCLG,09/08/2016,"Rail, Underground and Eurostar",Local Government & Public Services,REDFERN TRAVEL LIMITED,,Small,,213089972,2100267001,Rail,Consolidated Monthly Travel July Rail,BD1 3AZ,566.7,
Communities & Local Government,DCLG,09/08/2016,"Rail, Underground and Eurostar",Local Government & Public Services,REDFERN TRAVEL LIMITED,,Small,,213089972,2100267001,Rail,Consolidated Monthly Travel July Rail,BD1 3AZ,"2,892.35",
Communities & Local Government,DCLG,09/08/2016,"Rail, Underground and Eurostar",Local Government & Public Services,REDFERN TRAVEL LIMITED,,Small,,213089972,2100267001,Rail,Consolidated Monthly Travel July Rail,BD1 3AZ,"1,126.65",
Communities & Local Government,DCLG,09/08/2016,"Rail, Underground and Eurostar",Local Government & Public Services,REDFERN TRAVEL LIMITED,,Small,,213089972,2100267001,Rail,Consolidated Monthly Travel July Rail,BD1 3AZ,"1,754.90",
Communities & Local Government,DCLG,09/08/2016,"Rail, Underground and Eurostar",Local Government & Public Services,REDFERN TRAVEL LIMITED,,Small,,213089972,2100267001,Rail,Consolidated Monthly Travel July Rail,BD1 3AZ,"1,559.60",
Communities & Local Government,DCLG,09/08/2016,"Rail, Underground and Eurostar",Local Government & Public Services,REDFERN TRAVEL LIMITED,,Small,,213089972,2100267001,Rail,Consolidated Monthly Travel July Rail,BD1 3AZ,"1,566.75",
Communities & Local Government,DCLG,09/08/2016,"Rail, Underground and Eurostar",Local Government & Public Services,REDFERN TRAVEL LIMITED,,Small,,213089972,2100267001,Rail,Consolidated Monthly Travel July Rail,BD1 3AZ,"2,502.20",
Communities & Local Government,DCLG,09/08/2016,"Rail, Underground and Eurostar",Local Government & Public Services,REDFERN TRAVEL LIMITED,,Small,,213089972,2100267001,Rail,Consolidated Monthly Travel July Rail,BD1 3AZ,854.3,
Communities & Local Government,DCLG,09/08/2016,"Rail, Underground and Eurostar",Local Government & Public Services,REDFERN TRAVEL LIMITED,,Small,,213089972,2100267001,Rail,Consolidated Monthly Travel July Rail,BD1 3AZ,"1,018.20",
Communities & Local Government,DCLG,09/08/2016,"Rail, Underground and Eurostar",Local Government & Public Services,REDFERN TRAVEL LIMITED,,Small,,213089972,2100267001,Rail,Consolidated Monthly Travel July Rail,BD1 3AZ,441,
Communities & Local Government,DCLG,09/08/2016,"Rail, Underground and Eurostar",Local Government & Public Services,REDFERN TRAVEL LIMITED,,Small,,213089972,2100267001,Rail,Consolidated Monthly Travel July Rail,BD1 3AZ,"3,120.80",
Communities & Local Government,DCLG,09/08/2016,"Rail, Underground and Eurostar","Strategy, Communications and Private Office",REDFERN TRAVEL LIMITED,,Small,,213089972,2100267001,Rail,Consolidated Monthly Travel July Rail,BD1 3AZ,"1,453.55",
Communities & Local Government,DCLG,09/08/2016,"Rail, Underground and Eurostar","Strategy, Communications and Private Office",REDFERN TRAVEL LIMITED,,Small,,213089972,2100267001,Rail,Consolidated Monthly Travel July Rail,BD1 3AZ,799.7,
Communities & Local Government,DCLG,09/08/2016,"Rail, Underground and Eurostar","Strategy, Communications and Private Office",REDFERN TRAVEL LIMITED,,Small,,213089972,2100267001,Rail,Consolidated Monthly Travel July Rail,BD1 3AZ,278.01,
Communities & Local Government,DCLG,09/08/2016,"Rail, Underground and Eurostar","Strategy, Communications and Private Office",REDFERN TRAVEL LIMITED,,Small,,213089972,2100267001,Rail,Consolidated Monthly Travel July Rail,BD1 3AZ,615.5,
Communities & Local Government,DCLG,09/08/2016,"Rail, Underground and Eurostar","Strategy, Communications and Private Office",REDFERN TRAVEL LIMITED,,Small,,213089972,2100267001,Rail,Consolidated Monthly Travel July Rail,BD1 3AZ,"1,541.80",
Communities & Local Government,DCLG,09/08/2016,"Rail, Underground and Eurostar","Strategy, Communications and Private Office",REDFERN TRAVEL LIMITED,,Small,,213089972,2100267001,Rail,Consolidated Monthly Travel July Rail,BD1 3AZ,332.2,
Communities & Local Government,DCLG,09/08/2016,"Rail, Underground and Eurostar","Strategy, Communications and Private Office",REDFERN TRAVEL LIMITED,,Small,,213089972,2100267001,Rail,Consolidated Monthly Travel July Rail,BD1 3AZ,"1,191.20",
Communities & Local Government,DCLG,09/08/2016,Steady State Service Provision,Local Government & Public Services,VODAFONE LTD FORMELY CABLE  & WIREL,,Large,,239869688,5106223082,Business Process Outsourcing Services,Managed Internet Access Line,MK3 5JP,300.73,
Communities & Local Government,DCLG,09/08/2016,Steady State Service Provision,Local Government & Public Services,VODAFONE LTD FORMELY CABLE  & WIREL,,Large,,239869688,5106223082,Business Process Outsourcing Services,Managed Internet Access Line,MK3 5JP,308.68,
Communities & Local Government,DCLG,09/08/2016,Training,Finance,REVOLUTION EVENTS LTD,,Small,,237420406,5106223065,Development and Training,Civil Service Training,TN2 4AG,"2,995.00",
Communities & Local Government,DCLG,09/08/2016,Travel and Subsistence Account,Local Government & Public Services,REDFERN TRAVEL LIMITED,,Small,,213089972,2100267001,Business Travel,Consolidated Monthly Travel July Misc T&S,BD1 3AZ,483.54,
Communities & Local Government,DCLG,09/08/2016,Work In Progress Pre-Cert 40373 Spend,Decentralisation and Local Growth,DERBY CITY COUNCIL,,Large,,,7600015441,,Revenue Grant Clawback Offset,DE1 2FE,"-25,101.63",Yes
Communities & Local Government,DCLG,09/08/2016,Work In Progress Pre-Cert 40373 Spend,Decentralisation and Local Growth,DERBY CITY COUNCIL,,Large,,,7600015441,,Revenue Grant To Be Paid,DE1 2FE,"21,580.22",Yes
Communities & Local Government,DCLG,09/08/2016,Work In Progress Pre-Cert 40373 Spend,Decentralisation and Local Growth,WORCESTERSHIRE COUNTY COUNCIL,,Public Bodies,,,2300002571,,Enterprising Worcestershire AA/W12/15,WR5 2NP,"-1,462.50",Yes
Communities & Local Government,DCLG,09/08/2016,Work In Progress Pre-Cert 40467 Spend,Decentralisation and Local Growth,DERBY CITY COUNCIL,,Large,,,7600015441,,Capital Grant Clawback Offset,DE1 2FE,"-7,937.02",Yes
Communities & Local Government,DCLG,09/08/2016,Work In Progress Pre-Cert 40467 Spend,Decentralisation and Local Growth,DERBY CITY COUNCIL,,Large,,,7600015441,,Capital Grant To Be Paid,DE1 2FE,"39,970.46",Yes
Communities & Local Government,DCLG,09/08/2016,Work In Progress Pre-Cert 40467 Spend,Decentralisation and Local Growth,HARBOROUGH DISTRICT COUNCIL,,Large,,,2300002597,,Recovery of grant,LE16 7AG,"-7,400.86",Yes
Communities & Local Government,DCLG,09/08/2016,Work In Progress Pre-Cert 40467 Spend,Decentralisation and Local Growth,YMCA BLACK COUNTRY GROUP,,,,,2300002400,,"Project: Western Gateway Enterprise Hub, Project R",B70 9LG,"-18,324.87",Yes
Communities & Local Government,DCLG,09/08/2016,Work In Progress Pre-Cert 40467 Spend,Decentralisation and Local Growth,YMCA BLACK COUNTRY GROUP,,,,,2300002555,,Project: Western Gateway Enterprise Hub - Project,B70 9LG,"-2,213.88",Yes
Communities & Local Government,DCLG,10/08/2016,Advertising,"Strategy, Communications and Private Office",CARAT LTD,,Large,,211589882,5106223093,Advertising,NP Asbof Fees ,NW1 3BF,41.61,
Communities & Local Government,DCLG,10/08/2016,Advertising,"Strategy, Communications and Private Office",CARAT LTD,,Large,,211589882,5106223093,Advertising,Neighbourhood Planning - Radio,NW1 3BF,"52,260.97",
Communities & Local Government,DCLG,10/08/2016,ERDF Costs to CLG,Decentralisation and Local Growth,GREATER LONDON AUTHORITY,,Large,,,2100267014,,Technical Assistance Match,SE1 2AA,"440,120.00",Yes
Communities & Local Government,DCLG,10/08/2016,Grant in Aid to NDPBs (non budget),Housing & Planning,HOMES & COMMUNITIES AGENCY,,Public Bodies,,215576860,2100267013,,August GIA claim by HCA,NE11 0NA,"105,219,533.00",Yes
Communities & Local Government,DCLG,10/08/2016,IT - Service Contracts,Finance,ARCUS GLOBAL LIMITED,,Medium,,,5106223105,IT Managed / Outsourced Services,FY15-16 DataMart HostingSer.Chgs.Jul-Mar,CB4 2HY,"32,259.65",
Communities & Local Government,DCLG,10/08/2016,IT - Service Contracts,Finance,ICASEWORK LTD,,Large,,,5106223104,IT Managed / Outsourced Services,DispatchBox Year 1 Service Charges,NW6 7SG,"4,216.67",
Communities & Local Government,DCLG,10/08/2016,IT - Service Contracts,Finance,KAINOS SOFTWARE,,Medium,,,5106223106,IT Managed / Outsourced Services,Official Travel & Subsistence,BT7 1NT,179,
Communities & Local Government,DCLG,10/08/2016,IT - Service Contracts,Finance,KAINOS SOFTWARE,,Medium,,,5106223106,IT Managed / Outsourced Services,Meridio Export Assistance,BT7 1NT,"3,014.67",
Communities & Local Government,DCLG,10/08/2016,IT - Software Maintenance,Finance,LOCKHEED MARTIN BUSINESS TECH SOLUT,,Large,,399909910,5106223091,IT Managed / Outsourced Services,MCIS/TESA support services FY16/17,G3 8EP,"48,108.00",
Communities & Local Government,DCLG,10/08/2016,IT - Software Maintenance,Finance,MARKLOGIC CORPORATION,,Large,,,5106223103,IT Managed / Outsourced Services,Additional Call Off Days,CA 94070,"15,000.00",
Communities & Local Government,DCLG,10/08/2016,Printing,"Strategy, Communications and Private Office",STATIONERY OFFICE LTD,,Large,,779375633,5106222802,Printing Services,Statutory Instruments Print: Non-Vatable,NR3 1PD,165,
Communities & Local Government,DCLG,10/08/2016,Printing,"Strategy, Communications and Private Office",STATIONERY OFFICE LTD,,Large,,779375633,5106222802,Printing Services,Statutory Instruments Print: Vatable,NR3 1PD,130,
Communities & Local Government,DCLG,10/08/2016,Printing,"Strategy, Communications and Private Office",STATIONERY OFFICE LTD,,Large,,779375633,5106223101,Printing Services,Statutory Instruments Print: Non-Vatable,NR3 1PD,165,
Communities & Local Government,DCLG,10/08/2016,Printing,"Strategy, Communications and Private Office",STATIONERY OFFICE LTD,,Large,,779375633,5106223101,Printing Services,Statutory Instruments Print: Vatable,NR3 1PD,130,
Communities & Local Government,DCLG,10/08/2016,Printing,"Strategy, Communications and Private Office",STATIONERY OFFICE LTD,,Large,,779375633,5106223102,Printing Services,Statutory Instruments Print: Non-Vatable,NR3 1PD,165,
Communities & Local Government,DCLG,10/08/2016,Printing,"Strategy, Communications and Private Office",STATIONERY OFFICE LTD,,Large,,779375633,5106223102,Printing Services,Statutory Instruments Print: Vatable,NR3 1PD,130,
Communities & Local Government,DCLG,10/08/2016,Printing,"Strategy, Communications and Private Office",STATIONERY OFFICE LTD,,Large,,779375633,5106223107,Printing Services,Statutory Instruments Print: Non-Vatable,NR3 1PD,165,
Communities & Local Government,DCLG,10/08/2016,Printing,"Strategy, Communications and Private Office",STATIONERY OFFICE LTD,,Large,,779375633,5106223107,Printing Services,Statutory Instruments Print: Vatable,NR3 1PD,130,
Communities & Local Government,DCLG,10/08/2016,Printing,"Strategy, Communications and Private Office",STATIONERY OFFICE LTD,,Large,,779375633,5106223108,Printing Services,Statutory Instruments Print: Non-Vatable,NR3 1PD,165,
Communities & Local Government,DCLG,10/08/2016,Printing,"Strategy, Communications and Private Office",STATIONERY OFFICE LTD,,Large,,779375633,5106223108,Printing Services,Statutory Instruments Print: Vatable,NR3 1PD,130,
Communities & Local Government,DCLG,10/08/2016,Printing,"Strategy, Communications and Private Office",STATIONERY OFFICE LTD,,Large,,779375633,5106223109,Printing Services,Statutory Instruments Print: Non-Vatable,NR3 1PD,165,
Communities & Local Government,DCLG,10/08/2016,Printing,"Strategy, Communications and Private Office",STATIONERY OFFICE LTD,,Large,,779375633,5106223109,Printing Services,Statutory Instruments Print: Vatable,NR3 1PD,130,
Communities & Local Government,DCLG,10/08/2016,Printing,"Strategy, Communications and Private Office",STATIONERY OFFICE LTD,,Large,,779375633,5106223111,Printing Services,Statutory Instruments Print: Non-Vatable,NR3 1PD,165,
Communities & Local Government,DCLG,10/08/2016,Printing,"Strategy, Communications and Private Office",STATIONERY OFFICE LTD,,Large,,779375633,5106223111,Printing Services,Statutory Instruments Print: Vatable,NR3 1PD,130,
Communities & Local Government,DCLG,10/08/2016,Printing,"Strategy, Communications and Private Office",STATIONERY OFFICE LTD,,Large,,779375633,5106223113,Printing Services,Statutory Instruments Print: Non-Vatable,NR3 1PD,165,
Communities & Local Government,DCLG,10/08/2016,Printing,"Strategy, Communications and Private Office",STATIONERY OFFICE LTD,,Large,,779375633,5106223113,Printing Services,Statutory Instruments Print: Vatable,NR3 1PD,130,
Communities & Local Government,DCLG,10/08/2016,Printing,"Strategy, Communications and Private Office",STATIONERY OFFICE LTD,,Large,,779375633,5106223114,Printing Services,Statutory Instruments Print: Non-Vatable,NR3 1PD,165,
Communities & Local Government,DCLG,10/08/2016,Printing,"Strategy, Communications and Private Office",STATIONERY OFFICE LTD,,Large,,779375633,5106223114,Printing Services,Statutory Instruments Print: Vatable,NR3 1PD,130,
Communities & Local Government,DCLG,10/08/2016,Professional services,Local Government & Public Services,VALUATION OFFICE AGENCY,,Public Bodies,,215253886,2100266931,Environmental Services,Payment for work on NNDR and Council Tax - AUGUST,W1D 5BU,"13,325,000.00",
Communities & Local Government,DCLG,10/08/2016,Publications,Finance,HEMMING GROUP LTD,,Medium,,210907168,5106223087,Learning and Development Materials,MJ journal print subscription 2016-17,SW1V 2SS,595,
Communities & Local Government,DCLG,10/08/2016,Publications,"Strategy, Communications and Private Office",JONES YARRELL LEADENHALL LTD,,Large,,505670265,5106223033,Learning and Development Materials,JYL Printed Publications,E3 3JH,297.91,
Communities & Local Government,DCLG,10/08/2016,Research,Housing & Planning,BUILDING RESEARCH ESTABLISHMENT,,Large,,896495033,5106223120,Research,Official Travel & Subsistence,WD25 9XX,"1,089.60",
Communities & Local Government,DCLG,10/08/2016,Research,Local Government & Public Services,OFFICE FOR NATIONAL STATISTICS,,Public Bodies,,232101196,5106223097,Research,2016/17 - Milestone 1,NP10 8XG,"72,506.49",
Communities & Local Government,DCLG,10/08/2016,Steady State Service Provision,Housing & Planning,ST BASILS CENTRE,Yes,Small,,289531105,5106223099,Business Process Outsourcing Services,Secondment,B9 4AX,"5,972.89",
Communities & Local Government,DCLG,10/08/2016,Training,Finance,ACTION ON HEARING LOSS,,Large,,288623135,5106223089,Development and Training,Civil Service Training,EC1Y 8SL,999,
Communities & Local Government,DCLG,10/08/2016,Training,Finance,SAP (UK) LTD,,Large,,396951675,5106223050,Development and Training,Civil Service Training,TW14 8HD,"2,850.00",
Communities & Local Government,DCLG,10/08/2016,Training,Finance,WELLESLEY INFORMATION SERVICES,,Large,,940293111,5106223075,Development and Training,Civil Service Training,21279-9514,958.45,
Communities & Local Government,DCLG,10/08/2016,Vehicle hire,"Strategy, Communications and Private Office",GOVERNMENT CAR & DESPATCH AGENCY,,Public Bodies,,,5106223036,Vehicle Hire and Lease,Ministerial Duty Car (Non-VAT),SW8 5AX,346.5,
Communities & Local Government,DCLG,10/08/2016,Vehicle hire,"Strategy, Communications and Private Office",GOVERNMENT CAR & DESPATCH AGENCY,,Public Bodies,,,5106223036,Vehicle Hire and Lease,Ministerial Duty Car 2(LT206) 2016-17,SW8 5AX,"7,602.66",
Communities & Local Government,DCLG,10/08/2016,Vehicle hire,"Strategy, Communications and Private Office",GOVERNMENT CAR & DESPATCH AGENCY,,Public Bodies,,,5106223118,Vehicle Hire and Lease,Ministerial Duty Car (Non-VAT),SW8 5AX,178.5,
Communities & Local Government,DCLG,10/08/2016,Vehicle hire,"Strategy, Communications and Private Office",GOVERNMENT CAR & DESPATCH AGENCY,,Public Bodies,,,5106223118,Vehicle Hire and Lease,Ministerial Duty Car 1 (LT118) 2016-17,SW8 5AX,"6,749.16",
Communities & Local Government,DCLG,10/08/2016,Vehicle hire,"Strategy, Communications and Private Office",GOVERNMENT CAR & DESPATCH AGENCY,,Public Bodies,,,5106223121,Vehicle Hire and Lease,Ministerial Duty Car (Non-VAT),SW8 5AX,178.5,
Communities & Local Government,DCLG,10/08/2016,Vehicle hire,"Strategy, Communications and Private Office",GOVERNMENT CAR & DESPATCH AGENCY,,Public Bodies,,,5106223121,Vehicle Hire and Lease,Ministerial Duty Car 1 (LT118) 2016-17,SW8 5AX,"7,032.16",
Communities & Local Government,DCLG,10/08/2016,Vehicle hire,"Strategy, Communications and Private Office",GOVERNMENT CAR & DESPATCH AGENCY,,Public Bodies,,,5106223122,Vehicle Hire and Lease,Ministerial Duty Car (Non-VAT),SW8 5AX,367.5,
Communities & Local Government,DCLG,10/08/2016,Vehicle hire,"Strategy, Communications and Private Office",GOVERNMENT CAR & DESPATCH AGENCY,,Public Bodies,,,5106223122,Vehicle Hire and Lease,Ministerial Duty Car 2(LT206) 2016-17,SW8 5AX,"8,710.66",
Communities & Local Government,DCLG,10/08/2016,Work In Progress Pre-Cert 40467 Spend,Decentralisation and Local Growth,SOCIAL ENTERPRISE LOAN FUND,,Small,,,2300002513,,Recovery of  grant,SW8 2LN,"-50,462.56",Yes
Communities & Local Government,DCLG,10/08/2016,Work In Progress Pre-Cert 40467 Spend,Decentralisation and Local Growth,SOCIAL ENTERPRISE LOAN FUND,,Small,,,2300002540,,Recovery of grant,SW8 2LN,"-39,462.56",Yes
Communities & Local Government,DCLG,11/08/2016,Current (non AEF) Grants to Local Authorities,Local Government & Public Services,CARLISLE CITY CNCL,,,,227471059,2600061992,,Carlisle City Council Bellwin payments Dec15 flood,CA3 8QG,"377,912.00",Yes
Communities & Local Government,DCLG,11/08/2016,IT - Service Contracts,Finance,ARCUS GLOBAL LIMITED,,Medium,,,5106223137,IT Managed / Outsourced Services,DataMart Hosting charges 2016/17,CB4 2HY,"35,271.96",
Communities & Local Government,DCLG,11/08/2016,IT - Service Contracts,Finance,ARCUS GLOBAL LIMITED,,Medium,,,5106223138,IT Managed / Outsourced Services,DataMart Hosting charges 2016/17,CB4 2HY,"1,241.80",
Communities & Local Government,DCLG,11/08/2016,IT - Software Maintenance,Finance,MARKLOGIC CORPORATION,,Large,,,5106222581,IT Managed / Outsourced Services,BI Reporting Module,CA 94070,"73,950.00",
Communities & Local Government,DCLG,11/08/2016,IT - Software Maintenance,Finance,METHODS CONSULTING LTD,,Medium,,505275578,5106223116,IT Managed / Outsourced Services,PIMS Support Charges (Initial 6mths),WC2H 8AD,"24,000.00",
Communities & Local Government,DCLG,11/08/2016,IT - Software Maintenance,Housing & Planning,AECOM LIMITED,,Large,,225157072,5106223127,IT Managed / Outsourced Services,software validation services,AL1 3ER,"1,393.02",
Communities & Local Government,DCLG,11/08/2016,Online Database Information Retrieval,Finance,DOW JONES REUTERS BUS INTERACT,,Large,,221036630,5106223133,ICT Services,Subscription 2016-17,E1W 1AZ,"1,025.34",
Communities & Local Government,DCLG,11/08/2016,Physical Storage,Finance,TNT UK LIMITED,,Large,,,5106223140,Warehousing and Storage,Offsite Records Storage FYR 16/17,BL10 9GR,266.12,
Communities & Local Government,DCLG,11/08/2016,Work In Progress Pre-Cert 40373 Spend,Decentralisation and Local Growth,DEPT FOR BUSINESS INNOVATION & SKIL,,,,,7600015445,,Revenue Grant To Be Paid,SW1H 0ET,922.86,Yes
Communities & Local Government,DCLG,11/08/2016,Work In Progress Pre-Cert 40467 Spend,Decentralisation and Local Growth,DEPT FOR BUSINESS INNOVATION & SKIL,,,,,7600015445,,Capital Grant To Be Paid,SW1H 0ET,"556,778.60",Yes
Communities & Local Government,DCLG,11/08/2016,Work In Progress Pre-Cert 40467 Spend,Decentralisation and Local Growth,LEICESTER CITY COUNCIL,,Large,,,7600015419,,Capital Grant To Be Paid,LE1 6ZG,"4,844.02",Yes
Communities & Local Government,DCLG,11/08/2016,Work In Progress Pre-Cert 40467 Spend,Decentralisation and Local Growth,LINCONSHIRE COUNTY COUNCIL,,Large,,,7600015444,,Capital Grant To Be Paid,LN1 1YT,"47,002.20",Yes
Communities & Local Government,DCLG,12/08/2016,Agency Staff,Decentralisation and Local Growth,CAPITA BUS. SERV. LTD (CON LAB),,Large,,,5106223147,Contingent Labour,Interim Manager,DL1 9HB,"5,248.22",
Communities & Local Government,DCLG,12/08/2016,Agency Staff,Finance,BROOK STREET UK LTD,,Large,,364940028,5106223144,Contingent Labour,Support worker for staff interim measure,AL1 4JB,431.17,
Communities & Local Government,DCLG,12/08/2016,Agency Staff,Finance,CAPITA BUS. SERV. LTD (CON LAB),,Large,,,5106223148,Contingent Labour,Interim Manager,DL1 9HB,"6,136.56",
Communities & Local Government,DCLG,12/08/2016,Agency Staff,Housing & Planning,CAPITA BUS. SERV. LTD (CON LAB),,Large,,,5106223145,Contingent Labour,Interim Manager,DL1 9HB,"10,093.20",
Communities & Local Government,DCLG,12/08/2016,Agency Staff,Local Government & Public Services,CAPITA BUS. SERV. LTD (CON LAB),,Large,,,5106223149,Contingent Labour,Interim Manager,DL1 9HB,"1,614.91",
Communities & Local Government,DCLG,12/08/2016,Agency Staff,"Strategy, Communications and Private Office",BROOK STREET UK LTD,,Large,,364940028,5106223143,Contingent Labour,Interim Correspondence Staff - August 2016,AL1 4JB,608.72,
Communities & Local Government,DCLG,12/08/2016,Current Grants to Non Profit Bodies,Local Government & Public Services,NAT ASSOC LOCAL COUNCILS,,,,580214963,2100266820,,Smaller authorities transparency fund payment,WC1B 3LD,"608,635.25",Yes
Communities & Local Government,DCLG,12/08/2016,IT - Service Contracts,Finance,DAISY CORPORATE SERVICES LTD,,Large,,221481042,5106222645,IT Managed / Outsourced Services,MS Corporate WiFi CCN033,BB9 5SR,"4,116.69",
Communities & Local Government,DCLG,12/08/2016,IT - Service Contracts,Finance,INFO-ASSURE LTD,,Small,,,5106223152,IT Managed / Outsourced Services,CLAS/PEN Test Resource 95 days,GU14 0LX,"1,417.50",
Communities & Local Government,DCLG,12/08/2016,IT - Service Contracts,Finance,MARKLOGIC CORPORATION,,Large,,,5106223155,IT Managed / Outsourced Services,Beta Development Charges,CA 94070,"242,831.25",
Communities & Local Government,DCLG,12/08/2016,IT - Service Contracts,Finance,MARKLOGIC CORPORATION,,Large,,,5106223157,IT Managed / Outsourced Services,Beta Development Charges,CA 94070,"220,950.03",
Communities & Local Government,DCLG,12/08/2016,IT - Software Maintenance,Finance,MARKLOGIC CORPORATION,,Large,,,5106222676,IT Managed / Outsourced Services,Payment Module,CA 94070,"45,975.00",
Communities & Local Government,DCLG,12/08/2016,IT - Software Maintenance,Finance,MARKLOGIC CORPORATION,,Large,,,5106223092,IT Managed / Outsourced Services,Payment Module,CA 94070,"56,550.03",
Communities & Local Government,DCLG,12/08/2016,Repayments of Private Sect Grant (Cap),Decentralisation and Local Growth,CALSONIC KANSEI SUNDERLAND LTD,,,,,2300002585,,192C Clawback of Regional Growth Fund payment 1,SR4 9EW,"-33,216.00",
Communities & Local Government,DCLG,12/08/2016,Repayments of Private Sect Grant (Cap),Decentralisation and Local Growth,CALSONIC KANSEI SUNDERLAND LTD,,,,,2300002591,,192C Clawback of Regional Growth Fund payment 2,SR4 9EW,"-33,220.00",
Communities & Local Government,DCLG,12/08/2016,Research,Housing & Planning,AECOM LIMITED,,Large,,225157072,5106223161,Research,Final Report on Ventilation Standards in New Homes,AL1 3ER,"34,363.20",
Communities & Local Government,DCLG,12/08/2016,Research,Housing & Planning,AECOM LIMITED,,Large,,225157072,5106223161,Research,Extra testing for Ventilation Standards Project,AL1 3ER,"3,400.00",
Communities & Local Government,DCLG,12/08/2016,Research,Housing & Planning,BUILDING RESEARCH ESTABLISHMENT,,Large,,896495033,5106223156,Research,Payment for regular report from fire analysis contract.,WD25 9XX,"21,252.00",
Communities & Local Government,DCLG,12/08/2016,Work In Progress Pre-Cert 40467 Spend,Decentralisation and Local Growth,BISHOP GROSSETESTE UNIV COLL LINCOL,,Large,,,2300002562,,"Project: Reach for the Sky Centre, Project Referen",LN1 3DY,"-86,120.81",Yes
Communities & Local Government,DCLG,15/08/2016,Courier Services,Finance,NEOPOST LTD,,Large,,770080364,5106223172,Office Solutions,Sundries,RM1 2AR,275.26,
Communities & Local Government,DCLG,15/08/2016,ERDF Costs to CLG,Decentralisation and Local Growth,CERTIFYING AUTHORITY,,,,,2100267116,,15-16 national Contribution re tech assistance,9000,"335,619.83",Yes
Communities & Local Government,DCLG,15/08/2016,IT - Service Contracts,Finance,ARCUS GLOBAL LIMITED,,Medium,,,5106223163,IT Managed / Outsourced Services,T&M wks FY16-17,CB4 2HY,"6,853.38",
Communities & Local Government,DCLG,15/08/2016,IT - Software Maintenance,Finance,MARKLOGIC CORPORATION,,Large,,,5106223167,IT Managed / Outsourced Services,BI Reporting Module,CA 94070,"70,228.13",
Communities & Local Government,DCLG,15/08/2016,Office Supplies,Finance,CONSERVATION BY DESIGN LTD,,Large,,771231693,5106223175,Office Supplies,Delivery Charge  15,MK42 7AW,18,
Communities & Local Government,DCLG,15/08/2016,Office Supplies,Finance,CONSERVATION BY DESIGN LTD,,Large,,771231693,5106223175,Office Supplies,Polyester Pockets A6,MK42 7AW,105.6,
Communities & Local Government,DCLG,15/08/2016,Office Supplies,Finance,CONSERVATION BY DESIGN LTD,,Large,,771231693,5106223175,Office Supplies,Polyester Pockets A4,MK42 7AW,458.18,
Communities & Local Government,DCLG,15/08/2016,Office Supplies,Finance,CONSERVATION BY DESIGN LTD,,Large,,771231693,5106223175,Office Supplies,Polyester Pockets A3,MK42 7AW,463.08,
Communities & Local Government,DCLG,15/08/2016,Publicity,"Strategy, Communications and Private Office",NEWS INTERNATIONAL ASSOC SERVICES L,,Large,,,5106223165,Advertising,Corp Subsription Renew- Times & SunTimes,PE7 8YT,"4,464.00",
Communities & Local Government,DCLG,15/08/2016,Vehicle hire,"Strategy, Communications and Private Office",GOVERNMENT CAR & DESPATCH AGENCY,,Public Bodies,,,5106223173,Vehicle Hire and Lease,Ministerial Duty Car 2(LT206) 2016-17,SW8 5AX,"2,530.60",
Communities & Local Government,DCLG,15/08/2016,Work In Progress Pre-Cert 40373 Spend,Decentralisation and Local Growth,NBV ENTERPRISE SOLUTIONS LTD,,Small,,,7700000004,,Revenue grant to be paid,NG7 7FN,"31,806.54",Yes
Communities & Local Government,DCLG,16/08/2016,Current (non AEF) Grants to Local Authorities,Local Government & Public Services,ADUR DC,,,,227472891,5000343275,,Business Rates Multiplier Cap,BN11 1HA,"2,826.00",Yes
Communities & Local Government,DCLG,16/08/2016,Current (non AEF) Grants to Local Authorities,Local Government & Public Services,ADUR DC,,,,227472891,5000343277,,New Empty Property Relief,BN11 1HA,471,Yes
Communities & Local Government,DCLG,16/08/2016,Current (non AEF) Grants to Local Authorities,Local Government & Public Services,ADUR DC,,,,227472891,5000343279,,Doubling of Small Business Rates Relief,BN11 1HA,"21,793.00",Yes
Communities & Local Government,DCLG,16/08/2016,Current (non AEF) Grants to Local Authorities,Local Government & Public Services,ALLERDALE BOROUGH COUNCIL,,,,218146780,5000343281,,Business Rates Multiplier Cap,CA14 3YJ,"5,536.00",Yes
Communities & Local Government,DCLG,16/08/2016,Current (non AEF) Grants to Local Authorities,Local Government & Public Services,ALLERDALE BOROUGH COUNCIL,,,,218146780,5000343283,,Doubling of Small Business Rates Relief,CA14 3YJ,"60,504.00",Yes
Communities & Local Government,DCLG,16/08/2016,Current (non AEF) Grants to Local Authorities,Local Government & Public Services,ALLERDALE BOROUGH COUNCIL,,,,218146780,5000343285,,Long Term Empty Property Relief,CA14 3YJ,999,Yes
Communities & Local Government,DCLG,16/08/2016,Current (non AEF) Grants to Local Authorities,Local Government & Public Services,ALLERDALE BOROUGH COUNCIL,,,,218146780,5000343287,,Small Business Rates Relief on Second Properties,CA14 3YJ,344,Yes
Communities & Local Government,DCLG,16/08/2016,Current (non AEF) Grants to Local Authorities,Local Government & Public Services,ALLERDALE BOROUGH COUNCIL,,,,218146780,5000343289,,Extended Transitional Relief for Small and Medium,CA14 3YJ,338,Yes
Communities & Local Government,DCLG,16/08/2016,Current (non AEF) Grants to Local Authorities,Local Government & Public Services,AMBER VALLEY BC,,,,,5000343291,,Business Rates Multiplier Cap,DE5 3BT,"3,909.00",Yes
Communities & Local Government,DCLG,16/08/2016,Current (non AEF) Grants to Local Authorities,Local Government & Public Services,AMBER VALLEY BC,,,,,5000343293,,Doubling of Small Business Rates Relief,DE5 3BT,"45,328.00",Yes
Communities & Local Government,DCLG,16/08/2016,Current (non AEF) Grants to Local Authorities,Local Government & Public Services,AMBER VALLEY BC,,,,,5000343295,,Extended Transitional Relief for Small and Medium,DE5 3BT,571,Yes
Communities & Local Government,DCLG,16/08/2016,Current (non AEF) Grants to Local Authorities,Local Government & Public Services,AMBER VALLEY BC,,,,,5000343297,,Long Term Empty Property Relief,DE5 3BT,418,Yes
Communities & Local Government,DCLG,16/08/2016,Current (non AEF) Grants to Local Authorities,Local Government & Public Services,ARUN DC,,,,211217668,5000341956,,Doubling of Small Business Rates Relief,BN17 5LF,"57,345.00",Yes
Communities & Local Government,DCLG,16/08/2016,Current (non AEF) Grants to Local Authorities,Local Government & Public Services,ARUN DC,,,,211217668,5000341958,,Long Term Empty Property Relief,BN17 5LF,841,Yes
Communities & Local Government,DCLG,16/08/2016,Current (non AEF) Grants to Local Authorities,Local Government & Public Services,ARUN DC,,,,211217668,5000341959,,Business Rates Multiplier Cap,BN17 5LF,"6,142.00",Yes
Communities & Local Government,DCLG,16/08/2016,Current (non AEF) Grants to Local Authorities,Local Government & Public Services,ARUN DC,,,,211217668,5000341961,,Small Business Rates Relief on Second Properties,BN17 5LF,455,Yes
Communities & Local Government,DCLG,16/08/2016,Current (non AEF) Grants to Local Authorities,Local Government & Public Services,ASHFIELD DC,,,,235415296,5000343301,,Doubling of Small Business Rates Relief,NG17 8DA,"33,296.00",Yes
Communities & Local Government,DCLG,16/08/2016,Current (non AEF) Grants to Local Authorities,Local Government & Public Services,ASHFIELD DC,,,,235415296,5000343303,,Long Term Empty Property Relief,NG17 8DA,338,Yes
Communities & Local Government,DCLG,16/08/2016,Current (non AEF) Grants to Local Authorities,Local Government & Public Services,ASHFIELD DC,,,,235415296,5000343307,,Business Rates Multiplier Cap,NG17 8DA,"5,556.00",Yes
Communities & Local Government,DCLG,16/08/2016,Current (non AEF) Grants to Local Authorities,Local Government & Public Services,ASHFIELD DC,,,,235415296,5000343309,,New Empty Property Relief,NG17 8DA,845,Yes
Communities & Local Government,DCLG,16/08/2016,Current (non AEF) Grants to Local Authorities,Local Government & Public Services,ASHFORD BC,,,,229467071,5000341963,,Business Rates Multiplier Cap,TN23 1PL,"4,394.00",Yes
Communities & Local Government,DCLG,16/08/2016,Current (non AEF) Grants to Local Authorities,Local Government & Public Services,ASHFORD BC,,,,229467071,5000341965,,Doubling of Small Business Rates Relief,TN23 1PL,"44,808.00",Yes
Communities & Local Government,DCLG,16/08/2016,Current (non AEF) Grants to Local Authorities,Local Government & Public Services,ASHFORD BC,,,,229467071,5000341967,,New Empty Property Relief,TN23 1PL,286,Yes
Communities & Local Government,DCLG,16/08/2016,Current (non AEF) Grants to Local Authorities,Local Government & Public Services,ASHFORD BC,,,,229467071,5000341969,,Long Term Empty Property Relief,TN23 1PL,263,Yes
Communities & Local Government,DCLG,16/08/2016,Current (non AEF) Grants to Local Authorities,Local Government & Public Services,AVON FIRE AUTHORITY,,Large,,424872570,5000343629,,Business Rates Multiplier Cap,BS1 6EU,"12,272.00",Yes
Communities & Local Government,DCLG,16/08/2016,Current (non AEF) Grants to Local Authorities,Local Government & Public Services,AVON FIRE AUTHORITY,,Large,,424872570,5000343631,,Doubling of Small Business Rates Relief,BS1 6EU,"8,546.00",Yes
Communities & Local Government,DCLG,16/08/2016,Current (non AEF) Grants to Local Authorities,Local Government & Public Services,AYLESBURY VALE DC(HSG),,,,396710709,5000341976,,Doubling of Small Business Rates Relief,HP19 8FF,"56,152.00",Yes
Communities & Local Government,DCLG,16/08/2016,Current (non AEF) Grants to Local Authorities,Local Government & Public Services,AYLESBURY VALE DC(HSG),,,,396710709,5000341978,,Business Rates Multiplier Cap,HP19 8FF,"5,219.00",Yes
Communities & Local Government,DCLG,16/08/2016,Current (non AEF) Grants to Local Authorities,Local Government & Public Services,AYLESBURY VALE DC(HSG),,,,396710709,5000341980,,New Empty Property Relief,HP19 8FF,"3,584.00",Yes
Communities & Local Government,DCLG,16/08/2016,Current (non AEF) Grants to Local Authorities,Local Government & Public Services,AYLESBURY VALE DC(HSG),,,,396710709,5000341982,,Long Term Empty Property Relief,HP19 8FF,465,Yes
Communities & Local Government,DCLG,16/08/2016,Current (non AEF) Grants to Local Authorities,Local Government & Public Services,AYLESBURY VALE DC(HSG),,,,396710709,5000341984,,Extended Transitional Relief for Small and Medium,HP19 8FF,281,Yes
Communities & Local Government,DCLG,16/08/2016,Current (non AEF) Grants to Local Authorities,Local Government & Public Services,AYLESBURY VALE DC(HSG),,,,396710709,5000341986,,Small Business Rates Relief on Second Properties,HP19 8FF,636,Yes
Communities & Local Government,DCLG,16/08/2016,Current (non AEF) Grants to Local Authorities,Local Government & Public Services,BABERGH DC,,,,232618405,5000341988,,Business Rates Multiplier Cap,IP7 6SJ,"2,735.00",Yes
Communities & Local Government,DCLG,16/08/2016,Current (non AEF) Grants to Local Authorities,Local Government & Public Services,BABERGH DC,,,,232618405,5000341990,,Doubling of Small Business Rates Relief,IP7 6SJ,"39,542.00",Yes
Communities & Local Government,DCLG,16/08/2016,Current (non AEF) Grants to Local Authorities,Local Government & Public Services,BABERGH DC,,,,232618405,5000341996,,Long Term Empty Property Relief,IP7 6SJ,605,Yes
Communities & Local Government,DCLG,16/08/2016,Current (non AEF) Grants to Local Authorities,Local Government & Public Services,BARKING & DAGENHAM LB (HSG),,,,217142293,5000342000,,Doubling of Small Business Rates Relief,RM10 7BY,"34,180.00",Yes
Communities & Local Government,DCLG,16/08/2016,Current (non AEF) Grants to Local Authorities,Local Government & Public Services,BARKING & DAGENHAM LB (HSG),,,,217142293,5000342002,,Long Term Empty Property Relief,RM10 7BY,"4,608.00",Yes
Communities & Local Government,DCLG,16/08/2016,Current (non AEF) Grants to Local Authorities,Local Government & Public Services,BARKING & DAGENHAM LB (HSG),,,,217142293,5000342004,,Business Rates Multiplier Cap,RM10 7BY,"63,449.00",Yes
Communities & Local Government,DCLG,16/08/2016,Current (non AEF) Grants to Local Authorities,Local Government & Public Services,BARNSLEY MBC,,,,211178595,5000343317,,Extended Transitional Relief for Small and Medium,S70 2AQ,848,Yes
Communities & Local Government,DCLG,16/08/2016,Current (non AEF) Grants to Local Authorities,Local Government & Public Services,BARNSLEY MBC,,,,211178595,5000343319,,Business Rates Multiplier Cap,S70 2AQ,"63,236.00",Yes
Communities & Local Government,DCLG,16/08/2016,Current (non AEF) Grants to Local Authorities,Local Government & Public Services,BARNSLEY MBC,,,,211178595,5000343321,,Doubling of Small Business Rates Relief,S70 2AQ,"103,705.00",Yes
Communities & Local Government,DCLG,16/08/2016,Current (non AEF) Grants to Local Authorities,Local Government & Public Services,BARNSLEY MBC,,,,211178595,5000343323,,Long Term Empty Property Relief,S70 2AQ,576,Yes
Communities & Local Government,DCLG,16/08/2016,Current (non AEF) Grants to Local Authorities,Local Government & Public Services,BARROW BC,,,,295632913,5000343329,,Business Rates Multiplier Cap,LA14 2LD,"3,958.00",Yes
Communities & Local Government,DCLG,16/08/2016,Current (non AEF) Grants to Local Authorities,Local Government & Public Services,BARROW BC,,,,295632913,5000343331,,Doubling of Small Business Rates Relief,LA14 2LD,"23,576.00",Yes
Communities & Local Government,DCLG,16/08/2016,Current (non AEF) Grants to Local Authorities,Local Government & Public Services,BASILDON BOROUGH COUNCIL,,,,,5000343336,,Doubling of Small Business Rates Relief,SS14 0DF,"43,287.00",Yes
Communities & Local Government,DCLG,16/08/2016,Current (non AEF) Grants to Local Authorities,Local Government & Public Services,BASILDON BOROUGH COUNCIL,,,,,5000343338,,Business Rates Multiplier Cap,SS14 0DF,"8,438.00",Yes
Communities & Local Government,DCLG,16/08/2016,Current (non AEF) Grants to Local Authorities,Local Government & Public Services,BASINGSTOKE & DEANE BC,,,,228328506,5000343340,,Small Business Rates Relief on Second Properties,RG21 2AJ,577,Yes
Communities & Local Government,DCLG,16/08/2016,Current (non AEF) Grants to Local Authorities,Local Government & Public Services,BASINGSTOKE & DEANE BC,,,,228328506,5000343342,,Business Rates Multiplier Cap,RG21 2AJ,"4,236.00",Yes
Communities & Local Government,DCLG,16/08/2016,Current (non AEF) Grants to Local Authorities,Local Government & Public Services,BASINGSTOKE & DEANE BC,,,,228328506,5000343346,,Doubling of Small Business Rates Relief,RG21 2AJ,"28,572.00",Yes
Communities & Local Government,DCLG,16/08/2016,Current (non AEF) Grants to Local Authorities,Local Government & Public Services,BASINGSTOKE & DEANE BC,,,,228328506,5000343348,,Long Term Empty Property Relief,RG21 2AJ,"2,544.00",Yes
Communities & Local Government,DCLG,16/08/2016,Current (non AEF) Grants to Local Authorities,Local Government & Public Services,BASSETLAW DC (HSG),,,,,5000342006,,Long Term Empty Property Relief,S80 2AH,563,Yes
Communities & Local Government,DCLG,16/08/2016,Current (non AEF) Grants to Local Authorities,Local Government & Public Services,BASSETLAW DC (HSG),,,,,5000342007,,Extended Transitional Relief for Small and Medium,S80 2AH,401,Yes
Communities & Local Government,DCLG,16/08/2016,Current (non AEF) Grants to Local Authorities,Local Government & Public Services,BASSETLAW DC (HSG),,,,,5000342009,,Small Business Rates Relief on Second Properties,S80 2AH,558,Yes
Communities & Local Government,DCLG,16/08/2016,Current (non AEF) Grants to Local Authorities,Local Government & Public Services,BASSETLAW DC (HSG),,,,,5000342011,,Doubling of Small Business Rates Relief,S80 2AH,"44,694.00",Yes
Communities & Local Government,DCLG,16/08/2016,Current (non AEF) Grants to Local Authorities,Local Government & Public Services,BASSETLAW DC (HSG),,,,,5000342013,,Business Rates Multiplier Cap,S80 2AH,"5,823.00",Yes
Communities & Local Government,DCLG,16/08/2016,Current (non AEF) Grants to Local Authorities,Local Government & Public Services,BASSETLAW DC (HSG),,,,,5000342015,,New Empty Property Relief,S80 2AH,"2,609.00",Yes
Communities & Local Government,DCLG,16/08/2016,Current (non AEF) Grants to Local Authorities,Local Government & Public Services,BATH & NE SOMERSET DC (HSG),,,,214502499,5000342017,,Business Rates Multiplier Cap,BA1 5AW,"27,874.00",Yes
Communities & Local Government,DCLG,16/08/2016,Current (non AEF) Grants to Local Authorities,Local Government & Public Services,BATH & NE SOMERSET DC (HSG),,,,214502499,5000342019,,Doubling of Small Business Rates Relief,BA1 5AW,"85,108.00",Yes
Communities & Local Government,DCLG,16/08/2016,Current (non AEF) Grants to Local Authorities,Local Government & Public Services,BATH & NE SOMERSET DC (HSG),,,,214502499,5000342021,,Long Term Empty Property Relief,BA1 5AW,"1,967.00",Yes
Communities & Local Government,DCLG,16/08/2016,Current (non AEF) Grants to Local Authorities,Local Government & Public Services,BATH & NE SOMERSET DC (HSG),,,,214502499,5000342025,,Small Business Rates Relief on Second Properties,BA1 5AW,315,Yes
Communities & Local Government,DCLG,16/08/2016,Current (non AEF) Grants to Local Authorities,Local Government & Public Services,BEDFORD UNITARY AUTHORITY,,,,225682160,5000343693,,Business Rates Multiplier Cap,MK40 1SJ,"36,630.00",Yes
Communities & Local Government,DCLG,16/08/2016,Current (non AEF) Grants to Local Authorities,Local Government & Public Services,BEDFORD UNITARY AUTHORITY,,,,225682160,5000343697,,Doubling of Small Business Rates Relief,MK40 1SJ,"68,203.00",Yes
Communities & Local Government,DCLG,16/08/2016,Current (non AEF) Grants to Local Authorities,Local Government & Public Services,BEDFORD UNITARY AUTHORITY,,,,225682160,5000343699,,New Empty Property Relief,MK40 1SJ,"2,872.00",Yes
Communities & Local Government,DCLG,16/08/2016,Current (non AEF) Grants to Local Authorities,Local Government & Public Services,BEDFORD UNITARY AUTHORITY,,,,225682160,5000343701,,Long Term Empty Property Relief,MK40 1SJ,"1,283.00",Yes
Communities & Local Government,DCLG,16/08/2016,Current (non AEF) Grants to Local Authorities,Local Government & Public Services,BEDS & LUTON FIRE & RESCUE SERVICE,,Medium,,387821283,5000343516,,Business Rates Multiplier Cap,MK42 7NR,"6,640.00",Yes
Communities & Local Government,DCLG,16/08/2016,Current (non AEF) Grants to Local Authorities,Local Government & Public Services,BEDS & LUTON FIRE & RESCUE SERVICE,,Medium,,387821283,5000343518,,Doubling of Small Business Rates Relief,MK42 7NR,"4,713.00",Yes
Communities & Local Government,DCLG,16/08/2016,Current (non AEF) Grants to Local Authorities,Local Government & Public Services,BEDS & LUTON FIRE & RESCUE SERVICE,,Medium,,387821283,5000343520,,Extended Transitional Relief for Small and Medium,MK42 7NR,913,Yes
Communities & Local Government,DCLG,16/08/2016,Current (non AEF) Grants to Local Authorities,Local Government & Public Services,BEXLEY LB (RSG),,,,,5000343288,,Business Rates Multiplier Cap,DA8 1TL,"43,416.00",Yes
Communities & Local Government,DCLG,16/08/2016,Current (non AEF) Grants to Local Authorities,Local Government & Public Services,BEXLEY LB (RSG),,,,,5000343290,,Doubling of Small Business Rates Relief,DA8 1TL,"51,500.00",Yes
Communities & Local Government,DCLG,16/08/2016,Current (non AEF) Grants to Local Authorities,Local Government & Public Services,BIRMINGHAM CITY CNCL,,,,213780559,5000343350,,Business Rates Multiplier Cap,B2 2AJ,"408,803.00",Yes
Communities & Local Government,DCLG,16/08/2016,Current (non AEF) Grants to Local Authorities,Local Government & Public Services,BIRMINGHAM CITY CNCL,,,,213780559,5000343352,,Doubling of Small Business Rates Relief,B2 2AJ,"534,783.00",Yes
Communities & Local Government,DCLG,16/08/2016,Current (non AEF) Grants to Local Authorities,Local Government & Public Services,BLABY DC (HSG),,,,,5000342027,,Business Rates Multiplier Cap,LE9 5EP,"3,880.00",Yes
Communities & Local Government,DCLG,16/08/2016,Current (non AEF) Grants to Local Authorities,Local Government & Public Services,BLABY DC (HSG),,,,,5000342029,,Doubling of Small Business Rates Relief,LE9 5EP,"21,340.00",Yes
Communities & Local Government,DCLG,16/08/2016,Current (non AEF) Grants to Local Authorities,Local Government & Public Services,BLACKBURN WITH DARWEN BC,,,,,5000343354,,Extended Transitional Relief for Small and Medium,BB1 7DY,414,Yes
Communities & Local Government,DCLG,16/08/2016,Current (non AEF) Grants to Local Authorities,Local Government & Public Services,BLACKBURN WITH DARWEN BC,,,,,5000343355,,Small Business Rates Relief on Second Properties,BB1 7DY,"1,243.00",Yes
Communities & Local Government,DCLG,16/08/2016,Current (non AEF) Grants to Local Authorities,Local Government & Public Services,BLACKBURN WITH DARWEN BC,,,,,5000343358,,Business Rates Multiplier Cap,BB1 7DY,"49,301.00",Yes
Communities & Local Government,DCLG,16/08/2016,Current (non AEF) Grants to Local Authorities,Local Government & Public Services,BLACKBURN WITH DARWEN BC,,,,,5000343360,,Doubling of Small Business Rates Relief,BB1 7DY,"113,290.00",Yes
Communities & Local Government,DCLG,16/08/2016,Current (non AEF) Grants to Local Authorities,Local Government & Public Services,BLACKBURN WITH DARWEN BC,,,,,5000343362,,New Empty Property Relief,BB1 7DY,"4,142.00",Yes
Communities & Local Government,DCLG,16/08/2016,Current (non AEF) Grants to Local Authorities,Local Government & Public Services,BLACKBURN WITH DARWEN BC,,,,,5000343364,,Long Term Empty Property Relief,BB1 7DY,"6,214.00",Yes
Communities & Local Government,DCLG,16/08/2016,Current (non AEF) Grants to Local Authorities,Local Government & Public Services,BLACKPOOL BC,,,,,5000343366,,Business Rates Multiplier Cap,FY1 1NA,"52,258.00",Yes
Communities & Local Government,DCLG,16/08/2016,Current (non AEF) Grants to Local Authorities,Local Government & Public Services,BLACKPOOL BC,,,,,5000343368,,Doubling of Small Business Rates Relief,FY1 1NA,"128,078.00",Yes
Communities & Local Government,DCLG,16/08/2016,Current (non AEF) Grants to Local Authorities,Local Government & Public Services,BLACKPOOL BC,,,,,5000343370,,Long Term Empty Property Relief,FY1 1NA,"3,550.00",Yes
Communities & Local Government,DCLG,16/08/2016,Current (non AEF) Grants to Local Authorities,Local Government & Public Services,BOLSOVER DC,,,,235516523,5000343376,,Business Rates Multiplier Cap,S43 4JY,"4,637.00",Yes
Communities & Local Government,DCLG,16/08/2016,Current (non AEF) Grants to Local Authorities,Local Government & Public Services,BOLSOVER DC,,,,235516523,5000343378,,Doubling of Small Business Rates Relief,S43 4JY,"22,949.00",Yes
Communities & Local Government,DCLG,16/08/2016,Current (non AEF) Grants to Local Authorities,Local Government & Public Services,BOLTON MBC,,,,,5000343383,,Long Term Empty Property Relief,BL1 1RU,"7,497.00",Yes
Communities & Local Government,DCLG,16/08/2016,Current (non AEF) Grants to Local Authorities,Local Government & Public Services,BOLTON MBC,,,,,5000343385,,Extended Transitional Relief for Small and Medium,BL1 1RU,"2,486.00",Yes
Communities & Local Government,DCLG,16/08/2016,Current (non AEF) Grants to Local Authorities,Local Government & Public Services,BOLTON MBC,,,,,5000343387,,Business Rates Multiplier Cap,BL1 1RU,"77,576.00",Yes
Communities & Local Government,DCLG,16/08/2016,Current (non AEF) Grants to Local Authorities,Local Government & Public Services,BOLTON MBC,,,,,5000343389,,Doubling of Small Business Rates Relief,BL1 1RU,"153,262.00",Yes
Communities & Local Government,DCLG,16/08/2016,Current (non AEF) Grants to Local Authorities,Local Government & Public Services,BOSTON BC,,,,236417713,5000342031,,Doubling of Small Business Rates Relief,PE21 8QR,"26,346.00",Yes
Communities & Local Government,DCLG,16/08/2016,Current (non AEF) Grants to Local Authorities,Local Government & Public Services,BOSTON BC,,,,236417713,5000342033,,Long Term Empty Property Relief,PE21 8QR,286,Yes
Communities & Local Government,DCLG,16/08/2016,Current (non AEF) Grants to Local Authorities,Local Government & Public Services,BOSTON BC,,,,236417713,5000342035,,Business Rates Multiplier Cap,PE21 8QR,"3,548.00",Yes
Communities & Local Government,DCLG,16/08/2016,Current (non AEF) Grants to Local Authorities,Local Government & Public Services,BOURNEMOUTH DC,,,,,5000343391,,Business Rates Multiplier Cap,BH2 6EB,"36,162.00",Yes
Communities & Local Government,DCLG,16/08/2016,Current (non AEF) Grants to Local Authorities,Local Government & Public Services,BOURNEMOUTH DC,,,,,5000343393,,Doubling of Small Business Rates Relief,BH2 6EB,"94,202.00",Yes
Communities & Local Government,DCLG,16/08/2016,Current (non AEF) Grants to Local Authorities,Local Government & Public Services,BOURNEMOUTH DC,,,,,5000343395,,Long Term Empty Property Relief,BH2 6EB,"2,013.00",Yes
Communities & Local Government,DCLG,16/08/2016,Current (non AEF) Grants to Local Authorities,Local Government & Public Services,BRACKNELL FOREST DC,,,,236184867,5000343401,,Long Term Empty Property Relief,RG12 1AQ,"2,071.00",Yes
Communities & Local Government,DCLG,16/08/2016,Current (non AEF) Grants to Local Authorities,Local Government & Public Services,BRACKNELL FOREST DC,,,,236184867,5000343403,,Small Business Rates Relief on Second Properties,RG12 1AQ,414,Yes
Communities & Local Government,DCLG,16/08/2016,Current (non AEF) Grants to Local Authorities,Local Government & Public Services,BRACKNELL FOREST DC,,,,236184867,5000343405,,Business Rates Multiplier Cap,RG12 1AQ,"23,267.00",Yes
Communities & Local Government,DCLG,16/08/2016,Current (non AEF) Grants to Local Authorities,Local Government & Public Services,BRACKNELL FOREST DC,,,,236184867,5000343407,,Doubling of Small Business Rates Relief,RG12 1AQ,"20,711.00",Yes
Communities & Local Government,DCLG,16/08/2016,Current (non AEF) Grants to Local Authorities,Local Government & Public Services,BRADFORD MBC,,,,,5000343409,,Long Term Empty Property Relief,BD1 1HX,"4,066.00",Yes
Communities & Local Government,DCLG,16/08/2016,Current (non AEF) Grants to Local Authorities,Local Government & Public Services,BRADFORD MBC,,,,,5000343411,,Small Business Rates Relief on Second Properties,BD1 1HX,"2,486.00",Yes
Communities & Local Government,DCLG,16/08/2016,Current (non AEF) Grants to Local Authorities,Local Government & Public Services,BRADFORD MBC,,,,,5000343413,,Business Rates Multiplier Cap,BD1 1HX,"157,114.00",Yes
Communities & Local Government,DCLG,16/08/2016,Current (non AEF) Grants to Local Authorities,Local Government & Public Services,BRADFORD MBC,,,,,5000343415,,New Empty Property Relief,BD1 1HX,828,Yes
Communities & Local Government,DCLG,16/08/2016,Current (non AEF) Grants to Local Authorities,Local Government & Public Services,BRADFORD MBC,,,,,5000343417,,Extended Transitional Relief for Small and Medium,BD1 1HX,"1,036.00",Yes
Communities & Local Government,DCLG,16/08/2016,Current (non AEF) Grants to Local Authorities,Local Government & Public Services,BRADFORD MBC,,,,,5000343419,,Doubling of Small Business Rates Relief,BD1 1HX,"340,491.00",Yes
Communities & Local Government,DCLG,16/08/2016,Current (non AEF) Grants to Local Authorities,Local Government & Public Services,BRAINTREE DC,,,,226941730,5000342039,,Doubling of Small Business Rates Relief,CM7 6HB,"55,811.00",Yes
Communities & Local Government,DCLG,16/08/2016,Current (non AEF) Grants to Local Authorities,Local Government & Public Services,BRAINTREE DC,,,,226941730,5000342041,,Business Rates Multiplier Cap,CM7 6HB,"4,796.00",Yes
Communities & Local Government,DCLG,16/08/2016,Current (non AEF) Grants to Local Authorities,Local Government & Public Services,BRAINTREE DC,,,,226941730,5000342043,,New Empty Property Relief,CM7 6HB,340,Yes
Communities & Local Government,DCLG,16/08/2016,Current (non AEF) Grants to Local Authorities,Local Government & Public Services,BRAINTREE DC,,,,226941730,5000342045,,Long Term Empty Property Relief,CM7 6HB,810,Yes
Communities & Local Government,DCLG,16/08/2016,Current (non AEF) Grants to Local Authorities,Local Government & Public Services,BRAINTREE DC,,,,226941730,5000342047,,Extended Transitional Relief for Small and Medium,CM7 6HB,406,Yes
Communities & Local Government,DCLG,16/08/2016,Current (non AEF) Grants to Local Authorities,Local Government & Public Services,BRECKLAND DC,,,,232611384,5000342049,,Doubling of Small Business Rates Relief,NR19 1EE,"50,638.00",Yes
Communities & Local Government,DCLG,16/08/2016,Current (non AEF) Grants to Local Authorities,Local Government & Public Services,BRECKLAND DC,,,,232611384,5000342050,,Long Term Empty Property Relief,NR19 1EE,616,Yes
Communities & Local Government,DCLG,16/08/2016,Current (non AEF) Grants to Local Authorities,Local Government & Public Services,BRECKLAND DC,,,,232611384,5000342054,,Business Rates Multiplier Cap,NR19 1EE,"5,483.00",Yes
Communities & Local Government,DCLG,16/08/2016,Current (non AEF) Grants to Local Authorities,Local Government & Public Services,BRENT LB (HSG),,,,,5000342058,,Business Rates Multiplier Cap,HA9 9HD,"101,488.00",Yes
Communities & Local Government,DCLG,16/08/2016,Current (non AEF) Grants to Local Authorities,Local Government & Public Services,BRENT LB (HSG),,,,,5000342060,,New Empty Property Relief,HA9 9HD,507,Yes
Communities & Local Government,DCLG,16/08/2016,Current (non AEF) Grants to Local Authorities,Local Government & Public Services,BRENT LB (HSG),,,,,5000342065,,Doubling of Small Business Rates Relief,HA9 9HD,"56,882.00",Yes
Communities & Local Government,DCLG,16/08/2016,Current (non AEF) Grants to Local Authorities,Local Government & Public Services,BRENT LB (HSG),,,,,5000342067,,Long Term Empty Property Relief,HA9 9HD,"1,268.00",Yes
Communities & Local Government,DCLG,16/08/2016,Current (non AEF) Grants to Local Authorities,Local Government & Public Services,BRENTWOOD BC,,,,227473188,5000343423,,Business Rates Multiplier Cap,CM15 8AY,"1,725.00",Yes
Communities & Local Government,DCLG,16/08/2016,Current (non AEF) Grants to Local Authorities,Local Government & Public Services,BRENTWOOD BC,,,,227473188,5000343425,,Doubling of Small Business Rates Relief,CM15 8AY,"20,288.00",Yes
Communities & Local Government,DCLG,16/08/2016,Current (non AEF) Grants to Local Authorities,Local Government & Public Services,BRENTWOOD BC,,,,227473188,5000343427,,Long Term Empty Property Relief,CM15 8AY,608,Yes
Communities & Local Government,DCLG,16/08/2016,Current (non AEF) Grants to Local Authorities,Local Government & Public Services,BRIGHTON & HOVE CITY COUNCIL,,Large,,228455218,5000343429,,Small Business Rates Relief on Second Properties,BN3 2LS,"1,311.00",Yes
Communities & Local Government,DCLG,16/08/2016,Current (non AEF) Grants to Local Authorities,Local Government & Public Services,BRIGHTON & HOVE CITY COUNCIL,,Large,,228455218,5000343433,,Business Rates Multiplier Cap,BN3 2LS,"66,993.00",Yes
Communities & Local Government,DCLG,16/08/2016,Current (non AEF) Grants to Local Authorities,Local Government & Public Services,BRIGHTON & HOVE CITY COUNCIL,,Large,,228455218,5000343435,,Doubling of Small Business Rates Relief,BN3 2LS,"138,557.00",Yes
Communities & Local Government,DCLG,16/08/2016,Current (non AEF) Grants to Local Authorities,Local Government & Public Services,BRIGHTON & HOVE CITY COUNCIL,,Large,,228455218,5000343437,,New Empty Property Relief,BN3 2LS,370,Yes
Communities & Local Government,DCLG,16/08/2016,Current (non AEF) Grants to Local Authorities,Local Government & Public Services,BRIGHTON & HOVE CITY COUNCIL,,Large,,228455218,5000343439,,Long Term Empty Property Relief,BN3 2LS,"5,355.00",Yes
Communities & Local Government,DCLG,16/08/2016,Current (non AEF) Grants to Local Authorities,Local Government & Public Services,BRISTOL CITY CNCL (HSG),,,,211103882,5000342071,,Small Business Rates Relief on Second Properties,BS99 7BL,"2,690.00",Yes
Communities & Local Government,DCLG,16/08/2016,Current (non AEF) Grants to Local Authorities,Local Government & Public Services,BRISTOL CITY CNCL (HSG),,,,211103882,5000342073,,Extended Transitional Relief for Small and Medium,BS99 7BL,"1,283.00",Yes
Communities & Local Government,DCLG,16/08/2016,Current (non AEF) Grants to Local Authorities,Local Government & Public Services,BRISTOL CITY CNCL (HSG),,,,211103882,5000342075,,Business Rates Multiplier Cap,BS99 7BL,"123,227.00",Yes
Communities & Local Government,DCLG,16/08/2016,Current (non AEF) Grants to Local Authorities,Local Government & Public Services,BRISTOL CITY CNCL (HSG),,,,211103882,5000342077,,Doubling of Small Business Rates Relief,BS99 7BL,"180,002.00",Yes
Communities & Local Government,DCLG,16/08/2016,Current (non AEF) Grants to Local Authorities,Local Government & Public Services,BRISTOL CITY CNCL (HSG),,,,211103882,5000342079,,Long Term Empty Property Relief,BS99 7BL,"6,673.00",Yes
Communities & Local Government,DCLG,16/08/2016,Current (non AEF) Grants to Local Authorities,Local Government & Public Services,BROADLAND DC,,Large,,219737785,5000342082,,Business Rates Multiplier Cap,NR7 0DU,"3,750.00",Yes
Communities & Local Government,DCLG,16/08/2016,Current (non AEF) Grants to Local Authorities,Local Government & Public Services,BROADLAND DC,,Large,,219737785,5000342084,,Doubling of Small Business Rates Relief,NR7 0DU,"45,768.00",Yes
Communities & Local Government,DCLG,16/08/2016,Current (non AEF) Grants to Local Authorities,Local Government & Public Services,BROMLEY LB,,,,211331954,5000343441,,Business Rates Multiplier Cap,BR1 3UH,"42,310.00",Yes
Communities & Local Government,DCLG,16/08/2016,Current (non AEF) Grants to Local Authorities,Local Government & Public Services,BROMLEY LB,,,,211331954,5000343443,,Doubling of Small Business Rates Relief,BR1 3UH,"57,031.00",Yes
Communities & Local Government,DCLG,16/08/2016,Current (non AEF) Grants to Local Authorities,Local Government & Public Services,BROMLEY LB,,,,211331954,5000343445,,Extended Transitional Relief for Small and Medium,BR1 3UH,437,Yes
Communities & Local Government,DCLG,16/08/2016,Current (non AEF) Grants to Local Authorities,Local Government & Public Services,BROMLEY LB,,,,211331954,5000343447,,Long Term Empty Property Relief,BR1 3UH,630,Yes
Communities & Local Government,DCLG,16/08/2016,Current (non AEF) Grants to Local Authorities,Local Government & Public Services,BROMSGROVE DC,,,,236654745,5000342094,,Business Rates Multiplier Cap,B60 1AA,"2,322.00",Yes
Communities & Local Government,DCLG,16/08/2016,Current (non AEF) Grants to Local Authorities,Local Government & Public Services,BROMSGROVE DC,,,,236654745,5000342096,,Doubling of Small Business Rates Relief,B60 1AA,"39,777.00",Yes
Communities & Local Government,DCLG,16/08/2016,Current (non AEF) Grants to Local Authorities,Local Government & Public Services,BROMSGROVE DC,,,,236654745,5000342098,,New Empty Property Relief,B60 1AA,872,Yes
Communities & Local Government,DCLG,16/08/2016,Current (non AEF) Grants to Local Authorities,Local Government & Public Services,BROMSGROVE DC,,,,236654745,5000342100,,Long Term Empty Property Relief,B60 1AA,495,Yes
Communities & Local Government,DCLG,16/08/2016,Current (non AEF) Grants to Local Authorities,Local Government & Public Services,BROXBOURNE BC,,Public Bodies,,239931918,5000343449,,Business Rates Multiplier Cap,EN8 9XG,"3,766.00",Yes
Communities & Local Government,DCLG,16/08/2016,Current (non AEF) Grants to Local Authorities,Local Government & Public Services,BROXBOURNE BC,,Public Bodies,,239931918,5000343451,,Doubling of Small Business Rates Relief,EN8 9XG,"25,030.00",Yes
Communities & Local Government,DCLG,16/08/2016,Current (non AEF) Grants to Local Authorities,Local Government & Public Services,BROXTOWE BC,,,,239877640,5000343453,,Business Rates Multiplier Cap,NG9 1AB,"3,827.00",Yes
Communities & Local Government,DCLG,16/08/2016,Current (non AEF) Grants to Local Authorities,Local Government & Public Services,BROXTOWE BC,,,,239877640,5000343455,,Doubling of Small Business Rates Relief,NG9 1AB,"29,081.00",Yes
Communities & Local Government,DCLG,16/08/2016,Current (non AEF) Grants to Local Authorities,Local Government & Public Services,BUCKINGHAMSHIRE CC,,,,293750923,5000343459,,New Empty Property Relief,HP20 1UD,806,Yes
Communities & Local Government,DCLG,16/08/2016,Current (non AEF) Grants to Local Authorities,Local Government & Public Services,BUCKINGHAMSHIRE CC,,,,293750923,5000343463,,Business Rates Multiplier Cap,HP20 1UD,"50,108.00",Yes
Communities & Local Government,DCLG,16/08/2016,Current (non AEF) Grants to Local Authorities,Local Government & Public Services,BUCKINGHAMSHIRE CC,,,,293750923,5000343465,,Doubling of Small Business Rates Relief,HP20 1UD,"30,884.00",Yes
Communities & Local Government,DCLG,16/08/2016,Current (non AEF) Grants to Local Authorities,Local Government & Public Services,BUCKS & MILTON KEYNES FIRE AUTH,,Public Bodies,,423679463,5000343382,,Business Rates Multiplier Cap,HP20 1BD,"5,958.00",Yes
Communities & Local Government,DCLG,16/08/2016,Current (non AEF) Grants to Local Authorities,Local Government & Public Services,BUCKS & MILTON KEYNES FIRE AUTH,,Public Bodies,,423679463,5000343384,,Doubling of Small Business Rates Relief,HP20 1BD,"4,958.00",Yes
Communities & Local Government,DCLG,16/08/2016,Current (non AEF) Grants to Local Authorities,Local Government & Public Services,BURNLEY BC,,,,229413281,5000343469,,Business Rates Multiplier Cap,BB11 1JA,"5,211.00",Yes
Communities & Local Government,DCLG,16/08/2016,Current (non AEF) Grants to Local Authorities,Local Government & Public Services,BURNLEY BC,,,,229413281,5000343471,,Doubling of Small Business Rates Relief,BB11 1JA,"47,434.00",Yes
Communities & Local Government,DCLG,16/08/2016,Current (non AEF) Grants to Local Authorities,Local Government & Public Services,BURNLEY BC,,,,229413281,5000343473,,New Empty Property Relief,BB11 1JA,845,Yes
Communities & Local Government,DCLG,16/08/2016,Current (non AEF) Grants to Local Authorities,Local Government & Public Services,BURNLEY BC,,,,229413281,5000343475,,Long Term Empty Property Relief,BB11 1JA,845,Yes
Communities & Local Government,DCLG,16/08/2016,Current (non AEF) Grants to Local Authorities,Local Government & Public Services,BURNLEY BC,,,,229413281,5000343477,,Extended Transitional Relief for Small and Medium,BB11 1JA,845,Yes
Communities & Local Government,DCLG,16/08/2016,Current (non AEF) Grants to Local Authorities,Local Government & Public Services,BURNLEY BC,,,,229413281,5000343479,,Small Business Rates Relief on Second Properties,BB11 1JA,422,Yes
Communities & Local Government,DCLG,16/08/2016,Current (non AEF) Grants to Local Authorities,Local Government & Public Services,BURY MBC,,,,,5000343481,,Extended Transitional Relief for Small and Medium,BL9 0SW,452,Yes
Communities & Local Government,DCLG,16/08/2016,Current (non AEF) Grants to Local Authorities,Local Government & Public Services,BURY MBC,,,,,5000343485,,Business Rates Multiplier Cap,BL9 0SW,"39,346.00",Yes
Communities & Local Government,DCLG,16/08/2016,Current (non AEF) Grants to Local Authorities,Local Government & Public Services,BURY MBC,,,,,5000343487,,Doubling of Small Business Rates Relief,BL9 0SW,"101,687.00",Yes
Communities & Local Government,DCLG,16/08/2016,Current (non AEF) Grants to Local Authorities,Local Government & Public Services,CALDERDALE MBC,,,,,5000343489,,Business Rates Multiplier Cap,HX1 1YP,"47,329.00",Yes
Communities & Local Government,DCLG,16/08/2016,Current (non AEF) Grants to Local Authorities,Local Government & Public Services,CALDERDALE MBC,,,,,5000343491,,Doubling of Small Business Rates Relief,HX1 1YP,"141,320.00",Yes
Communities & Local Government,DCLG,16/08/2016,Current (non AEF) Grants to Local Authorities,Local Government & Public Services,CALDERDALE MBC,,,,,5000343493,,Small Business Rates Relief on Second Properties,HX1 1YP,"2,071.00",Yes
Communities & Local Government,DCLG,16/08/2016,Current (non AEF) Grants to Local Authorities,Local Government & Public Services,CALDERDALE MBC,,,,,5000343495,,Extended Transitional Relief for Small and Medium,HX1 1YP,538,Yes
Communities & Local Government,DCLG,16/08/2016,Current (non AEF) Grants to Local Authorities,Local Government & Public Services,CAMBRIDGE CITY COUNCIL,,,,210357534,5000343497,,New Empty Property Relief,CB1 0JH,"1,691.00",Yes
Communities & Local Government,DCLG,16/08/2016,Current (non AEF) Grants to Local Authorities,Local Government & Public Services,CAMBRIDGE CITY COUNCIL,,,,210357534,5000343499,,Long Term Empty Property Relief,CB1 0JH,"3,381.00",Yes
Communities & Local Government,DCLG,16/08/2016,Current (non AEF) Grants to Local Authorities,Local Government & Public Services,CAMBRIDGE CITY COUNCIL,,,,210357534,5000343501,,Extended Transitional Relief for Small and Medium,CB1 0JH,868,Yes
Communities & Local Government,DCLG,16/08/2016,Current (non AEF) Grants to Local Authorities,Local Government & Public Services,CAMBRIDGE CITY COUNCIL,,,,210357534,5000343503,,Business Rates Multiplier Cap,CB1 0JH,"7,413.00",Yes
Communities & Local Government,DCLG,16/08/2016,Current (non AEF) Grants to Local Authorities,Local Government & Public Services,CAMBRIDGE CITY COUNCIL,,,,210357534,5000343505,,Doubling of Small Business Rates Relief,CB1 0JH,"24,128.00",Yes
Communities & Local Government,DCLG,16/08/2016,Current (non AEF) Grants to Local Authorities,Local Government & Public Services,CAMBRIDGESHIRE COUNTY CNCL,,,,219047347,5000343507,,Long Term Empty Property Relief,CB3 0AP,864,Yes
Communities & Local Government,DCLG,16/08/2016,Current (non AEF) Grants to Local Authorities,Local Government & Public Services,CAMBRIDGESHIRE COUNTY CNCL,,,,219047347,5000343509,,Extended Transitional Relief for Small and Medium,CB3 0AP,360,Yes
Communities & Local Government,DCLG,16/08/2016,Current (non AEF) Grants to Local Authorities,Local Government & Public Services,CAMBRIDGESHIRE COUNTY CNCL,,,,219047347,5000343511,,Small Business Rates Relief on Second Properties,CB3 0AP,391,Yes
Communities & Local Government,DCLG,16/08/2016,Current (non AEF) Grants to Local Authorities,Local Government & Public Services,CAMBRIDGESHIRE COUNTY CNCL,,,,219047347,5000343513,,Business Rates Multiplier Cap,CB3 0AP,"73,922.00",Yes
Communities & Local Government,DCLG,16/08/2016,Current (non AEF) Grants to Local Authorities,Local Government & Public Services,CAMBRIDGESHIRE COUNTY CNCL,,,,219047347,5000343515,,New Empty Property Relief,CB3 0AP,691,Yes
Communities & Local Government,DCLG,16/08/2016,Current (non AEF) Grants to Local Authorities,Local Government & Public Services,CAMBRIDGESHIRE COUNTY CNCL,,,,219047347,5000343517,,Doubling of Small Business Rates Relief,CB3 0AP,"42,326.00",Yes
Communities & Local Government,DCLG,16/08/2016,Current (non AEF) Grants to Local Authorities,Local Government & Public Services,CAMBS & PETERBOROUGH FIRE AUTHORITY,,,,235999737,5000343464,,Business Rates Multiplier Cap,PE29 2NA,"7,021.00",Yes
Communities & Local Government,DCLG,16/08/2016,Current (non AEF) Grants to Local Authorities,Local Government & Public Services,CAMBS & PETERBOROUGH FIRE AUTHORITY,,,,235999737,5000343466,,Doubling of Small Business Rates Relief,PE29 2NA,"6,039.00",Yes
Communities & Local Government,DCLG,16/08/2016,Current (non AEF) Grants to Local Authorities,Local Government & Public Services,CAMDEN LB,,,,211651836,5000343519,,Extended Transitional Relief for Small and Medium,WC1H 8NG,"2,290.00",Yes
Communities & Local Government,DCLG,16/08/2016,Current (non AEF) Grants to Local Authorities,Local Government & Public Services,CAMDEN LB,,,,211651836,5000343521,,Business Rates Multiplier Cap,WC1H 8NG,"110,388.00",Yes
Communities & Local Government,DCLG,16/08/2016,Current (non AEF) Grants to Local Authorities,Local Government & Public Services,CAMDEN LB,,,,211651836,5000343523,,Doubling of Small Business Rates Relief,WC1H 8NG,"37,877.00",Yes
Communities & Local Government,DCLG,16/08/2016,Current (non AEF) Grants to Local Authorities,Local Government & Public Services,CANNOCK CHASE DC,,,,215064770,5000343527,,Business Rates Multiplier Cap,WS11 1BG,"4,907.00",Yes
Communities & Local Government,DCLG,16/08/2016,Current (non AEF) Grants to Local Authorities,Local Government & Public Services,CANNOCK CHASE DC,,,,215064770,5000343529,,Doubling of Small Business Rates Relief,WS11 1BG,"43,801.00",Yes
Communities & Local Government,DCLG,16/08/2016,Current (non AEF) Grants to Local Authorities,Local Government & Public Services,CANNOCK CHASE DC,,,,215064770,5000343531,,Long Term Empty Property Relief,WS11 1BG,903,Yes
Communities & Local Government,DCLG,16/08/2016,Current (non AEF) Grants to Local Authorities,Local Government & Public Services,CANTERBURY CITY CNCL,,,,,5000342104,,Business Rates Multiplier Cap,CT1 1YW,"3,970.00",Yes
Communities & Local Government,DCLG,16/08/2016,Current (non AEF) Grants to Local Authorities,Local Government & Public Services,CANTERBURY CITY CNCL,,,,,5000342106,,Doubling of Small Business Rates Relief,CT1 1YW,"59,104.00",Yes
Communities & Local Government,DCLG,16/08/2016,Current (non AEF) Grants to Local Authorities,Local Government & Public Services,CANTERBURY CITY CNCL,,,,,5000342108,,Long Term Empty Property Relief,CT1 1YW,"1,568.00",Yes
Communities & Local Government,DCLG,16/08/2016,Current (non AEF) Grants to Local Authorities,Local Government & Public Services,CANTERBURY CITY CNCL,,,,,5000342112,,Extended Transitional Relief for Small and Medium,CT1 1YW,365,Yes
Communities & Local Government,DCLG,16/08/2016,Current (non AEF) Grants to Local Authorities,Local Government & Public Services,CARLISLE CITY CNCL,,,,227471059,5000342114,,Business Rates Multiplier Cap,CA3 8QG,"4,978.00",Yes
Communities & Local Government,DCLG,16/08/2016,Current (non AEF) Grants to Local Authorities,Local Government & Public Services,CARLISLE CITY CNCL,,,,227471059,5000342116,,Doubling of Small Business Rates Relief,CA3 8QG,"44,444.00",Yes
Communities & Local Government,DCLG,16/08/2016,Current (non AEF) Grants to Local Authorities,Local Government & Public Services,CARLISLE CITY CNCL,,,,227471059,5000342120,,Long Term Empty Property Relief,CA3 8QG,"2,090.00",Yes
Communities & Local Government,DCLG,16/08/2016,Current (non AEF) Grants to Local Authorities,Local Government & Public Services,CARLISLE CITY CNCL,,,,227471059,5000342122,,Extended Transitional Relief for Small and Medium,CA3 8QG,270,Yes
Communities & Local Government,DCLG,16/08/2016,Current (non AEF) Grants to Local Authorities,Local Government & Public Services,CARLISLE CITY CNCL,,,,227471059,5000342124,,Small Business Rates Relief on Second Properties,CA3 8QG,483,Yes
Communities & Local Government,DCLG,16/08/2016,Current (non AEF) Grants to Local Authorities,Local Government & Public Services,CASTLE POINT BC,,Public Bodies,,228217931,5000343539,,Business Rates Multiplier Cap,SS7 1TF,"2,466.00",Yes
Communities & Local Government,DCLG,16/08/2016,Current (non AEF) Grants to Local Authorities,Local Government & Public Services,CASTLE POINT BC,,Public Bodies,,228217931,5000343541,,Doubling of Small Business Rates Relief,SS7 1TF,"30,684.00",Yes
Communities & Local Government,DCLG,16/08/2016,Current (non AEF) Grants to Local Authorities,Local Government & Public Services,CENTRAL BEDFORDSHIRE COUNCIL,,,,232624882,5000343661,,Business Rates Multiplier Cap,SG17 5TQ,"39,573.00",Yes
Communities & Local Government,DCLG,16/08/2016,Current (non AEF) Grants to Local Authorities,Local Government & Public Services,CENTRAL BEDFORDSHIRE COUNCIL,,,,232624882,5000343663,,Doubling of Small Business Rates Relief,SG17 5TQ,"98,876.00",Yes
Communities & Local Government,DCLG,16/08/2016,Current (non AEF) Grants to Local Authorities,Local Government & Public Services,CENTRAL BEDFORDSHIRE COUNCIL,,,,232624882,5000343665,,Long Term Empty Property Relief,SG17 5TQ,"1,750.00",Yes
Communities & Local Government,DCLG,16/08/2016,Current (non AEF) Grants to Local Authorities,Local Government & Public Services,CENTRAL BEDFORDSHIRE COUNCIL,,,,232624882,5000343667,,New Empty Property Relief,SG17 5TQ,"2,120.00",Yes
Communities & Local Government,DCLG,16/08/2016,Current (non AEF) Grants to Local Authorities,Local Government & Public Services,CENTRAL BEDFORDSHIRE COUNCIL,,,,232624882,5000343669,,Extended Transitional Relief for Small and Medium,SG17 5TQ,578,Yes
Communities & Local Government,DCLG,16/08/2016,Current (non AEF) Grants to Local Authorities,Local Government & Public Services,CHARNWOOD BC,,,,,5000343543,,Small Business Rates Relief on Second Properties,LE11 2TU,423,Yes
Communities & Local Government,DCLG,16/08/2016,Current (non AEF) Grants to Local Authorities,Local Government & Public Services,CHARNWOOD BC,,,,,5000343545,,Business Rates Multiplier Cap,LE11 2TU,"4,875.00",Yes
Communities & Local Government,DCLG,16/08/2016,Current (non AEF) Grants to Local Authorities,Local Government & Public Services,CHARNWOOD BC,,,,,5000343547,,New Empty Property Relief,LE11 2TU,"1,691.00",Yes
Communities & Local Government,DCLG,16/08/2016,Current (non AEF) Grants to Local Authorities,Local Government & Public Services,CHARNWOOD BC,,,,,5000343551,,Doubling of Small Business Rates Relief,LE11 2TU,"54,562.00",Yes
Communities & Local Government,DCLG,16/08/2016,Current (non AEF) Grants to Local Authorities,Local Government & Public Services,CHARNWOOD BC,,,,,5000343553,,Long Term Empty Property Relief,LE11 2TU,794,Yes
Communities & Local Government,DCLG,16/08/2016,Current (non AEF) Grants to Local Authorities,Local Government & Public Services,CHELMSFORD BC,,,,,5000343555,,Business Rates Multiplier Cap,CM1 1JE,"3,154.00",Yes
Communities & Local Government,DCLG,16/08/2016,Current (non AEF) Grants to Local Authorities,Local Government & Public Services,CHELMSFORD BC,,,,,5000343557,,Doubling of Small Business Rates Relief,CM1 1JE,"46,542.00",Yes
Communities & Local Government,DCLG,16/08/2016,Current (non AEF) Grants to Local Authorities,Local Government & Public Services,CHELMSFORD BC,,,,,5000343559,,Long Term Empty Property Relief,CM1 1JE,"1,258.00",Yes
Communities & Local Government,DCLG,16/08/2016,Current (non AEF) Grants to Local Authorities,Local Government & Public Services,CHELMSFORD BC,,,,,5000343563,,Extended Transitional Relief for Small and Medium,CM1 1JE,579,Yes
Communities & Local Government,DCLG,16/08/2016,Current (non AEF) Grants to Local Authorities,Local Government & Public Services,CHELTENHAM BC,,,,,5000343565,,Business Rates Multiplier Cap,GL50 1PW,"3,727.00",Yes
Communities & Local Government,DCLG,16/08/2016,Current (non AEF) Grants to Local Authorities,Local Government & Public Services,CHELTENHAM BC,,,,,5000343567,,Doubling of Small Business Rates Relief,GL50 1PW,"39,937.00",Yes
Communities & Local Government,DCLG,16/08/2016,Current (non AEF) Grants to Local Authorities,Local Government & Public Services,CHELTENHAM BC,,,,,5000343569,,Long Term Empty Property Relief,GL50 1PW,507,Yes
Communities & Local Government,DCLG,16/08/2016,Current (non AEF) Grants to Local Authorities,Local Government & Public Services,CHERWELL DC,,,,,5000342126,,Doubling of Small Business Rates Relief,OX15 4AA,"38,338.00",Yes
Communities & Local Government,DCLG,16/08/2016,Current (non AEF) Grants to Local Authorities,Local Government & Public Services,CHERWELL DC,,,,,5000342128,,Long Term Empty Property Relief,OX15 4AA,"1,009.00",Yes
Communities & Local Government,DCLG,16/08/2016,Current (non AEF) Grants to Local Authorities,Local Government & Public Services,CHERWELL DC,,,,,5000342132,,Business Rates Multiplier Cap,OX15 4AA,"9,034.00",Yes
Communities & Local Government,DCLG,16/08/2016,Current (non AEF) Grants to Local Authorities,Local Government & Public Services,CHESHIRE EAST COUNCIL,,Large,,,5000343671,,Business Rates Multiplier Cap,CW11 1HZ,"49,448.00",Yes
Communities & Local Government,DCLG,16/08/2016,Current (non AEF) Grants to Local Authorities,Local Government & Public Services,CHESHIRE EAST COUNCIL,,Large,,,5000343673,,Doubling of Small Business Rates Relief,CW11 1HZ,"185,764.00",Yes
Communities & Local Government,DCLG,16/08/2016,Current (non AEF) Grants to Local Authorities,Local Government & Public Services,CHESHIRE EAST COUNCIL,,Large,,,5000343675,,Long Term Empty Property Relief,CW11 1HZ,"4,063.00",Yes
Communities & Local Government,DCLG,16/08/2016,Current (non AEF) Grants to Local Authorities,Local Government & Public Services,CHESHIRE EAST COUNCIL,,Large,,,5000343677,,Extended Transitional Relief for Small and Medium,CW11 1HZ,294,Yes
Communities & Local Government,DCLG,16/08/2016,Current (non AEF) Grants to Local Authorities,Local Government & Public Services,CHESHIRE EAST COUNCIL,,Large,,,5000343679,,Small Business Rates Relief on Second Properties,CW11 1HZ,"1,952.00",Yes
Communities & Local Government,DCLG,16/08/2016,Current (non AEF) Grants to Local Authorities,Local Government & Public Services,CHESHIRE FIRE AUTHORITY,,,,424872737,5000343452,,Business Rates Multiplier Cap,CW7 2FQ,"10,625.00",Yes
Communities & Local Government,DCLG,16/08/2016,Current (non AEF) Grants to Local Authorities,Local Government & Public Services,CHESHIRE FIRE AUTHORITY,,,,424872737,5000343458,,Doubling of Small Business Rates Relief,CW7 2FQ,"8,676.00",Yes
Communities & Local Government,DCLG,16/08/2016,Current (non AEF) Grants to Local Authorities,Local Government & Public Services,CHESHIRE WEST & CHESTER UA,,Large,,215584383,5000343681,,Doubling of Small Business Rates Relief,CH1 2NP,"133,607.00",Yes
Communities & Local Government,DCLG,16/08/2016,Current (non AEF) Grants to Local Authorities,Local Government & Public Services,CHESHIRE WEST & CHESTER UA,,Large,,215584383,5000343683,,Long Term Empty Property Relief,CH1 2NP,"3,479.00",Yes
Communities & Local Government,DCLG,16/08/2016,Current (non AEF) Grants to Local Authorities,Local Government & Public Services,CHESHIRE WEST & CHESTER UA,,Large,,215584383,5000343685,,Extended Transitional Relief for Small and Medium,CH1 2NP,414,Yes
Communities & Local Government,DCLG,16/08/2016,Current (non AEF) Grants to Local Authorities,Local Government & Public Services,CHESHIRE WEST & CHESTER UA,,Large,,215584383,5000343687,,Small Business Rates Relief on Second Properties,CH1 2NP,869,Yes
Communities & Local Government,DCLG,16/08/2016,Current (non AEF) Grants to Local Authorities,Local Government & Public Services,CHESHIRE WEST & CHESTER UA,,Large,,215584383,5000343689,,Business Rates Multiplier Cap,CH1 2NP,"61,441.00",Yes
Communities & Local Government,DCLG,16/08/2016,Current (non AEF) Grants to Local Authorities,Local Government & Public Services,CHESHIRE WEST & CHESTER UA,,Large,,215584383,5000343691,,New Empty Property Relief,CH1 2NP,455,Yes
Communities & Local Government,DCLG,16/08/2016,Current (non AEF) Grants to Local Authorities,Local Government & Public Services,CHESTERFIELD BC,,,,232102301,5000343575,,Long Term Empty Property Relief,S40 1LP,"1,428.00",Yes
Communities & Local Government,DCLG,16/08/2016,Current (non AEF) Grants to Local Authorities,Local Government & Public Services,CHESTERFIELD BC,,,,232102301,5000343579,,Small Business Rates Relief on Second Properties,S40 1LP,261,Yes
Communities & Local Government,DCLG,16/08/2016,Current (non AEF) Grants to Local Authorities,Local Government & Public Services,CHESTERFIELD BC,,,,232102301,5000343581,,Business Rates Multiplier Cap,S40 1LP,"5,807.00",Yes
Communities & Local Government,DCLG,16/08/2016,Current (non AEF) Grants to Local Authorities,Local Government & Public Services,CHESTERFIELD BC,,,,232102301,5000343583,,Doubling of Small Business Rates Relief,S40 1LP,"48,110.00",Yes
Communities & Local Government,DCLG,16/08/2016,Current (non AEF) Grants to Local Authorities,Local Government & Public Services,CHICHESTER DC,,,,739800998,5000342134,,Long Term Empty Property Relief,PO19 1TY,338,Yes
Communities & Local Government,DCLG,16/08/2016,Current (non AEF) Grants to Local Authorities,Local Government & Public Services,CHICHESTER DC,,,,739800998,5000342135,,Business Rates Multiplier Cap,PO19 1TY,"3,870.00",Yes
Communities & Local Government,DCLG,16/08/2016,Current (non AEF) Grants to Local Authorities,Local Government & Public Services,CHICHESTER DC,,,,739800998,5000342137,,Doubling of Small Business Rates Relief,PO19 1TY,"55,077.00",Yes
Communities & Local Government,DCLG,16/08/2016,Current (non AEF) Grants to Local Authorities,Local Government & Public Services,CHICHESTER DC,,,,739800998,5000342141,,Small Business Rates Relief on Second Properties,PO19 1TY,560,Yes
Communities & Local Government,DCLG,16/08/2016,Current (non AEF) Grants to Local Authorities,Local Government & Public Services,CHICHESTER DC,,,,739800998,5000342143,,New Empty Property Relief,PO19 1TY,338,Yes
Communities & Local Government,DCLG,16/08/2016,Current (non AEF) Grants to Local Authorities,Local Government & Public Services,CHILTERN DC (HSG),,,,,5000342145,,Doubling of Small Business Rates Relief,HP6 5AW,"25,619.00",Yes
Communities & Local Government,DCLG,16/08/2016,Current (non AEF) Grants to Local Authorities,Local Government & Public Services,CHILTERN DC (HSG),,,,,5000342149,,Business Rates Multiplier Cap,HP6 5AW,"2,149.00",Yes
Communities & Local Government,DCLG,16/08/2016,Current (non AEF) Grants to Local Authorities,Local Government & Public Services,CHORLEY BOROUGH COUNCIL,,,,236415576,5000343585,,Extended Transitional Relief for Small and Medium,PR7 1DP,558,Yes
Communities & Local Government,DCLG,16/08/2016,Current (non AEF) Grants to Local Authorities,Local Government & Public Services,CHORLEY BOROUGH COUNCIL,,,,236415576,5000343587,,Long Term Empty Property Relief,PR7 1DP,351,Yes
Communities & Local Government,DCLG,16/08/2016,Current (non AEF) Grants to Local Authorities,Local Government & Public Services,CHORLEY BOROUGH COUNCIL,,,,236415576,5000343589,,Business Rates Multiplier Cap,PR7 1DP,"4,560.00",Yes
Communities & Local Government,DCLG,16/08/2016,Current (non AEF) Grants to Local Authorities,Local Government & Public Services,CHORLEY BOROUGH COUNCIL,,,,236415576,5000343592,,Doubling of Small Business Rates Relief,PR7 1DP,"43,127.00",Yes
Communities & Local Government,DCLG,16/08/2016,Current (non AEF) Grants to Local Authorities,Local Government & Public Services,CHRISTCHURCH BC (HSG),,,,227415213,5000342151,,Business Rates Multiplier Cap,BH23 1AZ,"1,789.00",Yes
Communities & Local Government,DCLG,16/08/2016,Current (non AEF) Grants to Local Authorities,Local Government & Public Services,CHRISTCHURCH BC (HSG),,,,227415213,5000342153,,Doubling of Small Business Rates Relief,BH23 1AZ,"21,237.00",Yes
Communities & Local Government,DCLG,16/08/2016,Current (non AEF) Grants to Local Authorities,Local Government & Public Services,CHRISTCHURCH BC (HSG),,,,227415213,5000342155,,Long Term Empty Property Relief,BH23 1AZ,702,Yes
Communities & Local Government,DCLG,16/08/2016,Current (non AEF) Grants to Local Authorities,Local Government & Public Services,CITY OF LINCOLN COUNCIL,,,,,5000342348,,Business Rates Multiplier Cap,LN1 1DB,"5,241.00",Yes
Communities & Local Government,DCLG,16/08/2016,Current (non AEF) Grants to Local Authorities,Local Government & Public Services,CITY OF LINCOLN COUNCIL,,,,,5000342350,,Doubling of Small Business Rates Relief,LN1 1DB,"32,563.00",Yes
Communities & Local Government,DCLG,16/08/2016,Current (non AEF) Grants to Local Authorities,Local Government & Public Services,CITY OF LINCOLN COUNCIL,,,,,5000342352,,New Empty Property Relief,LN1 1DB,"5,980.00",Yes
Communities & Local Government,DCLG,16/08/2016,Current (non AEF) Grants to Local Authorities,Local Government & Public Services,CITY OF LINCOLN COUNCIL,,,,,5000342354,,Long Term Empty Property Relief,LN1 1DB,"4,477.00",Yes
Communities & Local Government,DCLG,16/08/2016,Current (non AEF) Grants to Local Authorities,Local Government & Public Services,CITY OF LONDON (HSG),,,,217471460,5000342161,,Extended Transitional Relief for Small and Medium,EC2P 2EJ,255,Yes
Communities & Local Government,DCLG,16/08/2016,Current (non AEF) Grants to Local Authorities,Local Government & Public Services,CITY OF LONDON (HSG),,,,217471460,5000342163,,Business Rates Multiplier Cap,EC2P 2EJ,"44,620.00",Yes
Communities & Local Government,DCLG,16/08/2016,Current (non AEF) Grants to Local Authorities,Local Government & Public Services,CITY OF LONDON (HSG),,,,217471460,5000342165,,Doubling of Small Business Rates Relief,EC2P 2EJ,"5,577.00",Yes
Communities & Local Government,DCLG,16/08/2016,Current (non AEF) Grants to Local Authorities,Local Government & Public Services,CITY OF LONDON (HSG),,,,217471460,5000342167,,New Empty Property Relief,EC2P 2EJ,"3,560.00",Yes
Communities & Local Government,DCLG,16/08/2016,Current (non AEF) Grants to Local Authorities,Local Government & Public Services,CITY OF LONDON (HSG),,,,217471460,5000342169,,Long Term Empty Property Relief,EC2P 2EJ,"2,223.00",Yes
Communities & Local Government,DCLG,16/08/2016,Current (non AEF) Grants to Local Authorities,Local Government & Public Services,CITY OF SUNDERLAND (HSG),,,,215599312,5000342171,,Extended Transitional Relief for Small and Medium,SR2 7DN,828,Yes
Communities & Local Government,DCLG,16/08/2016,Current (non AEF) Grants to Local Authorities,Local Government & Public Services,CITY OF SUNDERLAND (HSG),,,,215599312,5000342173,,Business Rates Multiplier Cap,SR2 7DN,"97,060.00",Yes
Communities & Local Government,DCLG,16/08/2016,Current (non AEF) Grants to Local Authorities,Local Government & Public Services,CITY OF SUNDERLAND (HSG),,,,215599312,5000342175,,Doubling of Small Business Rates Relief,SR2 7DN,"97,635.00",Yes
Communities & Local Government,DCLG,16/08/2016,Current (non AEF) Grants to Local Authorities,Local Government & Public Services,CITY OF SUNDERLAND (HSG),,,,215599312,5000342177,,Long Term Empty Property Relief,SR2 7DN,"2,584.00",Yes
Communities & Local Government,DCLG,16/08/2016,Current (non AEF) Grants to Local Authorities,Local Government & Public Services,CITY OF WAKEFIELD MDC,,,,,5000343064,,Business Rates Multiplier Cap,WF1 2QW,"81,824.00",Yes
Communities & Local Government,DCLG,16/08/2016,Current (non AEF) Grants to Local Authorities,Local Government & Public Services,CITY OF WAKEFIELD MDC,,,,,5000343066,,Doubling of Small Business Rates Relief,WF1 2QW,"165,482.00",Yes
Communities & Local Government,DCLG,16/08/2016,Current (non AEF) Grants to Local Authorities,Local Government & Public Services,CITY OF WAKEFIELD MDC,,,,,5000343070,,Long Term Empty Property Relief,WF1 2QW,"4,088.00",Yes
Communities & Local Government,DCLG,16/08/2016,Current (non AEF) Grants to Local Authorities,Local Government & Public Services,CITY OF WAKEFIELD MDC,,,,,5000343072,,Small Business Rates Relief on Second Properties,WF1 2QW,414,Yes
Communities & Local Government,DCLG,16/08/2016,Current (non AEF) Grants to Local Authorities,Local Government & Public Services,CITY OF WAKEFIELD MDC,,,,,5000343074,,Extended Transitional Relief for Small and Medium,WF1 2QW,828,Yes
Communities & Local Government,DCLG,16/08/2016,Current (non AEF) Grants to Local Authorities,Local Government & Public Services,CLEVELAND FIRE AUTHORITY,,Medium,,424872778,5000343416,,Business Rates Multiplier Cap,TS25 5TB,"10,126.00",Yes
Communities & Local Government,DCLG,16/08/2016,Current (non AEF) Grants to Local Authorities,Local Government & Public Services,CLEVELAND FIRE AUTHORITY,,Medium,,424872778,5000343418,,Doubling of Small Business Rates Relief,TS25 5TB,"4,343.00",Yes
Communities & Local Government,DCLG,16/08/2016,Current (non AEF) Grants to Local Authorities,Local Government & Public Services,CO DURHAM & DARLINGTON FIRE & RESCU,,,,424872851,5000343548,,Business Rates Multiplier Cap,DH1 1TW,"7,850.00",Yes
Communities & Local Government,DCLG,16/08/2016,Current (non AEF) Grants to Local Authorities,Local Government & Public Services,CO DURHAM & DARLINGTON FIRE & RESCU,,,,424872851,5000343550,,Doubling of Small Business Rates Relief,DH1 1TW,"5,163.00",Yes
Communities & Local Government,DCLG,16/08/2016,Current (non AEF) Grants to Local Authorities,Local Government & Public Services,COLCHESTER BC,,,,,5000343594,,Extended Transitional Relief for Small and Medium,CO3 3WG,469,Yes
Communities & Local Government,DCLG,16/08/2016,Current (non AEF) Grants to Local Authorities,Local Government & Public Services,COLCHESTER BC,,,,,5000343598,,Business Rates Multiplier Cap,CO3 3WG,"6,355.00",Yes
Communities & Local Government,DCLG,16/08/2016,Current (non AEF) Grants to Local Authorities,Local Government & Public Services,COLCHESTER BC,,,,,5000343600,,Doubling of Small Business Rates Relief,CO3 3WG,"53,612.00",Yes
Communities & Local Government,DCLG,16/08/2016,Current (non AEF) Grants to Local Authorities,Local Government & Public Services,COLCHESTER BC,,,,,5000343602,,New Empty Property Relief,CO3 3WG,"4,839.00",Yes
Communities & Local Government,DCLG,16/08/2016,Current (non AEF) Grants to Local Authorities,Local Government & Public Services,COPELAND BC,,,,236414827,5000342181,,Extended Transitional Relief for Small and Medium,CA28 7NY,338,Yes
Communities & Local Government,DCLG,16/08/2016,Current (non AEF) Grants to Local Authorities,Local Government & Public Services,COPELAND BC,,,,236414827,5000342183,,Business Rates Multiplier Cap,CA28 7NY,"1,655.00",Yes
Communities & Local Government,DCLG,16/08/2016,Current (non AEF) Grants to Local Authorities,Local Government & Public Services,COPELAND BC,,,,236414827,5000342185,,Doubling of Small Business Rates Relief,CA28 7NY,"25,543.00",Yes
Communities & Local Government,DCLG,16/08/2016,Current (non AEF) Grants to Local Authorities,Local Government & Public Services,COPELAND BC,,,,236414827,5000342187,,Long Term Empty Property Relief,CA28 7NY,250,Yes
Communities & Local Government,DCLG,16/08/2016,Current (non AEF) Grants to Local Authorities,Local Government & Public Services,CORBY BC,,,,,5000342189,,Business Rates Multiplier Cap,NN17 1GD,"3,687.00",Yes
Communities & Local Government,DCLG,16/08/2016,Current (non AEF) Grants to Local Authorities,Local Government & Public Services,CORBY BC,,,,,5000342191,,Long Term Empty Property Relief,NN17 1GD,"1,691.00",Yes
Communities & Local Government,DCLG,16/08/2016,Current (non AEF) Grants to Local Authorities,Local Government & Public Services,CORBY BC,,,,,5000342193,,Doubling of Small Business Rates Relief,NN17 1GD,"19,832.00",Yes
Communities & Local Government,DCLG,16/08/2016,Current (non AEF) Grants to Local Authorities,Local Government & Public Services,CORNWALL UNITARY AUTHORITY,,,,211334404,5000343715,,Doubling of Small Business Rates Relief,TR1 3AY,"508,891.00",Yes
Communities & Local Government,DCLG,16/08/2016,Current (non AEF) Grants to Local Authorities,Local Government & Public Services,CORNWALL UNITARY AUTHORITY,,,,211334404,5000343717,,Business Rates Multiplier Cap,TR1 3AY,"118,471.00",Yes
Communities & Local Government,DCLG,16/08/2016,Current (non AEF) Grants to Local Authorities,Local Government & Public Services,CORNWALL UNITARY AUTHORITY,,,,211334404,5000343719,,New Empty Property Relief,TR1 3AY,634,Yes
Communities & Local Government,DCLG,16/08/2016,Current (non AEF) Grants to Local Authorities,Local Government & Public Services,CORNWALL UNITARY AUTHORITY,,,,211334404,5000343721,,Long Term Empty Property Relief,TR1 3AY,"1,444.00",Yes
Communities & Local Government,DCLG,16/08/2016,Current (non AEF) Grants to Local Authorities,Local Government & Public Services,CORNWALL UNITARY AUTHORITY,,,,211334404,5000343722,,Extended Transitional Relief for Small and Medium,TR1 3AY,"6,927.00",Yes
Communities & Local Government,DCLG,16/08/2016,Current (non AEF) Grants to Local Authorities,Local Government & Public Services,CORNWALL UNITARY AUTHORITY,,,,211334404,5000343724,,Small Business Rates Relief on Second Properties,TR1 3AY,"1,249.00",Yes
Communities & Local Government,DCLG,16/08/2016,Current (non AEF) Grants to Local Authorities,Local Government & Public Services,COTSWOLD DC,,,,232462085,5000342195,,Business Rates Multiplier Cap,GL7 1PX,"2,514.00",Yes
Communities & Local Government,DCLG,16/08/2016,Current (non AEF) Grants to Local Authorities,Local Government & Public Services,COTSWOLD DC,,,,232462085,5000342197,,Doubling of Small Business Rates Relief,GL7 1PX,"51,267.00",Yes
Communities & Local Government,DCLG,16/08/2016,Current (non AEF) Grants to Local Authorities,Local Government & Public Services,COTSWOLD DC,,,,232462085,5000342205,,Extended Transitional Relief for Small and Medium,GL7 1PX,514,Yes
Communities & Local Government,DCLG,16/08/2016,Current (non AEF) Grants to Local Authorities,Local Government & Public Services,COVENTRY CITY CNCL,,,,210384802,5000343604,,Extended Transitional Relief for Small and Medium,CV1 2QL,276,Yes
Communities & Local Government,DCLG,16/08/2016,Current (non AEF) Grants to Local Authorities,Local Government & Public Services,COVENTRY CITY CNCL,,,,210384802,5000343606,,Business Rates Multiplier Cap,CV1 2QL,"89,832.00",Yes
Communities & Local Government,DCLG,16/08/2016,Current (non AEF) Grants to Local Authorities,Local Government & Public Services,COVENTRY CITY CNCL,,,,210384802,5000343608,,Doubling of Small Business Rates Relief,CV1 2QL,"115,972.00",Yes
Communities & Local Government,DCLG,16/08/2016,Current (non AEF) Grants to Local Authorities,Local Government & Public Services,COVENTRY CITY CNCL,,,,210384802,5000343610,,New Empty Property Relief,CV1 2QL,379,Yes
Communities & Local Government,DCLG,16/08/2016,Current (non AEF) Grants to Local Authorities,Local Government & Public Services,COVENTRY CITY CNCL,,,,210384802,5000343612,,Long Term Empty Property Relief,CV1 2QL,"3,878.00",Yes
Communities & Local Government,DCLG,16/08/2016,Current (non AEF) Grants to Local Authorities,Local Government & Public Services,CRAVEN DC (HSG),,,,,5000342206,,Doubling of Small Business Rates Relief,BD23 1FJ,"39,387.00",Yes
Communities & Local Government,DCLG,16/08/2016,Current (non AEF) Grants to Local Authorities,Local Government & Public Services,CRAVEN DC (HSG),,,,,5000342210,,Long Term Empty Property Relief,BD23 1FJ,821,Yes
Communities & Local Government,DCLG,16/08/2016,Current (non AEF) Grants to Local Authorities,Local Government & Public Services,CRAVEN DC (HSG),,,,,5000342212,,Business Rates Multiplier Cap,BD23 1FJ,"1,834.00",Yes
Communities & Local Government,DCLG,16/08/2016,Current (non AEF) Grants to Local Authorities,Local Government & Public Services,CRAWLEY BC,,,,211222500,5000342218,,Doubling of Small Business Rates Relief,RH10 1UZ,"13,436.00",Yes
Communities & Local Government,DCLG,16/08/2016,Current (non AEF) Grants to Local Authorities,Local Government & Public Services,CRAWLEY BC,,,,211222500,5000342220,,Business Rates Multiplier Cap,RH10 1UZ,"6,985.00",Yes
Communities & Local Government,DCLG,16/08/2016,Current (non AEF) Grants to Local Authorities,Local Government & Public Services,CRAWLEY BC,,,,211222500,5000342222,,New Empty Property Relief,RH10 1UZ,"3,749.00",Yes
Communities & Local Government,DCLG,16/08/2016,Current (non AEF) Grants to Local Authorities,Local Government & Public Services,CRAWLEY BC,,,,211222500,5000342224,,Long Term Empty Property Relief,RH10 1UZ,"2,411.00",Yes
Communities & Local Government,DCLG,16/08/2016,Current (non AEF) Grants to Local Authorities,Local Government & Public Services,CROYDON LB,,,,212419973,5000343614,,Doubling of Small Business Rates Relief,CR9 3JS,"77,896.00",Yes
Communities & Local Government,DCLG,16/08/2016,Current (non AEF) Grants to Local Authorities,Local Government & Public Services,CROYDON LB,,,,212419973,5000343616,,Business Rates Multiplier Cap,CR9 3JS,"79,499.00",Yes
Communities & Local Government,DCLG,16/08/2016,Current (non AEF) Grants to Local Authorities,Local Government & Public Services,CROYDON LB,,,,212419973,5000343620,,Extended Transitional Relief for Small and Medium,CR9 3JS,"33,546.00",Yes
Communities & Local Government,DCLG,16/08/2016,Current (non AEF) Grants to Local Authorities,Local Government & Public Services,CUMBRIA COUNTY CNCL,,,,211316542,5000343622,,Extended Transitional Relief for Small and Medium,CA3 8NA,334,Yes
Communities & Local Government,DCLG,16/08/2016,Current (non AEF) Grants to Local Authorities,Local Government & Public Services,CUMBRIA COUNTY CNCL,,,,211316542,5000343624,,Business Rates Multiplier Cap,CA3 8NA,"98,716.00",Yes
Communities & Local Government,DCLG,16/08/2016,Current (non AEF) Grants to Local Authorities,Local Government & Public Services,CUMBRIA COUNTY CNCL,,,,211316542,5000343626,,Doubling of Small Business Rates Relief,CA3 8NA,"73,597.00",Yes
Communities & Local Government,DCLG,16/08/2016,Current (non AEF) Grants to Local Authorities,Local Government & Public Services,CUMBRIA COUNTY CNCL,,,,211316542,5000343630,,Long Term Empty Property Relief,CA3 8NA,986,Yes
Communities & Local Government,DCLG,16/08/2016,Current (non AEF) Grants to Local Authorities,Local Government & Public Services,CUMBRIA COUNTY CNCL,,,,211316542,5000343632,,Small Business Rates Relief on Second Properties,CA3 8NA,443,Yes
Communities & Local Government,DCLG,16/08/2016,Current (non AEF) Grants to Local Authorities,Local Government & Public Services,DACORUM BC,,,,236448643,5000343634,,Business Rates Multiplier Cap,HP1 1HH,"3,037.00",Yes
Communities & Local Government,DCLG,16/08/2016,Current (non AEF) Grants to Local Authorities,Local Government & Public Services,DACORUM BC,,,,236448643,5000343636,,Doubling of Small Business Rates Relief,HP1 1HH,"37,754.00",Yes
Communities & Local Government,DCLG,16/08/2016,Current (non AEF) Grants to Local Authorities,Local Government & Public Services,DARLINGTON BC,,,,,5000343642,,Doubling of Small Business Rates Relief,TS19 1JA,"50,315.00",Yes
Communities & Local Government,DCLG,16/08/2016,Current (non AEF) Grants to Local Authorities,Local Government & Public Services,DARLINGTON BC,,,,,5000343644,,Long Term Empty Property Relief,TS19 1JA,"1,977.00",Yes
Communities & Local Government,DCLG,16/08/2016,Current (non AEF) Grants to Local Authorities,Local Government & Public Services,DARLINGTON BC,,,,,5000343646,,Business Rates Multiplier Cap,TS19 1JA,"25,921.00",Yes
Communities & Local Government,DCLG,16/08/2016,Current (non AEF) Grants to Local Authorities,Local Government & Public Services,DARLINGTON BC,,,,,5000343648,,New Empty Property Relief,TS19 1JA,"5,149.00",Yes
Communities & Local Government,DCLG,16/08/2016,Current (non AEF) Grants to Local Authorities,Local Government & Public Services,DARTFORD BC,,,,225694942,5000342228,,Business Rates Multiplier Cap,DA1 1DR,"5,025.00",Yes
Communities & Local Government,DCLG,16/08/2016,Current (non AEF) Grants to Local Authorities,Local Government & Public Services,DARTFORD BC,,,,225694942,5000342230,,Doubling of Small Business Rates Relief,DA1 1DR,"23,147.00",Yes
Communities & Local Government,DCLG,16/08/2016,Current (non AEF) Grants to Local Authorities,Local Government & Public Services,DARTFORD BC,,,,225694942,5000342234,,Small Business Rates Relief on Second Properties,DA1 1DR,285,Yes
Communities & Local Government,DCLG,16/08/2016,Current (non AEF) Grants to Local Authorities,Local Government & Public Services,DAVENTRY DC,,,,239859333,5000342236,,Doubling of Small Business Rates Relief,NN11 5AF,"28,896.00",Yes
Communities & Local Government,DCLG,16/08/2016,Current (non AEF) Grants to Local Authorities,Local Government & Public Services,DAVENTRY DC,,,,239859333,5000342238,,Business Rates Multiplier Cap,NN11 5AF,"5,998.00",Yes
Communities & Local Government,DCLG,16/08/2016,Current (non AEF) Grants to Local Authorities,Local Government & Public Services,DERBY CITY CNCL,,,,229641378,5000343650,,Business Rates Multiplier Cap,DE1 2FS,"70,576.00",Yes
Communities & Local Government,DCLG,16/08/2016,Current (non AEF) Grants to Local Authorities,Local Government & Public Services,DERBY CITY CNCL,,,,229641378,5000343652,,Doubling of Small Business Rates Relief,DE1 2FS,"88,172.00",Yes
Communities & Local Government,DCLG,16/08/2016,Current (non AEF) Grants to Local Authorities,Local Government & Public Services,DERBY CITY CNCL,,,,229641378,5000343654,,New Empty Property Relief,DE1 2FS,"2,071.00",Yes
Communities & Local Government,DCLG,16/08/2016,Current (non AEF) Grants to Local Authorities,Local Government & Public Services,DERBYSHIRE COUNTYCOUNCIL,,,,232152967,5000343658,,Doubling of Small Business Rates Relief,DE4 3AG,"68,823.00",Yes
Communities & Local Government,DCLG,16/08/2016,Current (non AEF) Grants to Local Authorities,Local Government & Public Services,DERBYSHIRE COUNTYCOUNCIL,,,,232152967,5000343660,,Long Term Empty Property Relief,DE4 3AG,614,Yes
Communities & Local Government,DCLG,16/08/2016,Current (non AEF) Grants to Local Authorities,Local Government & Public Services,DERBYSHIRE COUNTYCOUNCIL,,,,232152967,5000343662,,Extended Transitional Relief for Small and Medium,DE4 3AG,791,Yes
Communities & Local Government,DCLG,16/08/2016,Current (non AEF) Grants to Local Authorities,Local Government & Public Services,DERBYSHIRE COUNTYCOUNCIL,,,,232152967,5000343666,,Business Rates Multiplier Cap,DE4 3AG,"125,887.00",Yes
Communities & Local Government,DCLG,16/08/2016,Current (non AEF) Grants to Local Authorities,Local Government & Public Services,DERBYSHIRE DALES DC,,,,,5000342240,,Business Rates Multiplier Cap,DE4 3NN,"2,117.00",Yes
Communities & Local Government,DCLG,16/08/2016,Current (non AEF) Grants to Local Authorities,Local Government & Public Services,DERBYSHIRE DALES DC,,,,,5000342242,,Doubling of Small Business Rates Relief,DE4 3NN,"45,705.00",Yes
Communities & Local Government,DCLG,16/08/2016,Current (non AEF) Grants to Local Authorities,Local Government & Public Services,DERBYSHIRE DALES DC,,,,,5000342244,,Extended Transitional Relief for Small and Medium,DE4 3NN,342,Yes
Communities & Local Government,DCLG,16/08/2016,Current (non AEF) Grants to Local Authorities,Local Government & Public Services,DERBYSHIRE FIRE AND RESCUE SERVICE,,,,424872935,5000343562,,Business Rates Multiplier Cap,DE23 6EH,"10,185.00",Yes
Communities & Local Government,DCLG,16/08/2016,Current (non AEF) Grants to Local Authorities,Local Government & Public Services,DERBYSHIRE FIRE AND RESCUE SERVICE,,,,424872935,5000343566,,Doubling of Small Business Rates Relief,DE23 6EH,"9,446.00",Yes
Communities & Local Government,DCLG,16/08/2016,Current (non AEF) Grants to Local Authorities,Local Government & Public Services,DEVON & SOMERSET FIRE & RESCUE SERV,,Large,,424872976,5000343498,,Doubling of Small Business Rates Relief,EX3 0NW,"20,906.00",Yes
Communities & Local Government,DCLG,16/08/2016,Current (non AEF) Grants to Local Authorities,Local Government & Public Services,DEVON & SOMERSET FIRE & RESCUE SERV,,Large,,424872976,5000343504,,Long Term Empty Property Relief,EX3 0NW,281,Yes
Communities & Local Government,DCLG,16/08/2016,Current (non AEF) Grants to Local Authorities,Local Government & Public Services,DEVON & SOMERSET FIRE & RESCUE SERV,,Large,,424872976,5000343508,,Business Rates Multiplier Cap,EX3 0NW,"17,720.00",Yes
Communities & Local Government,DCLG,16/08/2016,Current (non AEF) Grants to Local Authorities,Local Government & Public Services,DEVON COUNTY CNCL,,,,213754018,5000343670,,Long Term Empty Property Relief,EX2 4QJ,455,Yes
Communities & Local Government,DCLG,16/08/2016,Current (non AEF) Grants to Local Authorities,Local Government & Public Services,DEVON COUNTY CNCL,,,,213754018,5000343672,,Doubling of Small Business Rates Relief,EX2 4QJ,"102,147.00",Yes
Communities & Local Government,DCLG,16/08/2016,Current (non AEF) Grants to Local Authorities,Local Government & Public Services,DEVON COUNTY CNCL,,,,213754018,5000343674,,Extended Transitional Relief for Small and Medium,EX2 4QJ,"1,280.00",Yes
Communities & Local Government,DCLG,16/08/2016,Current (non AEF) Grants to Local Authorities,Local Government & Public Services,DEVON COUNTY CNCL,,,,213754018,5000343678,,Business Rates Multiplier Cap,EX2 4QJ,"113,678.00",Yes
Communities & Local Government,DCLG,16/08/2016,Current (non AEF) Grants to Local Authorities,Local Government & Public Services,DEVON COUNTY CNCL,,,,213754018,5000343680,,New Empty Property Relief,EX2 4QJ,462,Yes
Communities & Local Government,DCLG,16/08/2016,Current (non AEF) Grants to Local Authorities,Local Government & Public Services,DONCASTER MBC,,,,,5000343682,,Long Term Empty Property Relief,DN1 3QA,"1,734.00",Yes
Communities & Local Government,DCLG,16/08/2016,Current (non AEF) Grants to Local Authorities,Local Government & Public Services,DONCASTER MBC,,,,,5000343684,,Extended Transitional Relief for Small and Medium,DN1 3QA,823,Yes
Communities & Local Government,DCLG,16/08/2016,Current (non AEF) Grants to Local Authorities,Local Government & Public Services,DONCASTER MBC,,,,,5000343686,,Small Business Rates Relief on Second Properties,DN1 3QA,"1,128.00",Yes
Communities & Local Government,DCLG,16/08/2016,Current (non AEF) Grants to Local Authorities,Local Government & Public Services,DONCASTER MBC,,,,,5000343688,,Business Rates Multiplier Cap,DN1 3QA,"90,460.00",Yes
Communities & Local Government,DCLG,16/08/2016,Current (non AEF) Grants to Local Authorities,Local Government & Public Services,DONCASTER MBC,,,,,5000343690,,New Empty Property Relief,DN1 3QA,"1,691.00",Yes
Communities & Local Government,DCLG,16/08/2016,Current (non AEF) Grants to Local Authorities,Local Government & Public Services,DONCASTER MBC,,,,,5000343692,,Doubling of Small Business Rates Relief,DN1 3QA,"126,968.00",Yes
Communities & Local Government,DCLG,16/08/2016,Current (non AEF) Grants to Local Authorities,Local Government & Public Services,DORSET & WILTSHIRE FIRE & RESCUE AU,,Large,,,5000343748,,Business Rates Multiplier Cap,SP1 3NR,"11,487.00",Yes
Communities & Local Government,DCLG,16/08/2016,Current (non AEF) Grants to Local Authorities,Local Government & Public Services,DORSET & WILTSHIRE FIRE & RESCUE AU,,Large,,,5000343752,,Doubling of Small Business Rates Relief,SP1 3NR,"14,052.00",Yes
Communities & Local Government,DCLG,16/08/2016,Current (non AEF) Grants to Local Authorities,Local Government & Public Services,DORSET COUNTY CNCL,,,,225431279,5000343696,,Business Rates Multiplier Cap,DT1 1XJ,"43,745.00",Yes
Communities & Local Government,DCLG,16/08/2016,Current (non AEF) Grants to Local Authorities,Local Government & Public Services,DORSET COUNTY CNCL,,,,225431279,5000343698,,New Empty Property Relief,DT1 1XJ,411,Yes
Communities & Local Government,DCLG,16/08/2016,Current (non AEF) Grants to Local Authorities,Local Government & Public Services,DORSET COUNTY CNCL,,,,225431279,5000343700,,Extended Transitional Relief for Small and Medium,DT1 1XJ,294,Yes
Communities & Local Government,DCLG,16/08/2016,Current (non AEF) Grants to Local Authorities,Local Government & Public Services,DORSET COUNTY CNCL,,,,225431279,5000343702,,Doubling of Small Business Rates Relief,DT1 1XJ,"48,027.00",Yes
Communities & Local Government,DCLG,16/08/2016,Current (non AEF) Grants to Local Authorities,Local Government & Public Services,DORSET COUNTY CNCL,,,,225431279,5000343704,,Long Term Empty Property Relief,DT1 1XJ,312,Yes
Communities & Local Government,DCLG,16/08/2016,Current (non AEF) Grants to Local Authorities,Local Government & Public Services,DOVER DC,,,,,5000342246,,Business Rates Multiplier Cap,CT16 3PD,"5,067.00",Yes
Communities & Local Government,DCLG,16/08/2016,Current (non AEF) Grants to Local Authorities,Local Government & Public Services,DOVER DC,,,,,5000342248,,Doubling of Small Business Rates Relief,CT16 3PD,"43,799.00",Yes
Communities & Local Government,DCLG,16/08/2016,Current (non AEF) Grants to Local Authorities,Local Government & Public Services,DOVER DC,,,,,5000342250,,Long Term Empty Property Relief,CT16 3PD,710,Yes
Communities & Local Government,DCLG,16/08/2016,Current (non AEF) Grants to Local Authorities,Local Government & Public Services,DOVER DC,,,,,5000342254,,Extended Transitional Relief for Small and Medium,CT16 3PD,372,Yes
Communities & Local Government,DCLG,16/08/2016,Current (non AEF) Grants to Local Authorities,Local Government & Public Services,DUDLEY MBC,,,,,5000343706,,Small Business Rates Relief on Second Properties,DY1 1HF,682,Yes
Communities & Local Government,DCLG,16/08/2016,Current (non AEF) Grants to Local Authorities,Local Government & Public Services,DUDLEY MBC,,,,,5000343708,,New Empty Property Relief,DY1 1HF,"4,142.00",Yes
Communities & Local Government,DCLG,16/08/2016,Current (non AEF) Grants to Local Authorities,Local Government & Public Services,DUDLEY MBC,,,,,5000343710,,Extended Transitional Relief for Small and Medium,DY1 1HF,280,Yes
Communities & Local Government,DCLG,16/08/2016,Current (non AEF) Grants to Local Authorities,Local Government & Public Services,DUDLEY MBC,,,,,5000343712,,Business Rates Multiplier Cap,DY1 1HF,"73,520.00",Yes
Communities & Local Government,DCLG,16/08/2016,Current (non AEF) Grants to Local Authorities,Local Government & Public Services,DUDLEY MBC,,,,,5000343714,,Doubling of Small Business Rates Relief,DY1 1HF,"153,342.00",Yes
Communities & Local Government,DCLG,16/08/2016,Current (non AEF) Grants to Local Authorities,Local Government & Public Services,DUDLEY MBC,,,,,5000343716,,Long Term Empty Property Relief,DY1 1HF,"2,795.00",Yes
Communities & Local Government,DCLG,16/08/2016,Current (non AEF) Grants to Local Authorities,Local Government & Public Services,DURHAM COUNTY COUNCIL,,,,224004882,5000343726,,Business Rates Multiplier Cap,DH1 5UE,"139,605.00",Yes
Communities & Local Government,DCLG,16/08/2016,Current (non AEF) Grants to Local Authorities,Local Government & Public Services,DURHAM COUNTY COUNCIL,,,,224004882,5000343728,,Long Term Empty Property Relief,DH1 5UE,"1,393.00",Yes
Communities & Local Government,DCLG,16/08/2016,Current (non AEF) Grants to Local Authorities,Local Government & Public Services,DURHAM COUNTY COUNCIL,,,,224004882,5000343730,,Small Business Rates Relief on Second Properties,DH1 5UE,616,Yes
Communities & Local Government,DCLG,16/08/2016,Current (non AEF) Grants to Local Authorities,Local Government & Public Services,DURHAM COUNTY COUNCIL,,,,224004882,5000343732,,Doubling of Small Business Rates Relief,DH1 5UE,"202,658.00",Yes
Communities & Local Government,DCLG,16/08/2016,Current (non AEF) Grants to Local Authorities,Local Government & Public Services,DURHAM COUNTY COUNCIL,,,,224004882,5000343734,,Extended Transitional Relief for Small and Medium,DH1 5UE,422,Yes
Communities & Local Government,DCLG,16/08/2016,Current (non AEF) Grants to Local Authorities,Local Government & Public Services,EALING LB,,,,,5000343718,,Doubling of Small Business Rates Relief,W5 2HL,"59,632.00",Yes
Communities & Local Government,DCLG,16/08/2016,Current (non AEF) Grants to Local Authorities,Local Government & Public Services,EALING LB,,,,,5000343720,,Business Rates Multiplier Cap,W5 2HL,"87,274.00",Yes
Communities & Local Government,DCLG,16/08/2016,Current (non AEF) Grants to Local Authorities,Local Government & Public Services,EALING LB,,,,,5000343723,,New Empty Property Relief,W5 2HL,"13,321.00",Yes
Communities & Local Government,DCLG,16/08/2016,Current (non AEF) Grants to Local Authorities,Local Government & Public Services,EALING LB,,,,,5000343725,,Small Business Rates Relief on Second Properties,W5 2HL,395,Yes
Communities & Local Government,DCLG,16/08/2016,Current (non AEF) Grants to Local Authorities,Local Government & Public Services,EALING LB,,,,,5000343727,,Long Term Empty Property Relief,W5 2HL,"1,814.00",Yes
Communities & Local Government,DCLG,16/08/2016,Current (non AEF) Grants to Local Authorities,Local Government & Public Services,EAST CAMBRIDGESHIRE DC,,,,236472023,5000342259,,Business Rates Multiplier Cap,CB7 4PL,"3,593.00",Yes
Communities & Local Government,DCLG,16/08/2016,Current (non AEF) Grants to Local Authorities,Local Government & Public Services,EAST CAMBRIDGESHIRE DC,,,,236472023,5000342263,,Doubling of Small Business Rates Relief,CB7 4PL,"27,311.00",Yes
Communities & Local Government,DCLG,16/08/2016,Current (non AEF) Grants to Local Authorities,Local Government & Public Services,EAST DEVON DC,,,,,5000342265,,Doubling of Small Business Rates Relief,EX10 8HL,"73,760.00",Yes
Communities & Local Government,DCLG,16/08/2016,Current (non AEF) Grants to Local Authorities,Local Government & Public Services,EAST DEVON DC,,,,,5000342269,,Extended Transitional Relief for Small and Medium,EX10 8HL,"1,167.00",Yes
Communities & Local Government,DCLG,16/08/2016,Current (non AEF) Grants to Local Authorities,Local Government & Public Services,EAST DEVON DC,,,,,5000342271,,Business Rates Multiplier Cap,EX10 8HL,"3,747.00",Yes
Communities & Local Government,DCLG,16/08/2016,Current (non AEF) Grants to Local Authorities,Local Government & Public Services,EAST DORSET DC,,,,228470456,5000343731,,Business Rates Multiplier Cap,BH21 4HN,"1,835.00",Yes
Communities & Local Government,DCLG,16/08/2016,Current (non AEF) Grants to Local Authorities,Local Government & Public Services,EAST DORSET DC,,,,228470456,5000343733,,Doubling of Small Business Rates Relief,BH21 4HN,"35,225.00",Yes
Communities & Local Government,DCLG,16/08/2016,Current (non AEF) Grants to Local Authorities,Local Government & Public Services,EAST HAMPSHIRE DC,,,,,5000342273,,Small Business Rates Relief on Second Properties,GU31 4EX,944,Yes
Communities & Local Government,DCLG,16/08/2016,Current (non AEF) Grants to Local Authorities,Local Government & Public Services,EAST HAMPSHIRE DC,,,,,5000342275,,Doubling of Small Business Rates Relief,GU31 4EX,"43,097.00",Yes
Communities & Local Government,DCLG,16/08/2016,Current (non AEF) Grants to Local Authorities,Local Government & Public Services,EAST HAMPSHIRE DC,,,,,5000342277,,Long Term Empty Property Relief,GU31 4EX,507,Yes
Communities & Local Government,DCLG,16/08/2016,Current (non AEF) Grants to Local Authorities,Local Government & Public Services,EAST HAMPSHIRE DC,,,,,5000342278,,Extended Transitional Relief for Small and Medium,GU31 4EX,250,Yes
Communities & Local Government,DCLG,16/08/2016,Current (non AEF) Grants to Local Authorities,Local Government & Public Services,EAST HAMPSHIRE DC,,,,,5000342280,,Business Rates Multiplier Cap,GU31 4EX,"2,418.00",Yes
Communities & Local Government,DCLG,16/08/2016,Current (non AEF) Grants to Local Authorities,Local Government & Public Services,EAST HERTFORDSHIRE DC,,,,236176954,5000342282,,Extended Transitional Relief for Small and Medium,SG13 8EQ,"1,756.00",Yes
Communities & Local Government,DCLG,16/08/2016,Current (non AEF) Grants to Local Authorities,Local Government & Public Services,EAST HERTFORDSHIRE DC,,,,236176954,5000342284,,Business Rates Multiplier Cap,SG13 8EQ,"2,664.00",Yes
Communities & Local Government,DCLG,16/08/2016,Current (non AEF) Grants to Local Authorities,Local Government & Public Services,EAST HERTFORDSHIRE DC,,,,236176954,5000342286,,Doubling of Small Business Rates Relief,SG13 8EQ,"45,015.00",Yes
Communities & Local Government,DCLG,16/08/2016,Current (non AEF) Grants to Local Authorities,Local Government & Public Services,EAST HERTFORDSHIRE DC,,,,236176954,5000342288,,New Empty Property Relief,SG13 8EQ,"1,160.00",Yes
Communities & Local Government,DCLG,16/08/2016,Current (non AEF) Grants to Local Authorities,Local Government & Public Services,EAST HERTFORDSHIRE DC,,,,236176954,5000342290,,Long Term Empty Property Relief,SG13 8EQ,467,Yes
Communities & Local Government,DCLG,16/08/2016,Current (non AEF) Grants to Local Authorities,Local Government & Public Services,EAST LINDSEY DC,,,,,5000342292,,Doubling of Small Business Rates Relief,LN11 8UP,"80,566.00",Yes
Communities & Local Government,DCLG,16/08/2016,Current (non AEF) Grants to Local Authorities,Local Government & Public Services,EAST LINDSEY DC,,,,,5000342296,,Extended Transitional Relief for Small and Medium,LN11 8UP,253,Yes
Communities & Local Government,DCLG,16/08/2016,Current (non AEF) Grants to Local Authorities,Local Government & Public Services,EAST LINDSEY DC,,,,,5000342298,,Small Business Rates Relief on Second Properties,LN11 8UP,382,Yes
Communities & Local Government,DCLG,16/08/2016,Current (non AEF) Grants to Local Authorities,Local Government & Public Services,EAST LINDSEY DC,,,,,5000342301,,Business Rates Multiplier Cap,LN11 8UP,"7,634.00",Yes
Communities & Local Government,DCLG,16/08/2016,Current (non AEF) Grants to Local Authorities,Local Government & Public Services,EAST NORTHAMPTONSHIRE COUNCIL,,,,227475290,5000342303,,Small Business Rates Relief on Second Properties,NN14 4LZ,410,Yes
Communities & Local Government,DCLG,16/08/2016,Current (non AEF) Grants to Local Authorities,Local Government & Public Services,EAST NORTHAMPTONSHIRE COUNCIL,,,,227475290,5000342306,,Doubling of Small Business Rates Relief,NN14 4LZ,"32,526.00",Yes
Communities & Local Government,DCLG,16/08/2016,Current (non AEF) Grants to Local Authorities,Local Government & Public Services,EAST NORTHAMPTONSHIRE COUNCIL,,,,227475290,5000342308,,Business Rates Multiplier Cap,NN14 4LZ,"4,622.00",Yes
Communities & Local Government,DCLG,16/08/2016,Current (non AEF) Grants to Local Authorities,Local Government & Public Services,EAST RIDING OF YORKS (HSG),,,,423159987,5000342310,,Business Rates Multiplier Cap,HU17 9BA,"73,548.00",Yes
Communities & Local Government,DCLG,16/08/2016,Current (non AEF) Grants to Local Authorities,Local Government & Public Services,EAST RIDING OF YORKS (HSG),,,,423159987,5000342312,,Doubling of Small Business Rates Relief,HU17 9BA,"166,274.00",Yes
Communities & Local Government,DCLG,16/08/2016,Current (non AEF) Grants to Local Authorities,Local Government & Public Services,EAST RIDING OF YORKS (HSG),,,,423159987,5000342314,,Extended Transitional Relief for Small and Medium,HU17 9BA,597,Yes
Communities & Local Government,DCLG,16/08/2016,Current (non AEF) Grants to Local Authorities,Local Government & Public Services,EAST STAFFORDSHIRE BC,,,,226778033,5000342316,,Business Rates Multiplier Cap,DE14 2EB,"3,619.00",Yes
Communities & Local Government,DCLG,16/08/2016,Current (non AEF) Grants to Local Authorities,Local Government & Public Services,EAST STAFFORDSHIRE BC,,,,226778033,5000342318,,Doubling of Small Business Rates Relief,DE14 2EB,"48,251.00",Yes
Communities & Local Government,DCLG,16/08/2016,Current (non AEF) Grants to Local Authorities,Local Government & Public Services,EAST SUSSEX COUNTY CNCL,,,,,5000343737,,Extended Transitional Relief for Small and Medium,BN7 1SF,363,Yes
Communities & Local Government,DCLG,16/08/2016,Current (non AEF) Grants to Local Authorities,Local Government & Public Services,EAST SUSSEX COUNTY CNCL,,,,,5000343739,,Business Rates Multiplier Cap,BN7 1SF,"83,205.00",Yes
Communities & Local Government,DCLG,16/08/2016,Current (non AEF) Grants to Local Authorities,Local Government & Public Services,EAST SUSSEX COUNTY CNCL,,,,,5000343741,,New Empty Property Relief,BN7 1SF,813,Yes
Communities & Local Government,DCLG,16/08/2016,Current (non AEF) Grants to Local Authorities,Local Government & Public Services,EAST SUSSEX COUNTY CNCL,,,,,5000343743,,Doubling of Small Business Rates Relief,BN7 1SF,"56,757.00",Yes
Communities & Local Government,DCLG,16/08/2016,Current (non AEF) Grants to Local Authorities,Local Government & Public Services,EAST SUSSEX COUNTY CNCL,,,,,5000343745,,Long Term Empty Property Relief,BN7 1SF,442,Yes
Communities & Local Government,DCLG,16/08/2016,Current (non AEF) Grants to Local Authorities,Local Government & Public Services,EAST SUSSEX FIRE AUTHORITY,,Large,,,5000343605,,Business Rates Multiplier Cap,BN21 1EU,"8,645.00",Yes
Communities & Local Government,DCLG,16/08/2016,Current (non AEF) Grants to Local Authorities,Local Government & Public Services,EAST SUSSEX FIRE AUTHORITY,,Large,,,5000343607,,Doubling of Small Business Rates Relief,BN21 1EU,"9,134.00",Yes
Communities & Local Government,DCLG,16/08/2016,Current (non AEF) Grants to Local Authorities,Local Government & Public Services,EASTBOURNE BC,,,,229896428,5000343749,,Business Rates Multiplier Cap,BN21 4TW,"4,646.00",Yes
Communities & Local Government,DCLG,16/08/2016,Current (non AEF) Grants to Local Authorities,Local Government & Public Services,EASTBOURNE BC,,,,229896428,5000343751,,Doubling of Small Business Rates Relief,BN21 4TW,"35,170.00",Yes
Communities & Local Government,DCLG,16/08/2016,Current (non AEF) Grants to Local Authorities,Local Government & Public Services,EASTBOURNE BC,,,,229896428,5000343753,,Long Term Empty Property Relief,BN21 4TW,"1,638.00",Yes
Communities & Local Government,DCLG,16/08/2016,Current (non AEF) Grants to Local Authorities,Local Government & Public Services,EASTBOURNE BC,,,,229896428,5000343755,,Extended Transitional Relief for Small and Medium,BN21 4TW,336,Yes
Communities & Local Government,DCLG,16/08/2016,Current (non AEF) Grants to Local Authorities,Local Government & Public Services,EASTLEIGH BOROUGH COUNCIL,,,,232669911,5000343757,,Business Rates Multiplier Cap,SO5 9YN,"4,053.00",Yes
Communities & Local Government,DCLG,16/08/2016,Current (non AEF) Grants to Local Authorities,Local Government & Public Services,EASTLEIGH BOROUGH COUNCIL,,,,232669911,5000343761,,Doubling of Small Business Rates Relief,SO5 9YN,"29,343.00",Yes
Communities & Local Government,DCLG,16/08/2016,Current (non AEF) Grants to Local Authorities,Local Government & Public Services,EDEN DC (HSG),,,,,5000342326,,Doubling of Small Business Rates Relief,CA11 7QF,"37,533.00",Yes
Communities & Local Government,DCLG,16/08/2016,Current (non AEF) Grants to Local Authorities,Local Government & Public Services,EDEN DC (HSG),,,,,5000342332,,Business Rates Multiplier Cap,CA11 7QF,"2,556.00",Yes
Communities & Local Government,DCLG,16/08/2016,Current (non AEF) Grants to Local Authorities,Local Government & Public Services,ELMBRIDGE BC (HSG),,,,,5000342336,,Business Rates Multiplier Cap,KT10 9SD,"4,430.00",Yes
Communities & Local Government,DCLG,16/08/2016,Current (non AEF) Grants to Local Authorities,Local Government & Public Services,ELMBRIDGE BC (HSG),,,,,5000342338,,Doubling of Small Business Rates Relief,KT10 9SD,"32,062.00",Yes
Communities & Local Government,DCLG,16/08/2016,Current (non AEF) Grants to Local Authorities,Local Government & Public Services,ELMBRIDGE BC (HSG),,,,,5000342340,,Long Term Empty Property Relief,KT10 9SD,266,Yes
Communities & Local Government,DCLG,16/08/2016,Current (non AEF) Grants to Local Authorities,Local Government & Public Services,ENFIELD LB,,,,,5000343762,,Business Rates Multiplier Cap,EN1 3XF,"82,730.00",Yes
Communities & Local Government,DCLG,16/08/2016,Current (non AEF) Grants to Local Authorities,Local Government & Public Services,ENFIELD LB,,,,,5000343763,,Doubling of Small Business Rates Relief,EN1 3XF,"50,921.00",Yes
Communities & Local Government,DCLG,16/08/2016,Current (non AEF) Grants to Local Authorities,Local Government & Public Services,ENFIELD LB,,,,,5000343765,,Long Term Empty Property Relief,EN1 3XF,"1,264.00",Yes
Communities & Local Government,DCLG,16/08/2016,Current (non AEF) Grants to Local Authorities,Local Government & Public Services,EPPING FOREST DC,,,,775876360,5000341957,,Doubling of Small Business Rates Relief,CM16 4BZ,"43,344.00",Yes
Communities & Local Government,DCLG,16/08/2016,Current (non AEF) Grants to Local Authorities,Local Government & Public Services,EPPING FOREST DC,,,,775876360,5000341962,,Extended Transitional Relief for Small and Medium,CM16 4BZ,"1,310.00",Yes
Communities & Local Government,DCLG,16/08/2016,Current (non AEF) Grants to Local Authorities,Local Government & Public Services,EPPING FOREST DC,,,,775876360,5000341966,,Business Rates Multiplier Cap,CM16 4BZ,"4,795.00",Yes
Communities & Local Government,DCLG,16/08/2016,Current (non AEF) Grants to Local Authorities,Local Government & Public Services,EPPING FOREST DC,,,,775876360,5000341968,,New Empty Property Relief,CM16 4BZ,450,Yes
Communities & Local Government,DCLG,16/08/2016,Current (non AEF) Grants to Local Authorities,Local Government & Public Services,EPSOM & EWELL BC,,,,225423094,5000341970,,Business Rates Multiplier Cap,KT18 5BY,"1,630.00",Yes
Communities & Local Government,DCLG,16/08/2016,Current (non AEF) Grants to Local Authorities,Local Government & Public Services,EPSOM & EWELL BC,,,,225423094,5000341971,,Doubling of Small Business Rates Relief,KT18 5BY,"18,234.00",Yes
Communities & Local Government,DCLG,16/08/2016,Current (non AEF) Grants to Local Authorities,Local Government & Public Services,EPSOM & EWELL BC,,,,225423094,5000341973,,Long Term Empty Property Relief,KT18 5BY,367,Yes
Communities & Local Government,DCLG,16/08/2016,Current (non AEF) Grants to Local Authorities,Local Government & Public Services,EREWASH BC,,,,211209762,5000341975,,Business Rates Multiplier Cap,DE7 5RP,"4,726.00",Yes
Communities & Local Government,DCLG,16/08/2016,Current (non AEF) Grants to Local Authorities,Local Government & Public Services,EREWASH BC,,,,211209762,5000341977,,Doubling of Small Business Rates Relief,DE7 5RP,"43,390.00",Yes
Communities & Local Government,DCLG,16/08/2016,Current (non AEF) Grants to Local Authorities,Local Government & Public Services,ESSEX COUNTY CNCL,,,,233572986,5000341981,,Business Rates Multiplier Cap,CM1 1JZ,"196,520.00",Yes
Communities & Local Government,DCLG,16/08/2016,Current (non AEF) Grants to Local Authorities,Local Government & Public Services,ESSEX COUNTY CNCL,,,,233572986,5000341983,,New Empty Property Relief,CM1 1JZ,"1,282.00",Yes
Communities & Local Government,DCLG,16/08/2016,Current (non AEF) Grants to Local Authorities,Local Government & Public Services,ESSEX COUNTY CNCL,,,,233572986,5000341985,,Extended Transitional Relief for Small and Medium,CM1 1JZ,897,Yes
Communities & Local Government,DCLG,16/08/2016,Current (non AEF) Grants to Local Authorities,Local Government & Public Services,ESSEX COUNTY CNCL,,,,233572986,5000341987,,Doubling of Small Business Rates Relief,CM1 1JZ,"108,321.00",Yes
Communities & Local Government,DCLG,16/08/2016,Current (non AEF) Grants to Local Authorities,Local Government & Public Services,ESSEX COUNTY CNCL,,,,233572986,5000341989,,Long Term Empty Property Relief,CM1 1JZ,865,Yes
Communities & Local Government,DCLG,16/08/2016,Current (non AEF) Grants to Local Authorities,Local Government & Public Services,ESSEX FIRE AUTHORITY,,Large,,424873099,5000343396,,Doubling of Small Business Rates Relief,CM8 3HB,"15,077.00",Yes
Communities & Local Government,DCLG,16/08/2016,Current (non AEF) Grants to Local Authorities,Local Government & Public Services,ESSEX FIRE AUTHORITY,,Large,,424873099,5000343400,,Business Rates Multiplier Cap,CM8 3HB,"18,437.00",Yes
Communities & Local Government,DCLG,16/08/2016,Current (non AEF) Grants to Local Authorities,Local Government & Public Services,EXETER CITY COUNCIL,,,,,5000341991,,Long Term Empty Property Relief,EX1 1JW,519,Yes
Communities & Local Government,DCLG,16/08/2016,Current (non AEF) Grants to Local Authorities,Local Government & Public Services,EXETER CITY COUNCIL,,,,,5000341993,,Business Rates Multiplier Cap,EX1 1JW,"6,119.00",Yes
Communities & Local Government,DCLG,16/08/2016,Current (non AEF) Grants to Local Authorities,Local Government & Public Services,EXETER CITY COUNCIL,,,,,5000341995,,Extended Transitional Relief for Small and Medium,EX1 1JW,783,Yes
Communities & Local Government,DCLG,16/08/2016,Current (non AEF) Grants to Local Authorities,Local Government & Public Services,EXETER CITY COUNCIL,,,,,5000341999,,Doubling of Small Business Rates Relief,EX1 1JW,"36,777.00",Yes
Communities & Local Government,DCLG,16/08/2016,Current (non AEF) Grants to Local Authorities,Local Government & Public Services,FAREHAM BC,,,,228474144,5000342344,,Doubling of Small Business Rates Relief,PO16 7PU,"30,463.00",Yes
Communities & Local Government,DCLG,16/08/2016,Current (non AEF) Grants to Local Authorities,Local Government & Public Services,FAREHAM BC,,,,228474144,5000342346,,Long Term Empty Property Relief,PO16 7PU,806,Yes
Communities & Local Government,DCLG,16/08/2016,Current (non AEF) Grants to Local Authorities,Local Government & Public Services,FAREHAM BC,,,,228474144,5000342349,,Business Rates Multiplier Cap,PO16 7PU,"1,472.00",Yes
Communities & Local Government,DCLG,16/08/2016,Current (non AEF) Grants to Local Authorities,Local Government & Public Services,FAREHAM BC,,,,228474144,5000342351,,New Empty Property Relief,PO16 7PU,457,Yes
Communities & Local Government,DCLG,16/08/2016,Current (non AEF) Grants to Local Authorities,Local Government & Public Services,FENLAND DC,,,,227476348,5000342355,,Business Rates Multiplier Cap,PE15 8NQ,"4,882.00",Yes
Communities & Local Government,DCLG,16/08/2016,Current (non AEF) Grants to Local Authorities,Local Government & Public Services,FENLAND DC,,,,227476348,5000342359,,Doubling of Small Business Rates Relief,PE15 8NQ,"40,821.00",Yes
Communities & Local Government,DCLG,16/08/2016,Current (non AEF) Grants to Local Authorities,Local Government & Public Services,FOREST HEATH DISTRICT COUNCIL,,,,236678116,5000342367,,Business Rates Multiplier Cap,IP28 7EY,"2,387.00",Yes
Communities & Local Government,DCLG,16/08/2016,Current (non AEF) Grants to Local Authorities,Local Government & Public Services,FOREST HEATH DISTRICT COUNCIL,,,,236678116,5000342369,,Doubling of Small Business Rates Relief,IP28 7EY,"24,684.00",Yes
Communities & Local Government,DCLG,16/08/2016,Current (non AEF) Grants to Local Authorities,Local Government & Public Services,FOREST OF DEAN DC,,,,211278890,5000342371,,Business Rates Multiplier Cap,GL16 8HG,"3,219.00",Yes
Communities & Local Government,DCLG,16/08/2016,Current (non AEF) Grants to Local Authorities,Local Government & Public Services,FOREST OF DEAN DC,,,,211278890,5000342373,,Doubling of Small Business Rates Relief,GL16 8HG,"40,532.00",Yes
Communities & Local Government,DCLG,16/08/2016,Current (non AEF) Grants to Local Authorities,Local Government & Public Services,FOREST OF DEAN DC,,,,211278890,5000342379,,Extended Transitional Relief for Small and Medium,GL16 8HG,949,Yes
Communities & Local Government,DCLG,16/08/2016,Current (non AEF) Grants to Local Authorities,Local Government & Public Services,FYLDE BC,,,,227479912,5000342005,,Extended Transitional Relief for Small and Medium,FY8 1LW,372,Yes
Communities & Local Government,DCLG,16/08/2016,Current (non AEF) Grants to Local Authorities,Local Government & Public Services,FYLDE BC,,,,227479912,5000342008,,Business Rates Multiplier Cap,FY8 1LW,"1,616.00",Yes
Communities & Local Government,DCLG,16/08/2016,Current (non AEF) Grants to Local Authorities,Local Government & Public Services,FYLDE BC,,,,227479912,5000342010,,Doubling of Small Business Rates Relief,FY8 1LW,"36,240.00",Yes
Communities & Local Government,DCLG,16/08/2016,Current (non AEF) Grants to Local Authorities,Local Government & Public Services,GATESHEAD COUNCIL,,,,216116041,5000342014,,Extended Transitional Relief for Small and Medium,NE8 1HH,"1,587.00",Yes
Communities & Local Government,DCLG,16/08/2016,Current (non AEF) Grants to Local Authorities,Local Government & Public Services,GATESHEAD COUNCIL,,,,216116041,5000342016,,Business Rates Multiplier Cap,NE8 1HH,"68,476.00",Yes
Communities & Local Government,DCLG,16/08/2016,Current (non AEF) Grants to Local Authorities,Local Government & Public Services,GATESHEAD COUNCIL,,,,216116041,5000342018,,Doubling of Small Business Rates Relief,NE8 1HH,"90,212.00",Yes
Communities & Local Government,DCLG,16/08/2016,Current (non AEF) Grants to Local Authorities,Local Government & Public Services,GATESHEAD COUNCIL,,,,216116041,5000342020,,Long Term Empty Property Relief,NE8 1HH,"2,822.00",Yes
Communities & Local Government,DCLG,16/08/2016,Current (non AEF) Grants to Local Authorities,Local Government & Public Services,GEDLING BC,,,,236180337,5000342024,,Business Rates Multiplier Cap,NG5 6LU,"4,090.00",Yes
Communities & Local Government,DCLG,16/08/2016,Current (non AEF) Grants to Local Authorities,Local Government & Public Services,GEDLING BC,,,,236180337,5000342026,,Doubling of Small Business Rates Relief,NG5 6LU,"28,421.00",Yes
Communities & Local Government,DCLG,16/08/2016,Current (non AEF) Grants to Local Authorities,Local Government & Public Services,GLOUCESTER CITY CNCL,,,,230841392,5000342030,,Doubling of Small Business Rates Relief,GL1 2EQ,"33,052.00",Yes
Communities & Local Government,DCLG,16/08/2016,Current (non AEF) Grants to Local Authorities,Local Government & Public Services,GLOUCESTER CITY CNCL,,,,230841392,5000342034,,Business Rates Multiplier Cap,GL1 2EQ,"6,330.00",Yes
Communities & Local Government,DCLG,16/08/2016,Current (non AEF) Grants to Local Authorities,Local Government & Public Services,GLOUCESTER CITY CNCL,,,,230841392,5000342036,,New Empty Property Relief,GL1 2EQ,"3,219.00",Yes
Communities & Local Government,DCLG,16/08/2016,Current (non AEF) Grants to Local Authorities,Local Government & Public Services,GLOUCESTERSHIRE COUNTY CNCL,,,,211272067,5000342038,,New Empty Property Relief,GL1 2TG,864,Yes
Communities & Local Government,DCLG,16/08/2016,Current (non AEF) Grants to Local Authorities,Local Government & Public Services,GLOUCESTERSHIRE COUNTY CNCL,,,,211272067,5000342040,,Extended Transitional Relief for Small and Medium,GL1 2TG,408,Yes
Communities & Local Government,DCLG,16/08/2016,Current (non AEF) Grants to Local Authorities,Local Government & Public Services,GLOUCESTERSHIRE COUNTY CNCL,,,,211272067,5000342042,,Business Rates Multiplier Cap,GL1 2TG,"84,670.00",Yes
Communities & Local Government,DCLG,16/08/2016,Current (non AEF) Grants to Local Authorities,Local Government & Public Services,GLOUCESTERSHIRE COUNTY CNCL,,,,211272067,5000342044,,Doubling of Small Business Rates Relief,GL1 2TG,"60,326.00",Yes
Communities & Local Government,DCLG,16/08/2016,Current (non AEF) Grants to Local Authorities,Local Government & Public Services,GLOUCESTERSHIRE COUNTY CNCL,,,,211272067,5000342046,,Long Term Empty Property Relief,GL1 2TG,386,Yes
Communities & Local Government,DCLG,16/08/2016,Current (non AEF) Grants to Local Authorities,Local Government & Public Services,GOSPORT BOROUGH COUNCIL,,,,239825078,5000342053,,Doubling of Small Business Rates Relief,PO12 1ED,"24,475.00",Yes
Communities & Local Government,DCLG,16/08/2016,Current (non AEF) Grants to Local Authorities,Local Government & Public Services,GOSPORT BOROUGH COUNCIL,,,,239825078,5000342055,,Business Rates Multiplier Cap,PO12 1ED,"3,531.00",Yes
Communities & Local Government,DCLG,16/08/2016,Current (non AEF) Grants to Local Authorities,Local Government & Public Services,GRAVESHAM BC,,,,236178612,5000342057,,Doubling of Small Business Rates Relief,DA12 1AU,"28,412.00",Yes
Communities & Local Government,DCLG,16/08/2016,Current (non AEF) Grants to Local Authorities,Local Government & Public Services,GRAVESHAM BC,,,,236178612,5000342059,,Long Term Empty Property Relief,DA12 1AU,349,Yes
Communities & Local Government,DCLG,16/08/2016,Current (non AEF) Grants to Local Authorities,Local Government & Public Services,GRAVESHAM BC,,,,236178612,5000342062,,Business Rates Multiplier Cap,DA12 1AU,"4,007.00",Yes
Communities & Local Government,DCLG,16/08/2016,Current (non AEF) Grants to Local Authorities,Local Government & Public Services,GREAT YARMOUTH BC,,,,292697372,5000342064,,Extended Transitional Relief for Small and Medium,NR30 2QG,483,Yes
Communities & Local Government,DCLG,16/08/2016,Current (non AEF) Grants to Local Authorities,Local Government & Public Services,GREAT YARMOUTH BC,,,,292697372,5000342066,,Business Rates Multiplier Cap,NR30 2QG,"5,151.00",Yes
Communities & Local Government,DCLG,16/08/2016,Current (non AEF) Grants to Local Authorities,Local Government & Public Services,GREAT YARMOUTH BC,,,,292697372,5000342068,,Doubling of Small Business Rates Relief,NR30 2QG,"47,531.00",Yes
Communities & Local Government,DCLG,16/08/2016,Current (non AEF) Grants to Local Authorities,Local Government & Public Services,GREATER LONDON AUTHORITY,,,,,5000343736,,Business Rates Multiplier Cap,SE10 1AJ,"1,223,024.00",Yes
Communities & Local Government,DCLG,16/08/2016,Current (non AEF) Grants to Local Authorities,Local Government & Public Services,GREATER LONDON AUTHORITY,,,,,5000343738,,Small Business Rates Relief on Second Properties,SE10 1AJ,"1,717.00",Yes
Communities & Local Government,DCLG,16/08/2016,Current (non AEF) Grants to Local Authorities,Local Government & Public Services,GREATER LONDON AUTHORITY,,,,,5000343740,,Doubling of Small Business Rates Relief,SE10 1AJ,"1,064,256.00",Yes
Communities & Local Government,DCLG,16/08/2016,Current (non AEF) Grants to Local Authorities,Local Government & Public Services,GREATER LONDON AUTHORITY,,,,,5000343742,,Long Term Empty Property Relief,SE10 1AJ,"19,699.00",Yes
Communities & Local Government,DCLG,16/08/2016,Current (non AEF) Grants to Local Authorities,Local Government & Public Services,GREATER LONDON AUTHORITY,,,,,5000343744,,New Empty Property Relief,SE10 1AJ,"32,692.00",Yes
Communities & Local Government,DCLG,16/08/2016,Current (non AEF) Grants to Local Authorities,Local Government & Public Services,GREATER LONDON AUTHORITY,,,,,5000343746,,Extended Transitional Relief for Small and Medium,SE10 1AJ,"42,451.00",Yes
Communities & Local Government,DCLG,16/08/2016,Current (non AEF) Grants to Local Authorities,Local Government & Public Services,GREATER MANCHESTER FIRE (RSG),,,,,5000343294,,Business Rates Multiplier Cap,M2 8US,"35,664.00",Yes
Communities & Local Government,DCLG,16/08/2016,Current (non AEF) Grants to Local Authorities,Local Government & Public Services,GREATER MANCHESTER FIRE (RSG),,,,,5000343296,,Doubling of Small Business Rates Relief,M2 8US,"27,071.00",Yes
Communities & Local Government,DCLG,16/08/2016,Current (non AEF) Grants to Local Authorities,Local Government & Public Services,GREATER MANCHESTER FIRE (RSG),,,,,5000343300,,Long Term Empty Property Relief,M2 8US,705,Yes
Communities & Local Government,DCLG,16/08/2016,Current (non AEF) Grants to Local Authorities,Local Government & Public Services,GREENWICH LB,,,,,5000342070,,New Empty Property Relief,SE18 6HQ,"2,029.00",Yes
Communities & Local Government,DCLG,16/08/2016,Current (non AEF) Grants to Local Authorities,Local Government & Public Services,GREENWICH LB,,,,,5000342074,,Business Rates Multiplier Cap,SE18 6HQ,"94,494.00",Yes
Communities & Local Government,DCLG,16/08/2016,Current (non AEF) Grants to Local Authorities,Local Government & Public Services,GREENWICH LB,,,,,5000342076,,Doubling of Small Business Rates Relief,SE18 6HQ,"43,132.00",Yes
Communities & Local Government,DCLG,16/08/2016,Current (non AEF) Grants to Local Authorities,Local Government & Public Services,GUILDFORD BC,,,,236663720,5000342381,,Extended Transitional Relief for Small and Medium,GU2 5BB,284,Yes
Communities & Local Government,DCLG,16/08/2016,Current (non AEF) Grants to Local Authorities,Local Government & Public Services,GUILDFORD BC,,,,236663720,5000342383,,Business Rates Multiplier Cap,GU2 5BB,"5,817.00",Yes
Communities & Local Government,DCLG,16/08/2016,Current (non AEF) Grants to Local Authorities,Local Government & Public Services,GUILDFORD BC,,,,236663720,5000342387,,Doubling of Small Business Rates Relief,GU2 5BB,"30,769.00",Yes
Communities & Local Government,DCLG,16/08/2016,Current (non AEF) Grants to Local Authorities,Local Government & Public Services,HALTON BC (HSG),,,,,5000342391,,Doubling of Small Business Rates Relief,WA8 7QF,"41,346.00",Yes
Communities & Local Government,DCLG,16/08/2016,Current (non AEF) Grants to Local Authorities,Local Government & Public Services,HALTON BC (HSG),,,,,5000342393,,Long Term Empty Property Relief,WA8 7QF,"1,084.00",Yes
Communities & Local Government,DCLG,16/08/2016,Current (non AEF) Grants to Local Authorities,Local Government & Public Services,HALTON BC (HSG),,,,,5000342395,,Small Business Rates Relief on Second Properties,WA8 7QF,361,Yes
Communities & Local Government,DCLG,16/08/2016,Current (non AEF) Grants to Local Authorities,Local Government & Public Services,HALTON BC (HSG),,,,,5000342397,,Business Rates Multiplier Cap,WA8 7QF,"40,192.00",Yes
Communities & Local Government,DCLG,16/08/2016,Current (non AEF) Grants to Local Authorities,Local Government & Public Services,HAMBLETON DC (HSG),,,,503481319,5000342399,,Business Rates Multiplier Cap,DL6 2UU,"2,463.00",Yes
Communities & Local Government,DCLG,16/08/2016,Current (non AEF) Grants to Local Authorities,Local Government & Public Services,HAMBLETON DC (HSG),,,,503481319,5000342401,,Doubling of Small Business Rates Relief,DL6 2UU,"47,694.00",Yes
Communities & Local Government,DCLG,16/08/2016,Current (non AEF) Grants to Local Authorities,Local Government & Public Services,HAMBLETON DC (HSG),,,,503481319,5000342403,,New Empty Property Relief,DL6 2UU,677,Yes
Communities & Local Government,DCLG,16/08/2016,Current (non AEF) Grants to Local Authorities,Local Government & Public Services,HAMBLETON DC (HSG),,,,503481319,5000342405,,Long Term Empty Property Relief,DL6 2UU,677,Yes
Communities & Local Government,DCLG,16/08/2016,Current (non AEF) Grants to Local Authorities,Local Government & Public Services,HAMBLETON DC (HSG),,,,503481319,5000342409,,Small Business Rates Relief on Second Properties,DL6 2UU,490,Yes
Communities & Local Government,DCLG,16/08/2016,Current (non AEF) Grants to Local Authorities,Local Government & Public Services,HAMMERSMITH & FULHAM LB,,,,216929489,5000342085,,Business Rates Multiplier Cap,W6 9JU,"63,989.00",Yes
Communities & Local Government,DCLG,16/08/2016,Current (non AEF) Grants to Local Authorities,Local Government & Public Services,HAMMERSMITH & FULHAM LB,,,,216929489,5000342087,,Doubling of Small Business Rates Relief,W6 9JU,"29,040.00",Yes
Communities & Local Government,DCLG,16/08/2016,Current (non AEF) Grants to Local Authorities,Local Government & Public Services,HAMMERSMITH & FULHAM LB,,,,216929489,5000342089,,New Empty Property Relief,W6 9JU,"8,941.00",Yes
Communities & Local Government,DCLG,16/08/2016,Current (non AEF) Grants to Local Authorities,Local Government & Public Services,HAMMERSMITH & FULHAM LB,,,,216929489,5000342091,,Long Term Empty Property Relief,W6 9JU,616,Yes
Communities & Local Government,DCLG,16/08/2016,Current (non AEF) Grants to Local Authorities,Local Government & Public Services,HAMPSHIRE COUNTY COUNCIL,,,,211325832,5000342093,,Doubling of Small Business Rates Relief,SO23 8UB,"89,091.00",Yes
Communities & Local Government,DCLG,16/08/2016,Current (non AEF) Grants to Local Authorities,Local Government & Public Services,HAMPSHIRE COUNTY COUNCIL,,,,211325832,5000342095,,Business Rates Multiplier Cap,SO23 8UB,"134,932.00",Yes
Communities & Local Government,DCLG,16/08/2016,Current (non AEF) Grants to Local Authorities,Local Government & Public Services,HAMPSHIRE COUNTY COUNCIL,,,,211325832,5000342097,,Small Business Rates Relief on Second Properties,SO23 8UB,559,Yes
Communities & Local Government,DCLG,16/08/2016,Current (non AEF) Grants to Local Authorities,Local Government & Public Services,HAMPSHIRE COUNTY COUNCIL,,,,211325832,5000342099,,New Empty Property Relief,SO23 8UB,293,Yes
Communities & Local Government,DCLG,16/08/2016,Current (non AEF) Grants to Local Authorities,Local Government & Public Services,HAMPSHIRE COUNTY COUNCIL,,,,211325832,5000342101,,Long Term Empty Property Relief,SO23 8UB,"2,244.00",Yes
Communities & Local Government,DCLG,16/08/2016,Current (non AEF) Grants to Local Authorities,Local Government & Public Services,HAMPSHIRE COUNTY COUNCIL,,,,211325832,5000342103,,Extended Transitional Relief for Small and Medium,SO23 8UB,406,Yes
Communities & Local Government,DCLG,16/08/2016,Current (non AEF) Grants to Local Authorities,Local Government & Public Services,HAMPSHIRE FIRE & RESCUE AUTHORITY,,Large,,,5000343574,,Business Rates Multiplier Cap,SO23 8UB,"16,254.00",Yes
Communities & Local Government,DCLG,16/08/2016,Current (non AEF) Grants to Local Authorities,Local Government & Public Services,HAMPSHIRE FIRE & RESCUE AUTHORITY,,Large,,,5000343576,,Doubling of Small Business Rates Relief,SO23 8UB,"12,974.00",Yes
Communities & Local Government,DCLG,16/08/2016,Current (non AEF) Grants to Local Authorities,Local Government & Public Services,HAMPSHIRE FIRE & RESCUE AUTHORITY,,Large,,,5000343578,,Long Term Empty Property Relief,SO23 8UB,322,Yes
Communities & Local Government,DCLG,16/08/2016,Current (non AEF) Grants to Local Authorities,Local Government & Public Services,HARBOROUGH DC (HSG),,,,212935774,5000342412,,New Empty Property Relief,LE16 7AG,507,Yes
Communities & Local Government,DCLG,16/08/2016,Current (non AEF) Grants to Local Authorities,Local Government & Public Services,HARBOROUGH DC (HSG),,,,212935774,5000342418,,Business Rates Multiplier Cap,LE16 7AG,"3,671.00",Yes
Communities & Local Government,DCLG,16/08/2016,Current (non AEF) Grants to Local Authorities,Local Government & Public Services,HARBOROUGH DC (HSG),,,,212935774,5000342420,,Doubling of Small Business Rates Relief,LE16 7AG,"30,295.00",Yes
Communities & Local Government,DCLG,16/08/2016,Current (non AEF) Grants to Local Authorities,Local Government & Public Services,HARINGEY LB,,,,217471767,5000342105,,Long Term Empty Property Relief,N22 4TR,470,Yes
Communities & Local Government,DCLG,16/08/2016,Current (non AEF) Grants to Local Authorities,Local Government & Public Services,HARINGEY LB,,,,217471767,5000342107,,Doubling of Small Business Rates Relief,N22 4TR,"55,264.00",Yes
Communities & Local Government,DCLG,16/08/2016,Current (non AEF) Grants to Local Authorities,Local Government & Public Services,HARINGEY LB,,,,217471767,5000342109,,Business Rates Multiplier Cap,N22 4TR,"90,456.00",Yes
Communities & Local Government,DCLG,16/08/2016,Current (non AEF) Grants to Local Authorities,Local Government & Public Services,HARINGEY LB,,,,217471767,5000342111,,New Empty Property Relief,N22 4TR,"2,127.00",Yes
Communities & Local Government,DCLG,16/08/2016,Current (non AEF) Grants to Local Authorities,Local Government & Public Services,HARLOW DISTRICT COUNCIL,,Large,,239999055,5000342113,,Business Rates Multiplier Cap,CM20 1WG,"3,971.00",Yes
Communities & Local Government,DCLG,16/08/2016,Current (non AEF) Grants to Local Authorities,Local Government & Public Services,HARLOW DISTRICT COUNCIL,,Large,,239999055,5000342117,,Doubling of Small Business Rates Relief,CM20 1WG,"16,518.00",Yes
Communities & Local Government,DCLG,16/08/2016,Current (non AEF) Grants to Local Authorities,Local Government & Public Services,HARROGATE BC,,,,236660031,5000342422,,Business Rates Multiplier Cap,HG1 2SG,"4,402.00",Yes
Communities & Local Government,DCLG,16/08/2016,Current (non AEF) Grants to Local Authorities,Local Government & Public Services,HARROGATE BC,,,,236660031,5000342424,,Doubling of Small Business Rates Relief,HG1 2SG,"83,044.00",Yes
Communities & Local Government,DCLG,16/08/2016,Current (non AEF) Grants to Local Authorities,Local Government & Public Services,HARROGATE BC,,,,236660031,5000342426,,New Empty Property Relief,HG1 2SG,"1,172.00",Yes
Communities & Local Government,DCLG,16/08/2016,Current (non AEF) Grants to Local Authorities,Local Government & Public Services,HARROGATE BC,,,,236660031,5000342428,,Long Term Empty Property Relief,HG1 2SG,553,Yes
Communities & Local Government,DCLG,16/08/2016,Current (non AEF) Grants to Local Authorities,Local Government & Public Services,HARROGATE BC,,,,236660031,5000342432,,Extended Transitional Relief for Small and Medium,HG1 2SG,690,Yes
Communities & Local Government,DCLG,16/08/2016,Current (non AEF) Grants to Local Authorities,Local Government & Public Services,HARROW LB,,,,,5000342119,,Business Rates Multiplier Cap,HA1 2UZ,"41,341.00",Yes
Communities & Local Government,DCLG,16/08/2016,Current (non AEF) Grants to Local Authorities,Local Government & Public Services,HARROW LB,,,,,5000342121,,Doubling of Small Business Rates Relief,HA1 2UZ,"39,613.00",Yes
Communities & Local Government,DCLG,16/08/2016,Current (non AEF) Grants to Local Authorities,Local Government & Public Services,HART DC,,,,229723895,5000342125,,Business Rates Multiplier Cap,GU13 8AE,"1,516.00",Yes
Communities & Local Government,DCLG,16/08/2016,Current (non AEF) Grants to Local Authorities,Local Government & Public Services,HART DC,,,,229723895,5000342127,,Doubling of Small Business Rates Relief,GU13 8AE,"18,770.00",Yes
Communities & Local Government,DCLG,16/08/2016,Current (non AEF) Grants to Local Authorities,Local Government & Public Services,HARTLEPOOL BOROUGH COUNCIL,,,,424291797,5000342131,,Business Rates Multiplier Cap,TS24 8AY,"28,322.00",Yes
Communities & Local Government,DCLG,16/08/2016,Current (non AEF) Grants to Local Authorities,Local Government & Public Services,HARTLEPOOL BOROUGH COUNCIL,,,,424291797,5000342136,,Doubling of Small Business Rates Relief,TS24 8AY,"41,514.00",Yes
Communities & Local Government,DCLG,16/08/2016,Current (non AEF) Grants to Local Authorities,Local Government & Public Services,HASTINGS BC,,,,,5000342138,,Extended Transitional Relief for Small and Medium,TN34 3WN,517,Yes
Communities & Local Government,DCLG,16/08/2016,Current (non AEF) Grants to Local Authorities,Local Government & Public Services,HASTINGS BC,,,,,5000342140,,Business Rates Multiplier Cap,TN34 3WN,"3,828.00",Yes
Communities & Local Government,DCLG,16/08/2016,Current (non AEF) Grants to Local Authorities,Local Government & Public Services,HASTINGS BC,,,,,5000342142,,New Empty Property Relief,TN34 3WN,"3,617.00",Yes
Communities & Local Government,DCLG,16/08/2016,Current (non AEF) Grants to Local Authorities,Local Government & Public Services,HASTINGS BC,,,,,5000342144,,Doubling of Small Business Rates Relief,TN34 3WN,"42,523.00",Yes
Communities & Local Government,DCLG,16/08/2016,Current (non AEF) Grants to Local Authorities,Local Government & Public Services,HAVANT BC,,,,211047543,5000342146,,Business Rates Multiplier Cap,PO9 2AX,"4,888.00",Yes
Communities & Local Government,DCLG,16/08/2016,Current (non AEF) Grants to Local Authorities,Local Government & Public Services,HAVANT BC,,,,211047543,5000342148,,Doubling of Small Business Rates Relief,PO9 2AX,"35,554.00",Yes
Communities & Local Government,DCLG,16/08/2016,Current (non AEF) Grants to Local Authorities,Local Government & Public Services,HAVERING LB,,,,211209770,5000342154,,New Empty Property Relief,RM1 3BB,445,Yes
Communities & Local Government,DCLG,16/08/2016,Current (non AEF) Grants to Local Authorities,Local Government & Public Services,HAVERING LB,,,,211209770,5000342156,,Business Rates Multiplier Cap,RM1 3BB,"38,536.00",Yes
Communities & Local Government,DCLG,16/08/2016,Current (non AEF) Grants to Local Authorities,Local Government & Public Services,HAVERING LB,,,,211209770,5000342158,,Doubling of Small Business Rates Relief,RM1 3BB,"46,359.00",Yes
Communities & Local Government,DCLG,16/08/2016,Current (non AEF) Grants to Local Authorities,Local Government & Public Services,HEREFORD WORCESTER FIRE & RESCUE,,Large,,236425484,5000343522,,Doubling of Small Business Rates Relief,WR5 1JR,"8,074.00",Yes
Communities & Local Government,DCLG,16/08/2016,Current (non AEF) Grants to Local Authorities,Local Government & Public Services,HEREFORD WORCESTER FIRE & RESCUE,,Large,,236425484,5000343532,,Business Rates Multiplier Cap,WR5 1JR,"6,298.00",Yes
Communities & Local Government,DCLG,16/08/2016,Current (non AEF) Grants to Local Authorities,Local Government & Public Services,HEREFORDSHIRE COUNCIL,,,,,5000342434,,New Empty Property Relief,HR4 0XH,"2,071.00",Yes
Communities & Local Government,DCLG,16/08/2016,Current (non AEF) Grants to Local Authorities,Local Government & Public Services,HEREFORDSHIRE COUNCIL,,,,,5000342436,,Long Term Empty Property Relief,HR4 0XH,"1,036.00",Yes
Communities & Local Government,DCLG,16/08/2016,Current (non AEF) Grants to Local Authorities,Local Government & Public Services,HEREFORDSHIRE COUNCIL,,,,,5000342438,,Business Rates Multiplier Cap,HR4 0XH,"36,976.00",Yes
Communities & Local Government,DCLG,16/08/2016,Current (non AEF) Grants to Local Authorities,Local Government & Public Services,HEREFORDSHIRE COUNCIL,,,,,5000342440,,Extended Transitional Relief for Small and Medium,HR4 0XH,"2,071.00",Yes
Communities & Local Government,DCLG,16/08/2016,Current (non AEF) Grants to Local Authorities,Local Government & Public Services,HEREFORDSHIRE COUNCIL,,,,,5000342442,,Doubling of Small Business Rates Relief,HR4 0XH,"123,873.00",Yes
Communities & Local Government,DCLG,16/08/2016,Current (non AEF) Grants to Local Authorities,Local Government & Public Services,HERTFORDSHIRE COUNTY CNCL,,,,210659897,5000342162,,Doubling of Small Business Rates Relief,SG13 8DQ,"71,433.00",Yes
Communities & Local Government,DCLG,16/08/2016,Current (non AEF) Grants to Local Authorities,Local Government & Public Services,HERTFORDSHIRE COUNTY CNCL,,,,210659897,5000342164,,Long Term Empty Property Relief,SG13 8DQ,"1,387.00",Yes
Communities & Local Government,DCLG,16/08/2016,Current (non AEF) Grants to Local Authorities,Local Government & Public Services,HERTFORDSHIRE COUNTY CNCL,,,,210659897,5000342168,,New Empty Property Relief,SG13 8DQ,"1,606.00",Yes
Communities & Local Government,DCLG,16/08/2016,Current (non AEF) Grants to Local Authorities,Local Government & Public Services,HERTFORDSHIRE COUNTY CNCL,,,,210659897,5000342170,,Extended Transitional Relief for Small and Medium,SG13 8DQ,712,Yes
Communities & Local Government,DCLG,16/08/2016,Current (non AEF) Grants to Local Authorities,Local Government & Public Services,HERTFORDSHIRE COUNTY CNCL,,,,210659897,5000342172,,Business Rates Multiplier Cap,SG13 8DQ,"137,485.00",Yes
Communities & Local Government,DCLG,16/08/2016,Current (non AEF) Grants to Local Authorities,Local Government & Public Services,HERTSMERE BC,,,,237549253,5000342174,,Doubling of Small Business Rates Relief,WD6 1WA,"27,126.00",Yes
Communities & Local Government,DCLG,16/08/2016,Current (non AEF) Grants to Local Authorities,Local Government & Public Services,HERTSMERE BC,,,,237549253,5000342176,,Long Term Empty Property Relief,WD6 1WA,"1,639.00",Yes
Communities & Local Government,DCLG,16/08/2016,Current (non AEF) Grants to Local Authorities,Local Government & Public Services,HERTSMERE BC,,,,237549253,5000342180,,Business Rates Multiplier Cap,WD6 1WA,"4,368.00",Yes
Communities & Local Government,DCLG,16/08/2016,Current (non AEF) Grants to Local Authorities,Local Government & Public Services,HIGH PEAK BC,,,,239967771,5000342444,,Doubling of Small Business Rates Relief,SK17 6EL,"44,136.00",Yes
Communities & Local Government,DCLG,16/08/2016,Current (non AEF) Grants to Local Authorities,Local Government & Public Services,HIGH PEAK BC,,,,239967771,5000342446,,Long Term Empty Property Relief,SK17 6EL,545,Yes
Communities & Local Government,DCLG,16/08/2016,Current (non AEF) Grants to Local Authorities,Local Government & Public Services,HIGH PEAK BC,,,,239967771,5000342448,,Extended Transitional Relief for Small and Medium,SK17 6EL,"2,027.00",Yes
Communities & Local Government,DCLG,16/08/2016,Current (non AEF) Grants to Local Authorities,Local Government & Public Services,HIGH PEAK BC,,,,239967771,5000342450,,Business Rates Multiplier Cap,SK17 6EL,"3,007.00",Yes
Communities & Local Government,DCLG,16/08/2016,Current (non AEF) Grants to Local Authorities,Local Government & Public Services,HILLINGDON LB,,,,211198585,5000342182,,Business Rates Multiplier Cap,UB8 1UW,"62,208.00",Yes
Communities & Local Government,DCLG,16/08/2016,Current (non AEF) Grants to Local Authorities,Local Government & Public Services,HILLINGDON LB,,,,211198585,5000342184,,Doubling of Small Business Rates Relief,UB8 1UW,"43,190.00",Yes
Communities & Local Government,DCLG,16/08/2016,Current (non AEF) Grants to Local Authorities,Local Government & Public Services,HILLINGDON LB,,,,211198585,5000342186,,Long Term Empty Property Relief,UB8 1UW,"2,536.00",Yes
Communities & Local Government,DCLG,16/08/2016,Current (non AEF) Grants to Local Authorities,Local Government & Public Services,HILLINGDON LB,,,,211198585,5000342188,,Extended Transitional Relief for Small and Medium,UB8 1UW,"9,381.00",Yes
Communities & Local Government,DCLG,16/08/2016,Current (non AEF) Grants to Local Authorities,Local Government & Public Services,HINCKLEY & BOSWORTH BC,,,,211176144,5000342452,,Doubling of Small Business Rates Relief,LE10 1BZ,"39,681.00",Yes
Communities & Local Government,DCLG,16/08/2016,Current (non AEF) Grants to Local Authorities,Local Government & Public Services,HINCKLEY & BOSWORTH BC,,,,211176144,5000342454,,New Empty Property Relief,LE10 1BZ,620,Yes
Communities & Local Government,DCLG,16/08/2016,Current (non AEF) Grants to Local Authorities,Local Government & Public Services,HINCKLEY & BOSWORTH BC,,,,211176144,5000342460,,Business Rates Multiplier Cap,LE10 1BZ,"5,490.00",Yes
Communities & Local Government,DCLG,16/08/2016,Current (non AEF) Grants to Local Authorities,Local Government & Public Services,HINCKLEY & BOSWORTH BC,,,,211176144,5000342462,,Small Business Rates Relief on Second Properties,LE10 1BZ,422,Yes
Communities & Local Government,DCLG,16/08/2016,Current (non AEF) Grants to Local Authorities,Local Government & Public Services,HORSHAM DC,,,,229776588,5000342464,,Business Rates Multiplier Cap,RH12 1RL,"3,002.00",Yes
Communities & Local Government,DCLG,16/08/2016,Current (non AEF) Grants to Local Authorities,Local Government & Public Services,HORSHAM DC,,,,229776588,5000342466,,Doubling of Small Business Rates Relief,RH12 1RL,"47,988.00",Yes
Communities & Local Government,DCLG,16/08/2016,Current (non AEF) Grants to Local Authorities,Local Government & Public Services,HORSHAM DC,,,,229776588,5000342468,,New Empty Property Relief,RH12 1RL,"3,025.00",Yes
Communities & Local Government,DCLG,16/08/2016,Current (non AEF) Grants to Local Authorities,Local Government & Public Services,HOUNSLOW LB,,Public Bodies,,210388999,5000342190,,Doubling of Small Business Rates Relief,TW3 4DN,"36,002.00",Yes
Communities & Local Government,DCLG,16/08/2016,Current (non AEF) Grants to Local Authorities,Local Government & Public Services,HOUNSLOW LB,,Public Bodies,,210388999,5000342192,,Long Term Empty Property Relief,TW3 4DN,784,Yes
Communities & Local Government,DCLG,16/08/2016,Current (non AEF) Grants to Local Authorities,Local Government & Public Services,HOUNSLOW LB,,Public Bodies,,210388999,5000342194,,New Empty Property Relief,TW3 4DN,"8,036.00",Yes
Communities & Local Government,DCLG,16/08/2016,Current (non AEF) Grants to Local Authorities,Local Government & Public Services,HOUNSLOW LB,,Public Bodies,,210388999,5000342196,,Business Rates Multiplier Cap,TW3 4DN,"58,961.00",Yes
Communities & Local Government,DCLG,16/08/2016,Current (non AEF) Grants to Local Authorities,Local Government & Public Services,HULL CITY COUNCIL,,,,217460984,5000342272,,Business Rates Multiplier Cap,HU1 2AA,"94,262.00",Yes
Communities & Local Government,DCLG,16/08/2016,Current (non AEF) Grants to Local Authorities,Local Government & Public Services,HULL CITY COUNCIL,,,,217460984,5000342274,,Doubling of Small Business Rates Relief,HU1 2AA,"121,927.00",Yes
Communities & Local Government,DCLG,16/08/2016,Current (non AEF) Grants to Local Authorities,Local Government & Public Services,HULL CITY COUNCIL,,,,217460984,5000342276,,New Empty Property Relief,HU1 2AA,"3,728.00",Yes
Communities & Local Government,DCLG,16/08/2016,Current (non AEF) Grants to Local Authorities,Local Government & Public Services,HULL CITY COUNCIL,,,,217460984,5000342281,,Long Term Empty Property Relief,HU1 2AA,"4,971.00",Yes
Communities & Local Government,DCLG,16/08/2016,Current (non AEF) Grants to Local Authorities,Local Government & Public Services,HULL CITY COUNCIL,,,,217460984,5000342283,,Extended Transitional Relief for Small and Medium,HU1 2AA,442,Yes
Communities & Local Government,DCLG,16/08/2016,Current (non AEF) Grants to Local Authorities,Local Government & Public Services,HUMBERSIDE FIRE & RESCUE SERVICE,,,,229832563,5000343426,,Business Rates Multiplier Cap,HU4 7BB,"14,502.00",Yes
Communities & Local Government,DCLG,16/08/2016,Current (non AEF) Grants to Local Authorities,Local Government & Public Services,HUMBERSIDE FIRE & RESCUE SERVICE,,,,229832563,5000343428,,Doubling of Small Business Rates Relief,HU4 7BB,"8,895.00",Yes
Communities & Local Government,DCLG,16/08/2016,Current (non AEF) Grants to Local Authorities,Local Government & Public Services,HUNTINGDONSHIRE DC,,,,235999216,5000342472,,New Empty Property Relief,PE18 6TN,338,Yes
Communities & Local Government,DCLG,16/08/2016,Current (non AEF) Grants to Local Authorities,Local Government & Public Services,HUNTINGDONSHIRE DC,,,,235999216,5000342474,,Doubling of Small Business Rates Relief,PE18 6TN,"52,176.00",Yes
Communities & Local Government,DCLG,16/08/2016,Current (non AEF) Grants to Local Authorities,Local Government & Public Services,HUNTINGDONSHIRE DC,,,,235999216,5000342478,,Small Business Rates Relief on Second Properties,PE18 6TN,"1,250.00",Yes
Communities & Local Government,DCLG,16/08/2016,Current (non AEF) Grants to Local Authorities,Local Government & Public Services,HUNTINGDONSHIRE DC,,,,235999216,5000342480,,Business Rates Multiplier Cap,PE18 6TN,"7,540.00",Yes
Communities & Local Government,DCLG,16/08/2016,Current (non AEF) Grants to Local Authorities,Local Government & Public Services,HYNDBURN BC,,,,,5000342200,,Business Rates Multiplier Cap,BB5 1EZ,"3,332.00",Yes
Communities & Local Government,DCLG,16/08/2016,Current (non AEF) Grants to Local Authorities,Local Government & Public Services,HYNDBURN BC,,,,,5000342202,,Doubling of Small Business Rates Relief,BB5 1EZ,"42,983.00",Yes
Communities & Local Government,DCLG,16/08/2016,Current (non AEF) Grants to Local Authorities,Local Government & Public Services,IPSWICH BC,,,,226861391,5000342204,,Business Rates Multiplier Cap,IP1 2DE,"6,098.00",Yes
Communities & Local Government,DCLG,16/08/2016,Current (non AEF) Grants to Local Authorities,Local Government & Public Services,IPSWICH BC,,,,226861391,5000342207,,Doubling of Small Business Rates Relief,IP1 2DE,"43,097.00",Yes
Communities & Local Government,DCLG,16/08/2016,Current (non AEF) Grants to Local Authorities,Local Government & Public Services,IPSWICH BC,,,,226861391,5000342209,,Long Term Empty Property Relief,IP1 2DE,"2,995.00",Yes
Communities & Local Government,DCLG,16/08/2016,Current (non AEF) Grants to Local Authorities,Local Government & Public Services,IPSWICH BC,,,,226861391,5000342211,,Extended Transitional Relief for Small and Medium,IP1 2DE,272,Yes
Communities & Local Government,DCLG,16/08/2016,Current (non AEF) Grants to Local Authorities,Local Government & Public Services,IPSWICH BC,,,,226861391,5000342213,,Small Business Rates Relief on Second Properties,IP1 2DE,355,Yes
Communities & Local Government,DCLG,16/08/2016,Current (non AEF) Grants to Local Authorities,Local Government & Public Services,ISLE OF WIGHT CNCL,,,,236431730,5000342217,,Extended Transitional Relief for Small and Medium,PO30 1UD,422,Yes
Communities & Local Government,DCLG,16/08/2016,Current (non AEF) Grants to Local Authorities,Local Government & Public Services,ISLE OF WIGHT CNCL,,,,236431730,5000342219,,Business Rates Multiplier Cap,PO30 1UD,"36,741.00",Yes
Communities & Local Government,DCLG,16/08/2016,Current (non AEF) Grants to Local Authorities,Local Government & Public Services,ISLE OF WIGHT CNCL,,,,236431730,5000342221,,Doubling of Small Business Rates Relief,PO30 1UD,"108,038.00",Yes
Communities & Local Government,DCLG,16/08/2016,Current (non AEF) Grants to Local Authorities,Local Government & Public Services,ISLE OF WIGHT CNCL,,,,236431730,5000342223,,Long Term Empty Property Relief,PO30 1UD,634,Yes
Communities & Local Government,DCLG,16/08/2016,Current (non AEF) Grants to Local Authorities,Local Government & Public Services,ISLES OF SCILLY COUNCIL,,,,214146040,5000342227,,Business Rates Multiplier Cap,TR21 0LW,"1,617.00",Yes
Communities & Local Government,DCLG,16/08/2016,Current (non AEF) Grants to Local Authorities,Local Government & Public Services,ISLES OF SCILLY COUNCIL,,,,214146040,5000342229,,Doubling of Small Business Rates Relief,TR21 0LW,"7,153.00",Yes
Communities & Local Government,DCLG,16/08/2016,Current (non AEF) Grants to Local Authorities,Local Government & Public Services,ISLINGTON LB,,,,225716729,5000342231,,Extended Transitional Relief for Small and Medium,N1 1XR,"9,451.00",Yes
Communities & Local Government,DCLG,16/08/2016,Current (non AEF) Grants to Local Authorities,Local Government & Public Services,ISLINGTON LB,,,,225716729,5000342233,,Business Rates Multiplier Cap,N1 1XR,"94,453.00",Yes
Communities & Local Government,DCLG,16/08/2016,Current (non AEF) Grants to Local Authorities,Local Government & Public Services,ISLINGTON LB,,,,225716729,5000342235,,New Empty Property Relief,N1 1XR,"5,888.00",Yes
Communities & Local Government,DCLG,16/08/2016,Current (non AEF) Grants to Local Authorities,Local Government & Public Services,ISLINGTON LB,,,,225716729,5000342237,,Doubling of Small Business Rates Relief,N1 1XR,"44,063.00",Yes
Communities & Local Government,DCLG,16/08/2016,Current (non AEF) Grants to Local Authorities,Local Government & Public Services,KENT & MEDWAY TOWNS FIRE AUTHORITY,,Large,,423679414,5000343438,,Business Rates Multiplier Cap,ME15 6XB,"16,682.00",Yes
Communities & Local Government,DCLG,16/08/2016,Current (non AEF) Grants to Local Authorities,Local Government & Public Services,KENT & MEDWAY TOWNS FIRE AUTHORITY,,Large,,423679414,5000343440,,Doubling of Small Business Rates Relief,ME15 6XB,"14,767.00",Yes
Communities & Local Government,DCLG,16/08/2016,Current (non AEF) Grants to Local Authorities,Local Government & Public Services,KENT & MEDWAY TOWNS FIRE AUTHORITY,,Large,,423679414,5000343446,,New Empty Property Relief,ME15 6XB,475,Yes
Communities & Local Government,DCLG,16/08/2016,Current (non AEF) Grants to Local Authorities,Local Government & Public Services,KENT COUNTY CNCL,,,,211334420,5000342251,,Extended Transitional Relief for Small and Medium,ME14 1RF,610,Yes
Communities & Local Government,DCLG,16/08/2016,Current (non AEF) Grants to Local Authorities,Local Government & Public Services,KENT COUNTY CNCL,,,,211334420,5000342253,,Long Term Empty Property Relief,ME14 1RF,"1,944.00",Yes
Communities & Local Government,DCLG,16/08/2016,Current (non AEF) Grants to Local Authorities,Local Government & Public Services,KENT COUNTY CNCL,,,,211334420,5000342255,,Small Business Rates Relief on Second Properties,ME14 1RF,673,Yes
Communities & Local Government,DCLG,16/08/2016,Current (non AEF) Grants to Local Authorities,Local Government & Public Services,KENT COUNTY CNCL,,,,211334420,5000342256,,Business Rates Multiplier Cap,ME14 1RF,"210,156.00",Yes
